Workbook

Sheet Data
A1: Notation & Variables: | M1: GLM Bootstrap: | Y1: Link Ratio Equivalents:
A3: Cumulative Data | M3: Cumulative Data | Y3: Actual Age-to-Age Factors
B4: 1 | C4: 2 | D4: 3 | E4: 4 | F4: 5 | G4: 6 | N4: 1 | O4: 2 | P4: 3 | Q4: 4 | R4: 5 | S4: 6 | Z4: 1 | AA4: 2 | AB4: 3 | AC4: 4 | AD4: 5 | AE4: 6
A5: 1 | B5: ="c("&$A5&","&B$4&")" -> c(1,1) | C5: c(1,2) | D5: c(1,3) | E5: c(1,4) | F5: c(1,5) | G5: c(1,6) | M5: 1 | N5: 95 | O5: 150 | P5: 170 | Q5: 200 | R5: 215 | S5: 220 | Y5: 1 | AA5: =O5/N5 -> 1.578947368 | AB5: =P5/O5 -> 1.133333333 | AC5: =Q5/P5 -> 1.176470588 | AD5: =R5/Q5 -> 1.075 | AE5: =S5/R5 -> 1.023255814
A6: 2 | B6: ="c("&$A6&","&B$4&")" -> c(2,1) | C6: c(2,2) | D6: c(2,3) | E6: c(2,4) | F6: c(2,5) | M6: 2 | N6: 110 | O6: 160 | P6: 175 | Q6: 205 | R6: 210 | Y6: 2 | AA6: =O6/N6 -> 1.454545455 | AB6: 1.09375 | AC6: 1.171428571 | AD6: 1.024390244
A7: 3 | B7: c(3,1) | C7: c(3,2) | D7: c(3,3) | E7: c(3,4) | M7: 3 | N7: 105 | O7: 165 | P7: 190 | Q7: 210 | Y7: 3 | AA7: 1.571428571 | AB7: 1.151515152 | AC7: 1.105263158
A8: 4 | B8: c(4,1) | C8: c(4,2) | D8: c(4,3) | M8: 4 | N8: 120 | O8: 155 | P8: 185 | Y8: 4 | AA8: 1.291666667 | AB8: 1.193548387
A9: 5 | B9: c(5,1) | C9: c(5,2) | M9: 5 | N9: 130 | O9: 170 | Y9: 5 | AA9: 1.307692308
A10: 6 | B10: c(6,1) | M10: 6 | N10: 125 | Y10: 6
Z11: Average: | AA11: =AVERAGE(AA5:AA9) -> 1.440856074 | AB11: =AVERAGE(AB5:AB9) -> 1.143036718 | AC11: =AVERAGE(AC5:AC9) -> 1.151054106 | AD11: =AVERAGE(AD5:AD9) -> 1.049695122 | AE11: =AVERAGE(AE5:AE9) -> 1.023255814
A12: Incremental Data | M12: Incremental Data
B13: 1 | C13: 2 | D13: 3 | E13: 4 | F13: 5 | G13: 6 | N13: 1 | O13: 2 | P13: 3 | Q13: 4 | R13: 5 | S13: 6
A14: 1 | B14: ="q("&$A14&","&B$4&")" -> q(1,1) | C14: ="q("&$A14&","&C$4&")" -> q(1,2) | D14: q(1,3) | E14: q(1,4) | F14: q(1,5) | G14: ="q("&$A14&","&G$4&")" -> q(1,6) | M14: 1 | N14: =N5 -> 95 | O14: =O5-N5 -> 55 | P14: =P5-O5 -> 20 | Q14: =Q5-P5 -> 30 | R14: =R5-Q5 -> 15 | S14: =S5-R5 -> 5
A15: 2 | B15: q(2,1) | C15: q(2,2) | D15: q(2,3) | E15: q(2,4) | F15: q(2,5) | M15: 2 | N15: 110 | O15: =O6-N6 -> 50 | P15: =P6-O6 -> 15 | Q15: =Q6-P6 -> 30 | R15: =R6-Q6 -> 5
A16: 3 | B16: q(3,1) | C16: q(3,2) | D16: q(3,3) | E16: q(3,4) | M16: 3 | N16: 105 | O16: =O7-N7 -> 60 | P16: =P7-O7 -> 25 | Q16: =Q7-P7 -> 20
A17: 4 | B17: q(4,1) | C17: q(4,2) | D17: q(4,3) | M17: 4 | N17: 120 | O17: =O8-N8 -> 35 | P17: =P8-O8 -> 30
A18: 5 | B18: q(5,1) | C18: q(5,2) | M18: 5 | N18: 130 | O18: =O9-N9 -> 40
A19: 6 | B19: q(6,1) | M19: 6 | N19: 125
A21: Log-Link of Incremental Data | M21: Log-Link of Incremental Data
B22: 1 | C22: 2 | D22: 3 | E22: 4 | F22: 5 | G22: 6 | N22: 1 | O22: 2 | P22: 3 | Q22: 4 | R22: 5 | S22: 6
A23: 1 | B23: ="ln[q("&$A23&","&B$4&")]" -> ln[q(1,1)] | C23: ="ln[q("&$A23&","&C$4&")]" -> ln[q(1,2)] | D23: ln[q(1,3)] | E23: ="ln[q("&$A23&","&E$4&")]" -> ln[q(1,4)] | F23: ="ln[q("&$A23&","&F$4&")]" -> ln[q(1,5)] | G23: ="ln[q("&$A23&","&G$4&")]" -> ln[q(1,6)] | M23: 1 | N23: =LN(N14) -> 4.553876892 | O23: =LN(O14) -> 4.007333185 | P23: 2.995732274 | Q23: =LN(Q14) -> 3.401197382 | R23: =LN(R14) -> 2.708050201 | S23: =LN(S14) -> 1.609437912
A24: 2 | B24: ln[q(2,1)] | C24: ln[q(2,2)] | D24: ln[q(2,3)] | E24: ln[q(2,4)] | F24: ln[q(2,5)] | M24: 2 | N24: 4.700480366 | O24: 3.912023005 | P24: 2.708050201 | Q24: =LN(Q15) -> 3.401197382 | R24: 1.609437912
A25: 3 | B25: ln[q(3,1)] | C25: ln[q(3,2)] | D25: ln[q(3,3)] | E25: ln[q(3,4)] | M25: 3 | N25: 4.65396035 | O25: 4.094344562 | P25: =LN(P16) -> 3.218875825 | Q25: =LN(Q16) -> 2.995732274
A26: 4 | B26: ln[q(4,1)] | C26: ln[q(4,2)] | D26: ln[q(4,3)] | M26: 4 | N26: 4.787491743 | O26: =LN(O17) -> 3.555348061 | P26: =LN(P17) -> 3.401197382
A27: 5 | B27: ln[q(5,1)] | C27: ln[q(5,2)] | M27: 5 | N27: 4.86753445 | O27: =LN(O18) -> 3.688879454
A28: 6 | B28: ln[q(6,1)] | M28: 6 | N28: 4.828313737
Z29: Model Parameters from Maximum Likelihood
A30: Design Matrix | N30: α1 | O30: α2 | P30: α3 | Q30: α4 | R30: α5 | S30: α6 | T30: β2 | V30: X x A | AA30: Actual | AC30: Estimate | AD30: Loglikelihood | AG30: Maximum Likelihood Steps:
A31: X | B31: 1 | C31: 0 | D31: 0 | E31: 0 | F31: 0 | G31: 0 | H31: 0 | L31: A | N31: 4.639230425 | O31: 4.614866027 | P31: 4.657106981 | Q31: 4.613379484 | R31: 4.702992768 | S31: 4.828311414 | T31: -0.6132845494 | V31: =SUMPRODUCT(B31:H31,$N$31:$T$31) -> 4.639230425 | Z31: q(1,1) | AA31: =N14 -> 95 | AB31: m1,1 | AC31: =EXP(V31) -> 103.4646931 | AD31: =IF($F$55=0,-(((AA31-AC31)^2)/2)-0.5*LN(2*PI()),IF($F$55=1,-AC31+LN(AC31)*AA31-GAMMALN(AA31+1),IF($F$55=2,-LN(AC31)-AA31/AC31,-0.5*(LN(2*PI())+3*LN(AA31))-(AA31-AC31)^2/(2*AC31^2*AA31)))) -> -3.552861592 | AF31: 1) | AG31: Enter Starting Values for vector A (Row 31)
B32: 0 | C32: 1 | D32: 0 | E32: 0 | F32: 0 | G32: 0 | H32: 0 | V32: =SUMPRODUCT(B32:H32,$N$31:$T$31) -> 4.614866027 | Z32: q(2,1) | AA32: =N15 -> 110 | AB32: m2,1 | AC32: =EXP(V32) -> 100.9742998 | AD32: =IF($F$55=0,-(((AA32-AC32)^2)/2)-0.5*LN(2*PI()),IF($F$55=1,-AC32+LN(AC32)*AA32-GAMMALN(AA32+1),IF($F$55=2,-LN(AC32)-AA32/AC32,-0.5*(LN(2*PI())+3*LN(AA32))-(AA32-AC32)^2/(2*AC32^2*AA32)))) -> -3.661813356 | AF32: 2) | AG32: Use Solver to Maximize Total Loglikelihood
B33: 0 | C33: 0 | D33: 1 | E33: 0 | F33: 0 | G33: 0 | H33: 0 | V33: =SUMPRODUCT(B33:H33,$N$31:$T$31) -> 4.657106981 | Z33: q(3,1) | AA33: =N16 -> 105 | AB33: m3,1 | AC33: 105.3309166 | AD33: -3.24723272
B34: 0 | C34: 0 | D34: 0 | E34: 1 | F34: 0 | G34: 0 | H34: 0 | V34: =SUMPRODUCT(B34:H34,$N$31:$T$31) -> 4.613379484 | Z34: q(4,1) | AA34: =N17 -> 120 | AB34: m4,1 | AC34: 100.8243086 | AD34: -5.031158577
B35: 0 | C35: 0 | D35: 0 | E35: 0 | F35: 1 | G35: 0 | H35: 0 | V35: =SUMPRODUCT(B35:H35,$N$31:$T$31) -> 4.702992768 | Z35: q(5,1) | AA35: =N18 -> 130 | AB35: m5,1 | AC35: 110.2767117 | AD35: -5.020477206
B36: 0 | C36: 0 | D36: 0 | E36: 0 | F36: 0 | G36: 1 | H36: 0 | V36: =SUMPRODUCT(B36:H36,$N$31:$T$31) -> 4.828311414 | Z36: q(6,1) | AA36: =N19 -> 125 | AB36: m6,1 | AC36: 124.9997096 | AD36: -3.333762067
B37: 1 | C37: 0 | D37: 0 | E37: 0 | F37: 0 | G37: 0 | H37: 1 | V37: =SUMPRODUCT(B37:H37,$N$31:$T$31) -> 4.025945876 | Z37: q(1,2) | AA37: =O14 -> 55 | AB37: m1,2 | AC37: 56.03328424 | AD37: -2.93370653
B38: 0 | C38: 1 | D38: 0 | E38: 0 | F38: 0 | G38: 0 | H38: 1 | V38: =SUMPRODUCT(B38:H38,$N$31:$T$31) -> 4.001581477 | Z38: q(2,2) | AA38: =O15 -> 50 | AB38: m2,2 | AC38: 54.68456408 | AD38: -3.083257168
B39: 0 | C39: 0 | D39: 1 | E39: 0 | F39: 0 | G39: 0 | H39: 1 | V39: =SUMPRODUCT(B39:H39,$N$31:$T$31) -> 4.043822431 | Z39: q(3,2) | AA39: =O16 -> 60 | AB39: m3,2 | AC39: 57.04397328 | AD39: -3.042800816
B40: 0 | C40: 0 | D40: 0 | E40: 1 | F40: 0 | G40: 0 | H40: 1 | V40: =SUMPRODUCT(B40:H40,$N$31:$T$31) -> 4.000094934 | Z40: q(4,2) | AA40: =O17 -> 35 | AB40: m4,2 | AC40: 54.60333351 | AD40: -6.736186418
B41: 0 | C41: 0 | D41: 0 | E41: 0 | F41: 1 | G41: 0 | H41: 1 | V41: =SUMPRODUCT(B41:H41,$N$31:$T$31) -> 4.089708219 | Z41: q(5,2) | AA41: =O18 -> 40 | AB41: m5,2 | AC41: 59.72246325 | AD41: -6.454774227
B42: 1 | C42: 0 | D42: 0 | E42: 0 | F42: 0 | G42: 0 | H42: 2 | V42: =SUMPRODUCT(B42:H42,$N$31:$T$31) -> 3.412661326 | Z42: q(1,3) | AA42: =P14 -> 20 | AB42: m1,3 | AC42: 30.34589722 | AD42: -4.428287157
B43: 0 | C43: 1 | D43: 0 | E43: 0 | F43: 0 | G43: 0 | H43: 2 | V43: =SUMPRODUCT(B43:H43,$N$31:$T$31) -> 3.388296928 | Z43: q(2,3) | AA43: =P15 -> 15 | AB43: m2,3 | AC43: 29.61547201 | AD43: -6.690289477
B44: 0 | C44: 0 | D44: 1 | E44: 0 | F44: 0 | G44: 0 | H44: 2 | V44: =SUMPRODUCT(B44:H44,$N$31:$T$31) -> 3.430537882 | Z44: q(3,3) | AA44: =P16 -> 25 | AB44: m3,3 | AC44: 30.89325521 | AD44: -3.13341338
B45: 0 | C45: 0 | D45: 0 | E45: 1 | F45: 0 | G45: 0 | H45: 2 | V45: =SUMPRODUCT(B45:H45,$N$31:$T$31) -> 3.386810385 | Z45: q(4,3) | AA45: =P17 -> 30 | AB45: m4,3 | AC45: 29.57148004 | AD45: -2.625404848
B46: 1 | C46: 0 | D46: 0 | E46: 0 | F46: 0 | G46: 0 | H46: 3 | V46: =SUMPRODUCT(B46:H46,$N$31:$T$31) -> 2.799376777 | Z46: q(1,4) | AA46: =Q14 -> 30 | AB46: m1,4 | AC46: 16.43440128 | AD46: -7.111334325
B47: 0 | C47: 1 | D47: 0 | E47: 0 | F47: 0 | G47: 0 | H47: 3 | V47: =SUMPRODUCT(B47:H47,$N$31:$T$31) -> 2.775012378 | Z47: q(2,4) | AA47: =Q15 -> 30 | AB47: m2,4 | AC47: 16.03882553 | AD47: -7.446690526
B48: 0 | C48: 0 | D48: 1 | E48: 0 | F48: 0 | G48: 0 | H48: 3 | V48: =SUMPRODUCT(B48:H48,$N$31:$T$31) -> 2.817253333 | Z48: q(3,4) | AA48: =Q16 -> 20 | AB48: m3,4 | AC48: 16.73083347 | AD48: -2.721383278
B49: 1 | C49: 0 | D49: 0 | E49: 0 | F49: 0 | G49: 0 | H49: 4 | V49: =SUMPRODUCT(B49:H49,$N$31:$T$31) -> 2.186092227 | Z49: q(1,5) | AA49: =R14 -> 15 | AB49: m1,5 | AC49: 8.900364467 | AD49: -4.008252442
B50: 0 | C50: 1 | D50: 0 | E50: 0 | F50: 0 | G50: 0 | H50: 4 | V50: =SUMPRODUCT(B50:H50,$N$31:$T$31) -> 2.161727829 | Z50: q(2,5) | AA50: =R15 -> 5 | AB50: m2,5 | AC50: 8.686132852 | AD50: -2.66498545
B51: 1 | C51: 0 | D51: 0 | E51: 0 | F51: 0 | G51: 0 | H51: 5 | V51: =SUMPRODUCT(B51:H51,$N$31:$T$31) -> 1.572807678 | Z51: q(1,6) | AA51: =S14 -> 5 | AB51: m1,6 | AC51: 4.820162677 | AD51: -1.74361603
A53: Model Parameters from Iteratively Weighted Least Squares | AA53: =COUNTIF(AA31:AA51,"<>0") -> 21 | AC53: Total | AD53: =SUM(AD31:AD51) -> -88.67168759
B54: Value | C54: t-Stat | D54: p-Value | F54: Error Distribution
A55: α1 | B55: =GLM!BT130 -> 4.639238365 | C55: =B55/SQRT(ScaleParameter*GLM!AN130) -> 28.81090004 | D55: =_xlfn.T.DIST.2T(ABS(C55),$T$113) -> 7.287134732e-14 | E55: z = | F55: 1 | AJ55: 0 | AK55: Normal
A56: α2 | B56: =GLM!BT131 -> 4.61487167 | C56: =(B56-B55)/SQRT(ScaleParameter*GLM!AO131) -> -0.1508497266 | D56: =_xlfn.T.DIST.2T(ABS(C56),$T$113) -> 0.8822462224 | F56: =VLOOKUP(F55,ErrorTable,2) -> Poisson | AJ56: 1 | AK56: Poisson
A57: α3 | B57: =GLM!BT132 -> 4.657113806 | C57: =(B57-B55)/SQRT(ScaleParameter*GLM!AP132) -> 0.1130657018 | D57: 0.9115837695 | AJ57: 2 | AK57: Gamma
A58: α4 | B58: =GLM!BT133 -> 4.613385726 | C58: =(B58-B55)/SQRT(ScaleParameter*GLM!AQ133) -> -0.1583045158 | D58: 0.8764776111 | AJ58: 3 | AK58: Inverse Gaussian
A59: α5 | B59: =GLM!BT134 -> 4.702998477 | C59: =(B59-B55)/SQRT(ScaleParameter*GLM!AR134) -> 0.3834359553 | D59: 0.7071562289
A60: α6 | B60: =GLM!BT135 -> 4.828313737 | C60: =(B60-B55)/SQRT(ScaleParameter*GLM!AS135) -> 0.9855467848 | D60: 0.3410827549
A61: β2 | B61: =GLM!BT136 -> -0.6132869854 | C61: =B61/SQRT(ScaleParameter*GLM!AT136) -> -8.884657247 | D61: 3.957760453e-07
A67: Log-Link of Fitted Values | M67: Log-Link of Fitted Values
B68: 1 | C68: 2 | D68: 3 | E68: 4 | F68: 5 | G68: 6 | N68: 1 | O68: 2 | P68: 3 | Q68: 4 | R68: 5 | S68: 6
A69: 1 | B69: ln[m1,1] | C69: ln[m1,2] | D69: ln[m1,3] | E69: ln[m1,4] | F69: ln[m1,5] | G69: ln[m1,6] | M69: 1 | N69: =B55 -> 4.639238365 | O69: =$B$55+$B$61 -> 4.02595138 | P69: =$B$55+$B$61*2 -> 3.412664395 | Q69: =$B$55+$B$61*3 -> 2.799377409 | R69: =$B$55+$B$61*4 -> 2.186090424 | S69: =$B$55+$B$61*5 -> 1.572803439
A70: 2 | B70: ln[m2,1] | C70: ln[m2,2] | D70: ln[m2,3] | E70: ln[m2,4] | F70: ln[m2,5] | M70: 2 | N70: 4.61487167 | O70: =$B$56+$B$61 -> 4.001584685 | P70: =$B$56+$B$61*2 -> 3.388297699 | Q70: =$B$56+$B$61*3 -> 2.775010714 | R70: =$B$56+$B$61*4 -> 2.161723729
A71: 3 | B71: ln[m3,1] | C71: ln[m3,2] | D71: ln[m3,3] | E71: ln[m3,4] | M71: 3 | N71: 4.657113806 | O71: =$B$57+$B$61 -> 4.04382682 | P71: =$B$57+$B$61*2 -> 3.430539835 | Q71: =$B$57+$B$61*3 -> 2.817252849
A72: 4 | B72: ln[m4,1] | C72: ln[m4,2] | D72: ln[m4,3] | M72: 4 | N72: 4.613385726 | O72: =$B$58+$B$61 -> 4.000098741 | P72: =$B$58+$B$61*2 -> 3.386811756
A73: 5 | B73: ln[m5,1] | C73: ln[m5,2] | M73: 5 | N73: 4.702998477 | O73: =$B$59+$B$61 -> 4.089711492
A74: 6 | B74: ln[m6,1] | M74: 6 | N74: 4.828313737
A76: Fitted Incremental Values | M76: Fitted Incremental Values | Y76: Fitted Cumulative Values
B77: 1 | C77: 2 | D77: 3 | E77: 4 | F77: 5 | G77: 6 | N77: 1 | O77: 2 | P77: 3 | Q77: 4 | R77: 5 | S77: 6 | Z77: 1 | AA77: 2 | AB77: 3 | AC77: 4 | AD77: 5 | AE77: 6
A78: 1 | B78: m1,1 | C78: m1,2 | D78: m1,3 | E78: m1,4 | F78: m1,5 | G78: m1,6 | M78: 1 | N78: =EXP(N69) -> 103.4655147 | O78: =EXP(O69) -> 56.03359267 | P78: 30.34599034 | Q78: =EXP(Q69) -> 16.43441167 | R78: =EXP(R69) -> 8.900348417 | S78: =EXP(S69) -> 4.820142243 | Y78: 1 | Z78: =N78 -> 103.4655147 | AA78: =Z78+O78 -> 159.4991073 | AB78: =AA78+P78 -> 189.8450977 | AC78: =AB78+Q78 -> 206.2795093 | AD78: =AC78+R78 -> 215.1798578 | AE78: =AD78+S78 -> 220
A79: 2 | B79: m2,1 | C79: m2,2 | D79: m2,3 | E79: m2,4 | F79: m2,5 | M79: 2 | N79: 100.9748696 | O79: 54.68473947 | P79: 29.61549486 | Q79: =EXP(Q70) -> 16.03879883 | R79: 8.686097235 | Y79: 2 | Z79: 100.9748696 | AA79: =Z79+O79 -> 155.6596091 | AB79: =AA79+P79 -> 185.2751039 | AC79: =AB79+Q79 -> 201.3139028 | AD79: =AC79+R79 -> 210
A80: 3 | B80: m3,1 | C80: m3,2 | D80: m3,3 | E80: m3,4 | M80: 3 | N80: 105.3316354 | O80: 57.04422363 | P80: =EXP(P71) -> 30.89331554 | Q80: =EXP(Q71) -> 16.73082539 | Y80: 3 | Z80: 105.3316354 | AA80: =Z80+O80 -> 162.3758591 | AB80: =AA80+P80 -> 193.2691746 | AC80: =AB80+Q80 -> 210
A81: 4 | B81: m4,1 | C81: m4,2 | D81: m4,3 | M81: 4 | N81: 100.824938 | O81: =EXP(O72) -> 54.60354137 | P81: =EXP(P72) -> 29.57152058 | Y81: 4 | Z81: 100.824938 | AA81: =Z81+O81 -> 155.4284794 | AB81: =AA81+P81 -> 185
A82: 5 | B82: m5,1 | C82: m5,2 | M82: 5 | N82: 110.2773413 | O82: =EXP(O73) -> 59.72265873 | Y82: 5 | Z82: 110.2773413 | AA82: =Z82+O82 -> 170
A83: 6 | B83: m6,1 | M83: 6 | N83: 125 | Y83: 6 | Z83: 125
A85: Unscaled Pearson residuals | M85: Unscaled Pearson Residuals | Y85: Fitted Age-to-Age Factors | AI85: Age-to-Age Factor Differences
B86: 1 | C86: 2 | D86: 3 | E86: 4 | F86: 5 | G86: 6 | N86: 1 | O86: 2 | P86: 3 | Q86: 4 | R86: 5 | S86: 6 | Z86: 1 | AA86: 2 | AB86: 3 | AC86: 4 | AD86: 5 | AE86: 6 | AJ86: 1 | AK86: 2 | AL86: 3 | AM86: 4 | AN86: 5 | AO86: 6
A87: 1 | B87: r1,1 | C87: r1,2 | D87: r1,3 | E87: r1,4 | F87: r1,5 | G87: r1,6 | M87: 1 | N87: =(N14-N78)/SQRT(N78^$F$55) -> -0.8322533553 | O87: =(O14-O78)/SQRT(O78^$F$55) -> -0.1380782227 | P87: =(P14-P78)/SQRT(P78^$F$55) -> -1.878111668 | Q87: =(Q14-Q78)/SQRT(Q78^$F$55) -> 3.346274413 | R87: =(R14-R78)/SQRT(R78^$F$55) -> 2.044567836 | S87: =(S14-S78)/SQRT(S78^$F$55) -> 0.08192175484 | Y87: 1 | AA87: =AA78/Z78 -> 1.541567815 | AB87: =AB78/AA78 -> 1.190258058 | AC87: =AC78/AB78 -> 1.08656748 | AD87: =AD78/AC78 -> 1.043147031 | AE87: =AE78/AD78 -> 1.022400527 | AI87: 1 | AK87: =AA5-AA87 -> 0.03737955367 | AL87: =AB5-AB87 -> -0.05692472419 | AM87: =AC5-AC87 -> 0.08990310835 | AN87: =AD5-AD87 -> 0.03185296884 | AO87: =AE5-AE87 -> 0.0008552868184
A88: 2 | B88: r2,1 | C88: r2,2 | D88: r2,3 | E88: r2,4 | F88: r2,5 | M88: 2 | N88: =(N15-N79)/SQRT(N79^$F$55) -> 0.8981457828 | O88: =(O15-O79)/SQRT(O79^$F$55) -> -0.6335083892 | P88: =(P15-P79)/SQRT(P79^$F$55) -> -2.685678531 | Q88: =(Q15-Q79)/SQRT(Q79^$F$55) -> 3.486076111 | R88: =(R15-R79)/SQRT(R79^$F$55) -> -1.250703727 | Y88: 2 | AA88: =AA79/Z79 -> 1.541567815 | AB88: 1.190258058 | AC88: 1.08656748 | AD88: 1.043147031 | AI88: 2 | AK88: =AA6-AA88 -> -0.08702236021 | AL88: =AB6-AB88 -> -0.09650805752 | AM88: =AC6-AC88 -> 0.08486109154 | AN88: =AD6-AD88 -> -0.01875678726
A89: 3 | B89: r3,1 | C89: r3,2 | D89: r3,3 | E89: r3,4 | M89: 3 | N89: =(N16-N80)/SQRT(N80^$F$55) -> -0.03231331601 | O89: =(O16-O80)/SQRT(O80^$F$55) -> 0.3913503581 | P89: =(P16-P80)/SQRT(P80^$F$55) -> -1.06029676 | Q89: =(Q16-Q80)/SQRT(Q80^$F$55) -> 0.7992440918 | Y89: 3 | AA89: 1.541567815 | AB89: 1.190258058 | AC89: 1.08656748 | AI89: 3 | AK89: =AA7-AA89 -> 0.02986075668 | AL89: =AB7-AB89 -> -0.03874290601 | AM89: =AC7-AC89 -> 0.01869567801
A90: 4 | B90: r4,1 | C90: r4,2 | D90: r4,3 | M90: 4 | N90: =(N17-N81)/SQRT(N81^$F$55) -> 1.909645676 | O90: =(O17-O81)/SQRT(O81^$F$55) -> -2.652919845 | P90: =(P17-P81)/SQRT(P81^$F$55) -> 0.07879399862 | Y90: 4 | AA90: 1.541567815 | AB90: 1.190258058 | AI90: 4 | AK90: =AA8-AA90 -> -0.2499011481 | AL90: =AB8-AB90 -> 0.003290329573
A91: 5 | B91: r5,1 | C91: r5,2 | M91: 5 | N91: =(N18-N82)/SQRT(N82^$F$55) -> 1.878115585 | O91: =(O18-O82)/SQRT(O82^$F$55) -> -2.552089456 | Y91: 5 | AA91: 1.541567815 | AI91: 5 | AK91: =AA9-AA91 -> -0.2338755071
A92: 6 | B92: r6,1 | M92: 6 | N92: =(N19-N83)/SQRT(N83^$F$55) -> -3.813172459e-15 | Y92: 6 | AI92: 6
A94: Hat Matrix Factors | M94: Hat Matrix Factors
B95: 1 | C95: 2 | D95: 3 | E95: 4 | F95: 5 | G95: 6 | N95: 1 | O95: 2 | P95: 3 | Q95: 4 | R95: 5 | S95: 6
A96: 1 | B96: fH1,1 | C96: fH1,2 | D96: fH1,3 | E96: fH1,4 | F96: fH1,5 | G96: fH1,6 | M96: 1 | N96: ='Hat Matrix'!A49 -> 1.548776844 | O96: ='Hat Matrix'!G55 -> 1.158364858 | P96: ='Hat Matrix'!L60 -> 1.096156949 | Q96: ='Hat Matrix'!P64 -> 1.078969219 | R96: ='Hat Matrix'!S67 -> 1.067206044 | S96: ='Hat Matrix'!U69 -> 1.054529624
A97: 2 | B97: fH2,1 | C97: fH2,2 | D97: fH2,3 | E97: fH2,4 | F97: fH2,5 | M97: 2 | N97: ='Hat Matrix'!B50 -> 1.52971323 | O97: ='Hat Matrix'!H56 -> 1.162970036 | P97: ='Hat Matrix'!M61 -> 1.101419353 | Q97: ='Hat Matrix'!Q65 -> 1.082786713 | R97: ='Hat Matrix'!T68 -> 1.069509578
A98: 3 | B98: fH3,1 | C98: fH3,2 | D98: fH3,3 | E98: fH3,4 | M98: 3 | N98: ='Hat Matrix'!C51 -> 1.52898957 | O98: ='Hat Matrix'!I57 -> 1.173541254 | P98: ='Hat Matrix'!N62 -> 1.113043937 | Q98: ='Hat Matrix'!R66 -> 1.093150812
A99: 4 | B99: fH4,1 | C99: fH4,2 | D99: fH4,3 | M99: 4 | N99: ='Hat Matrix'!D52 -> 1.551319442 | O99: ='Hat Matrix'!J58 -> 1.198265149 | P99: ='Hat Matrix'!O63 -> 1.131267465
A100: 5 | B100: fH5,1 | C100: fH5,2 | M100: 5 | N100: ='Hat Matrix'!E53 -> 1.722055644 | O100: ='Hat Matrix'!K59 -> 1.267282985
A101: 6 | B101: fH6,1 | M101: 6 | N101: ='Hat Matrix'!F54 -> 0
A103: Standardized Pearson Residuals | M103: Standardized Pearson Residuals
B104: 1 | C104: 2 | D104: 3 | E104: 4 | F104: 5 | G104: 6 | N104: 1 | O104: 2 | P104: 3 | Q104: 4 | R104: 5 | S104: 6
A105: 1 | B105: rH1,1 | C105: rH1,2 | D105: rH1,3 | E105: rH1,4 | F105: rH1,5 | G105: rH1,6 | M105: 1 | N105: =N87*N96 -> -1.288974725 | O105: =O87*O96 -> -0.1599449608 | P105: -2.058705157 | Q105: 3.61052709 | R105: 2.181975152 | S105: =S87*S96 -> 0.08638891736
A106: 2 | B106: rH2,1 | C106: rH2,2 | D106: rH2,3 | E106: rH2,4 | F106: rH2,5 | M106: 2 | N106: 1.373905487 | O106: -0.736751274 | P106: -2.95805831 | Q106: 3.774676893 | R106: -1.337639615
A107: 3 | B107: rH3,1 | C107: rH3,2 | D107: rH3,3 | E107: rH3,4 | M107: 3 | N107: -0.04940672315 | O107: 0.45926579 | P107: -1.18015688 | Q107: 0.8736943283
A108: 4 | B108: rH4,1 | C108: rH4,2 | D108: rH4,3 | M108: 4 | N108: 2.962470464 | O108: -3.178901393 | P108: 0.08913708706
A109: 5 | B109: rH5,1 | C109: rH5,2 | M109: 5 | N109: 3.234219543 | O109: -3.234219543
A110: 6 | B110: rH6,1 | M110: 6 | N110: 0
M112: Pearson chi-squared statistic | T112: =SUMSQ(N87:S92) -> 64.41002744
M113: Degrees of freedom | P113: =COUNT(N14:S19) -> 21 | Q113: - | R113: =COUNT(B55:B65) -> 7 | S113: = | T113: =P113-R113 -> 14
M114: Scale Parameter | T114: =T112/T113 -> 4.600716246
M115: Degrees of Freedom Adjustment Factor | T115: =SQRT(P113/T113) -> 1.224744871
M116: Number of Non-Zero Residuals | T116: =COUNTIF(N105:N110,"<>0")+COUNTIF(O105:O109,"<>0")+COUNTIF(P105:P108,"<>0")+COUNTIF(Q105:Q107,"<>0")+COUNTIF(R105:R106,"<>0")+COUNTIF(S105,"<>0") -> 20
M118: Random Selections
N119: 1 | O119: 2 | P119: 3 | Q119: 4 | R119: 5 | S119: 6 | Y119: Residual Lookup Table
M120: 1 | N120: =RANDBETWEEN(1,NonZeroCount) -> 3 | O120: 17 | P120: 16 | Q120: 14 | R120: 15 | S120: 4 | Y120: 1 | Z120: =N105 -> -1.288974725 | AA120: =Z120 -> -1.288974725
M121: 2 | N121: =RANDBETWEEN(1,NonZeroCount) -> 4 | O121: =RANDBETWEEN(1,NonZeroCount) -> 14 | P121: =RANDBETWEEN(1,NonZeroCount) -> 6 | Q121: =RANDBETWEEN(1,NonZeroCount) -> 3 | R121: =RANDBETWEEN(1,NonZeroCount) -> 18 | Y121: 2 | Z121: 1.373905487 | AA121: =Z121 -> 1.373905487
M122: 3 | N122: =RANDBETWEEN(1,NonZeroCount) -> 16 | O122: =RANDBETWEEN(1,NonZeroCount) -> 4 | P122: =RANDBETWEEN(1,NonZeroCount) -> 12 | Q122: =RANDBETWEEN(1,NonZeroCount) -> 1 | Y122: 3 | Z122: -0.04940672315 | AA122: =Z122 -> -0.04940672315
M123: 4 | N123: =RANDBETWEEN(1,NonZeroCount) -> 13 | O123: =RANDBETWEEN(1,NonZeroCount) -> 17 | P123: =RANDBETWEEN(1,NonZeroCount) -> 20 | Y123: 4 | Z123: 2.962470464 | AA123: =Z123 -> 2.962470464
M124: 5 | N124: =RANDBETWEEN(1,NonZeroCount) -> 11 | O124: =RANDBETWEEN(1,NonZeroCount) -> 18 | Y124: 5 | Z124: 3.234219543 | AA124: =Z124 -> 3.234219543
M125: 6 | N125: =RANDBETWEEN(1,NonZeroCount) -> 12 | Y125: 6 | Z125: 0 | AA125: =Z126 -> -0.1599449608
Y126: 7 | Z126: =O105 -> -0.1599449608 | AA126: =Z127 -> -0.736751274
M127: Random Residuals | Y127: 8 | Z127: =O106 -> -0.736751274 | AA127: 0.45926579
N128: 1 | O128: 2 | P128: 3 | Q128: 4 | R128: 5 | S128: 6 | Y128: 9 | Z128: =O107 -> 0.45926579 | AA128: -3.178901393
M129: 1 | N129: =VLOOKUP(N120,$Y$120:$AA$140,3) -> -0.04940672315 | O129: =VLOOKUP(O120,$Y$120:$AA$140,3) -> 0.8736943283 | P129: 3.774676893 | Q129: 0.08913708706 | R129: 3.61052709 | S129: =VLOOKUP(S120,$Y$120:$AA$140,3) -> 2.962470464 | Y129: 10 | Z129: =O108 -> -3.178901393 | AA129: -3.234219543
M130: 2 | N130: 2.962470464 | O130: 0.08913708706 | P130: =VLOOKUP(P121,$Y$120:$AA$140,3) -> -0.1599449608 | Q130: -0.04940672315 | R130: 2.181975152 | Y130: 11 | Z130: =O109 -> -3.234219543 | AA130: -2.058705157
M131: 3 | N131: 3.774676893 | O131: 2.962470464 | P131: -2.95805831 | Q131: -1.288974725 | Y131: 12 | Z131: =P105 -> -2.058705157 | AA131: -2.95805831
M132: 4 | N132: -1.18015688 | O132: 0.8736943283 | P132: 0.08638891736 | Y132: 13 | Z132: =P106 -> -2.95805831 | AA132: -1.18015688
M133: 5 | N133: -2.058705157 | O133: 2.181975152 | Y133: 14 | Z133: =P107 -> -1.18015688 | AA133: 0.08913708706
M134: 6 | N134: -2.95805831 | Y134: 15 | Z134: =P108 -> 0.08913708706 | AA134: 3.61052709
Y135: 16 | Z135: =Q105 -> 3.61052709 | AA135: 3.774676893
A136: Sample Incremental Triangle | M136: Sample Incremental Triangle | Y136: 17 | Z136: =Q106 -> 3.774676893 | AA136: 0.8736943283
B137: 1 | C137: 2 | D137: 3 | E137: 4 | F137: 5 | G137: 6 | N137: 1 | O137: 2 | P137: 3 | Q137: 4 | R137: 5 | S137: 6 | Y137: 18 | Z137: =Q107 -> 0.8736943283 | AA137: 2.181975152
A138: 1 | B138: ="q'("&$A138&","&B$4&")" -> q'(1,1) | C138: ="q'("&$A138&","&C$4&")" -> q'(1,2) | D138: q'(1,3) | E138: ="q'("&$A138&","&E$4&")" -> q'(1,4) | F138: ="q'("&$A138&","&F$4&")" -> q'(1,5) | G138: ="q'("&$A138&","&G$4&")" -> q'(1,6) | M138: 1 | N138: =N78+N129*SQRT(N78^$F$55) -> 102.9629594 | O138: =O78+O129*SQRT(O78^$F$55) -> 62.57368307 | P138: =P78+P129*SQRT(P78^$F$55) -> 51.13962648 | Q138: =Q78+Q129*SQRT(Q78^$F$55) -> 16.79576788 | R138: =R78+R129*SQRT(R78^$F$55) -> 19.67179698 | S138: =S78+S129*SQRT(S78^$F$55) -> 11.32419352 | Y138: 19 | Z138: =R105 -> 2.181975152 | AA138: -1.337639615
A139: 2 | B139: q'(2,1) | C139: q'(2,2) | D139: q'(2,3) | E139: q'(2,4) | F139: q'(2,5) | M139: 2 | N139: =N79+N130*SQRT(N79^$F$55) -> 130.7436251 | O139: =O79+O130*SQRT(O79^$F$55) -> 55.34390049 | P139: =P79+P130*SQRT(P79^$F$55) -> 28.74507246 | Q139: =Q79+Q130*SQRT(Q79^$F$55) -> 15.84093247 | R139: =R79+R130*SQRT(R79^$F$55) -> 15.1168549 | Y139: 20 | Z139: =R106 -> -1.337639615 | AA139: 0.08638891736
A140: 3 | B140: q'(3,1) | C140: q'(3,2) | D140: q'(3,3) | E140: q'(3,4) | M140: 3 | N140: =N80+N131*SQRT(N80^$F$55) -> 144.071598 | O140: =O80+O131*SQRT(O80^$F$55) -> 79.4190599 | P140: =P80+P131*SQRT(P80^$F$55) -> 14.45190814 | Q140: =Q80+Q131*SQRT(Q80^$F$55) -> 11.45848932 | Y140: 21 | Z140: =S105 -> 0.08638891736
A141: 4 | B141: q'(4,1) | C141: q'(4,2) | D141: q'(4,3) | M141: 4 | N141: =N81+N132*SQRT(N81^$F$55) -> 88.97479141 | O141: =O81+O132*SQRT(O81^$F$55) -> 61.05963651 | P141: =P81+P132*SQRT(P81^$F$55) -> 30.04130094
A142: 5 | B142: q'(5,1) | C142: q'(5,2) | M142: 5 | N142: =N82+N133*SQRT(N82^$F$55) -> 88.65825693 | O142: =O82+O133*SQRT(O82^$F$55) -> 76.58505796
A143: 6 | B143: q'(6,1) | M143: 6 | N143: =N83+N134*SQRT(N83^$F$55) -> 91.92790268
A145: Sample Cumulative Triangle | M145: Sample Triangle Fitted Values | Y145: Sample Fitted Cumulative Triangle
B146: 1 | C146: 2 | D146: 3 | E146: 4 | F146: 5 | G146: 6 | N146: 1 | O146: 2 | P146: 3 | Q146: 4 | R146: 5 | S146: 6 | Z146: 1 | AA146: 2 | AB146: 3 | AC146: 4 | AD146: 5 | AE146: 6
A147: 1 | B147: ="c'("&$A147&","&B$4&")" -> c'(1,1) | C147: ="c'("&$A147&","&C$4&")" -> c'(1,2) | D147: c'(1,3) | E147: ="c'("&$A147&","&E$4&")" -> c'(1,4) | F147: ="c'("&$A147&","&F$4&")" -> c'(1,5) | G147: ="c'("&$A147&","&G$4&")" -> c'(1,6) | M147: 1 | N147: =EXP($B155) -> 119.7933628 | O147: =EXP($B155+$B$161) -> 67.2267056 | P147: =EXP($B155+(2*$B$161)) -> 37.72688102 | Q147: =EXP($B155+(3*$B$161)) -> 21.17190689 | R147: =EXP($B155+(4*$B$161)) -> 11.88143916 | S147: =EXP($B155+(5*$B$161)) -> 6.667731781 | Y147: 1 | Z147: =N147 -> 119.7933628 | AA147: =O147+Z147 -> 187.0200684 | AB147: =P147+AA147 -> 224.7469494 | AC147: =Q147+AB147 -> 245.9188563 | AD147: =R147+AC147 -> 257.8002955 | AE147: =S147+AD147 -> 264.4680273
A148: 2 | B148: c'(2,1) | C148: c'(2,2) | D148: c'(2,3) | E148: c'(2,4) | F148: c'(2,5) | M148: 2 | N148: 114.2126574 | O148: =EXP($B156+$B$161) -> 64.09487565 | P148: =EXP($B156+(2*$B$161)) -> 35.96933281 | Q148: =EXP($B156+(3*$B$161)) -> 20.18559035 | R148: =EXP($B156+(4*$B$161)) -> 11.32792926 | Y148: 2 | Z148: 114.2126574 | AA148: =O148+Z148 -> 178.307533 | AB148: 214.2768658 | AC148: 234.4624562 | AD148: 245.7903854
A149: 3 | B149: c'(3,1) | C149: c'(3,2) | D149: c'(3,3) | E149: c'(3,4) | M149: 3 | N149: 121.489631 | O149: =EXP($B157+$B$161) -> 68.17863247 | P149: =EXP($B157+(2*$B$161)) -> 38.26109181 | Q149: =EXP($B157+(3*$B$161)) -> 21.47170006 | Y149: 3 | Z149: 121.489631 | AA149: 189.6682634 | AB149: 227.9293553 | AC149: 249.4010553
A150: 4 | B150: c'(4,1) | C150: c'(4,2) | D150: c'(4,3) | M150: 4 | N150: 95.9829585 | O150: =EXP($B158+$B$161) -> 53.86457098 | P150: =EXP($B158+(2*$B$161)) -> 30.22819938 | Y150: 4 | Z150: 95.9829585 | AA150: 149.8475295 | AB150: 180.0757289
A151: 5 | B151: c'(5,1) | C151: c'(5,2) | M151: 5 | N151: 105.844536 | O151: =EXP($B159+$B$161) -> 59.39877884 | Y151: 5 | Z151: 105.844536 | AA151: 165.2433149
A152: 6 | B152: c'(6,1) | M152: 6 | N152: 91.92790268 | Y152: 6 | Z152: 91.92790268
A154: Sample Data Parameters | Y154: Sample Fitted Age-to-Age Factors
A155: α1 | B155: ='GLM 2'!BT130 -> 4.785768282 | Z155: 1 | AA155: 2 | AB155: 3 | AC155: 4 | AD155: 5 | AE155: 6
A156: α2 | B156: ='GLM 2'!BT131 -> 4.738062126 | Y156: 1 | AA156: =AA147/Z147 -> 1.561188901 | AB156: =AB147/AA147 -> 1.201726378 | AC156: =AC147/AB147 -> 1.094203312 | AD156: =AD147/AC147 -> 1.04831447 | AE156: =AE147/AD147 -> 1.025863942
A157: α3 | B157: ='GLM 2'!BT132 -> 4.799828917 | Y157: 2 | AA157: =AA148/Z148 -> 1.561188901 | AB157: =AB148/AA148 -> 1.201726378 | AC157: =AC148/AB148 -> 1.094203312 | AD157: =AD148/AC148 -> 1.04831447
A158: α4 | B158: ='GLM 2'!BT133 -> 4.56417066 | Y158: 3 | AA158: =AA149/Z149 -> 1.561188901 | AB158: =AB149/AA149 -> 1.201726378 | AC158: =AC149/AB149 -> 1.094203312
A159: α5 | B159: ='GLM 2'!BT134 -> 4.661971376 | Y159: 4 | AA159: =AA150/Z150 -> 1.561188901 | AB159: =AB150/AA150 -> 1.201726378
A160: α6 | B160: ='GLM 2'!BT135 -> 4.521004603 | Y160: 5 | AA160: =AA151/Z151 -> 1.561188901
A161: β2 | B161: ='GLM 2'!BT136 -> -0.5776977085 | Y161: 6
M165: Projected Incremental Data | U165: Point
N166: 1 | O166: 2 | P166: 3 | Q166: 4 | R166: 5 | S166: 6 | U166: Estimate
M167: 1
M168: 2 | S168: =EXP($B156+(5*$B$161)) -> 6.357108169 | U168: =SUM(N168:S168) -> 6.357108169
M169: 3 | R169: =EXP($B157+(4*$B$161)) -> 12.04967975 | S169: =EXP($B157+(5*$B$161)) -> 6.762146537 | U169: =SUM(N169:S169) -> 18.81182629
M170: 4 | Q170: =EXP($B158+(3*$B$161)) -> 16.96372998 | R170: =EXP($B158+(4*$B$161)) -> 9.519856983 | S170: =EXP($B158+(5*$B$161)) -> 5.342438076 | U170: =SUM(N170:S170) -> 31.82602504
M171: 5 | P171: =EXP($B159+(2*$B$161)) -> 33.33393541 | Q171: =EXP($B159+(3*$B$161)) -> 18.70663457 | R171: =EXP($B159+(4*$B$161)) -> 10.49795569 | S171: =EXP($B159+(5*$B$161)) -> 5.891336216 | U171: =SUM(N171:S171) -> 68.42986189
M172: 6 | O172: =EXP($B160+$B$161) -> 51.58891866 | P172: =EXP($B160+(2*$B$161)) -> 28.95112856 | Q172: =EXP($B160+(3*$B$161)) -> 16.24705201 | R172: =EXP($B160+(4*$B$161)) -> 9.11766526 | S172: =EXP($B160+(5*$B$161)) -> 5.116732545 | U172: =SUM(N172:S172) -> 111.021497
U173: =SUM(U168:U172) -> 236.4463184
M174: Random Values
N175: 1 | O175: 2 | P175: 3 | Q175: 4 | R175: 5 | S175: 6
M176: 1
M177: 2 | S177: =RAND() -> 0.9378277805
M178: 3 | R178: 0.6544127006 | S178: 0.4864810848
M179: 4 | Q179: 0.6052097086 | R179: 0.2327990978 | S179: 0.295273351
M180: 5 | P180: 0.8237926435 | Q180: 0.8523512076 | R180: 0.1798096143 | S180: 0.2111737911
M181: 6 | O181: =RAND() -> 0.9576520315 | P181: 0.709871678 | Q181: 0.8631164492 | R181: 0.2609004835 | S181: 0.5723228962
M183: Incremental Data w/ Process Variance | U183: Possible
N184: 1 | O184: 2 | P184: 3 | Q184: 4 | R184: 5 | S184: 6 | U184: Outcome
M185: 1
M186: 2 | S186: =GAMMAINV(S177,S168/ScaleParameter,ScaleParameter) -> 15.92802731 | U186: =SUM(N186:S186) -> 15.92802731
M187: 3 | R187: =GAMMAINV(R178,R169/ScaleParameter,ScaleParameter) -> 13.53391698 | S187: =GAMMAINV(S178,S169/ScaleParameter,ScaleParameter) -> 5.143944281 | U187: =SUM(N187:S187) -> 18.67786126
M188: 4 | Q188: =GAMMAINV(Q179,Q170/ScaleParameter,ScaleParameter) -> 17.79826728 | R188: =GAMMAINV(R179,R170/ScaleParameter,ScaleParameter) -> 4.435183195 | S188: =GAMMAINV(S179,S170/ScaleParameter,ScaleParameter) -> 2.10939377 | U188: =SUM(N188:S188) -> 24.34284425
M189: 5 | P189: =GAMMAINV(P180,P171/ScaleParameter,ScaleParameter) -> 44.37678104 | Q189: =GAMMAINV(Q180,Q171/ScaleParameter,ScaleParameter) -> 28.17549919 | R189: =GAMMAINV(R180,R171/ScaleParameter,ScaleParameter) -> 4.388305983 | S189: =GAMMAINV(S180,S171/ScaleParameter,ScaleParameter) -> 1.805237674 | U189: =SUM(N189:S189) -> 78.74582388
M190: 6 | O190: =GAMMAINV(O181,O172/ScaleParameter,ScaleParameter) -> 80.8956737 | P190: =GAMMAINV(P181,P172/ScaleParameter,ScaleParameter) -> 34.09179819 | Q190: =GAMMAINV(Q181,Q172/ScaleParameter,ScaleParameter) -> 25.58459012 | R190: =GAMMAINV(R181,R172/ScaleParameter,ScaleParameter) -> 4.496429414 | S190: =GAMMAINV(S181,S172/ScaleParameter,ScaleParameter) -> 4.464283769 | U190: =SUM(N190:S190) -> 149.5327752
U191: =SUM(U186:U190) -> 287.2273319

Sheet GLM
A1: GLM Estimation of Model Parameters | G1: rho = | H1: =Data!F55 -> 1 | J1: parameters = | K1: =Data!R113 -> 7
A2: Newton-Raphson Interation Sequence -- Iteration 1
B3: y(i) | D3: xb(i) | F3: W(i,i) | AB3: XWX | AJ3: zz(i) | AL3: factor | AN3: xwx-1 | AV3: aa1(i,j) | BR3: aa2(j) | BT3: beta(j) | BV3: beta_diff = | BW3: =SUM(BV5:BV15) -> 3.929819192 | BX3: beta_old = | BY3: =SUM(BT5:BT15) -> 27.50873434
B4: 1 | D4: 1 | F4: 1 | G4: 2 | H4: 3 | I4: 4 | J4: 5 | K4: 6 | L4: 7 | M4: 8 | N4: 9 | O4: 10 | P4: 11 | Q4: 12 | R4: 13 | S4: 14 | T4: 15 | U4: 16 | V4: 17 | W4: 18 | X4: 19 | Y4: 20 | Z4: 21 | AB4: 1 | AC4: 2 | AD4: 3 | AE4: 4 | AF4: 5 | AG4: 6 | AH4: 7 | AJ4: 1 | AN4: 1 | AO4: 2 | AP4: 3 | AQ4: 4 | AR4: 5 | AS4: 6 | AT4: 7 | AV4: 1 | AW4: 2 | AX4: 3 | AY4: 4 | AZ4: 5 | BA4: 6 | BB4: 7 | BC4: 8 | BD4: 9 | BE4: 10 | BF4: 11 | BG4: 12 | BH4: 13 | BI4: 14 | BJ4: 15 | BK4: 16 | BL4: 17 | BM4: 18 | BN4: 19 | BO4: 20 | BP4: 21
A5: 1 | B5: =Data!N14 -> 95 | D5: =IF(B5<0,-LN(-B5),LN(B5)) -> 4.553876892 | F5: =IF($A5=F$4,IF($B5<0,-(EXP(-$D5)^(2-$H$1)),IF($B5=0,0,EXP($D5)^(2-$H$1))),0) -> 95 | G5: 0 | H5: 0 | I5: 0 | J5: 0 | K5: 0 | L5: 0 | M5: 0 | N5: 0 | O5: 0 | P5: =IF($A5=P$4,IF($B5<0,-(EXP(-$D5)^(2-$H$1)),IF($B5=0,0,EXP($D5)^(2-$H$1))),0) -> 0 | Q5: 0 | R5: 0 | S5: 0 | T5: 0 | U5: 0 | V5: 0 | W5: 0 | X5: 0 | Y5: 0 | Z5: 0 | AB5: =MMULT(TRANSPOSE(DesignMatrix),MMULT(F5:Z25,DesignMatrix)) -> 220 | AC5: 0 | AD5: 0 | AE5: 0 | AF5: 0 | AG5: 0 | AH5: 270 | AJ5: =IF(B5<0,D5+(B5+EXP(-D5))/-EXP(-D5),IF(B5=0,0,D5+(B5-EXP(D5))/EXP(D5))) -> 4.553876892 | AL5: =OFFSET(AA4,A5,A5) -> 220 | AN5: =MINVERSE(AB5:AH11) -> 0.0059585086 | AO5: 0.00104172239 | AP5: 0.0009320674014 | AQ5: 0.0005912478428 | AR5: 0.0002709123243 | AS5: 0 | AT5: -0.001151377378 | AV5: =MMULT(AN5:AT11,TRANSPOSE(DesignMatrix)) -> 0.0059585086 | AW5: 0.00104172239 | AX5: 0.0009320674014 | AY5: 0.0005912478428 | AZ5: 0.0002709123243 | BA5: 0 | BB5: 0.004807131222 | BC5: -0.0001096549884 | BD5: -0.0002193099768 | BE5: -0.0005601295353 | BF5: -0.0008804650539 | BG5: 0.003655753844 | BH5: -0.001261032367 | BI5: -0.001370687355 | BJ5: -0.001711506913 | BK5: 0.002504376466 | BL5: -0.002412409745 | BM5: -0.002522064733 | BN5: 0.001352999088 | BO5: -0.003563787123 | BP5: 0.0002016217097 | BR5: =MMULT(F5:Z25,AJ5:AJ25) -> 432.6183047 | BT5: =MMULT(AV5:BP11,BR5:BR25) -> 4.636570345 | BV5: =BT5/$K$1 -> 0.6623671921
A6: 2 | B6: =Data!N15 -> 110 | D6: =IF(B6<0,-LN(-B6),LN(B6)) -> 4.700480366 | F6: 0 | G6: 110 | H6: 0 | I6: 0 | J6: 0 | K6: 0 | L6: 0 | M6: 0 | N6: 0 | O6: 0 | P6: 0 | Q6: 0 | R6: 0 | S6: 0 | T6: 0 | U6: 0 | V6: 0 | W6: 0 | X6: 0 | Y6: 0 | Z6: 0 | AB6: 0 | AC6: 210 | AD6: 0 | AE6: 0 | AF6: 0 | AG6: 0 | AH6: 190 | AJ6: =IF(B6<0,D6+(B6+EXP(-D6))/-EXP(-D6),IF(B6=0,0,D6+(B6-EXP(D6))/EXP(D6))) -> 4.700480366 | AL6: =OFFSET(AA4,A6,A6) -> 210 | AN6: 0.00104172239 | AO6: 0.005529876471 | AP6: 0.0006871325816 | AQ6: 0.0004358758348 | AR6: 0.0001997201967 | AS6: 0 | AT6: -0.0008488108361 | AV6: 0.00104172239 | AW6: 0.005529876471 | AX6: 0.0006871325816 | AY6: 0.0004358758348 | AZ6: 0.0001997201967 | BA6: 0 | BB6: 0.0001929115537 | BC6: 0.004681065635 | BD6: -0.0001616782545 | BE6: -0.0004129350013 | BF6: -0.0006490906394 | BG6: -0.0006558992824 | BH6: 0.003832254799 | BI6: -0.001010489091 | BJ6: -0.001261745837 | BK6: -0.001504710119 | BL6: 0.002983443962 | BM6: -0.001859299927 | BN6: -0.002353520955 | BO6: 0.002134633126 | BP6: -0.003202331791 | BR6: 517.0528402 | BT6: 4.635337472 | BV6: 0.6621910674
A7: 3 | B7: =Data!N16 -> 105 | D7: 4.65396035 | F7: 0 | G7: 0 | H7: 105 | I7: 0 | J7: 0 | K7: 0 | L7: 0 | M7: 0 | N7: 0 | O7: 0 | P7: 0 | Q7: 0 | R7: 0 | S7: 0 | T7: 0 | U7: 0 | V7: 0 | W7: 0 | X7: 0 | Y7: 0 | Z7: 0 | AB7: 0 | AC7: 0 | AD7: 210 | AE7: 0 | AF7: 0 | AG7: 0 | AH7: 170 | AJ7: 4.65396035 | AL7: =OFFSET(AA4,A7,A7) -> 210 | AN7: 0.0009320674014 | AO7: 0.0006871325816 | AP7: 0.005376707598 | AQ7: 0.0003899941679 | AR7: 0.0001786970181 | AS7: 0 | AT7: -0.000759462327 | AV7: 0.0009320674014 | AW7: 0.0006871325816 | AX7: 0.005376707598 | AY7: 0.0003899941679 | AZ7: 0.0001786970181 | BA7: 0 | BB7: 0.0001726050743 | BC7: -7.232974543e-05 | BD7: 0.004617245271 | BE7: -0.0003694681591 | BF7: -0.0005807653089 | BG7: -0.0005868572527 | BH7: -0.0008317920725 | BI7: 0.003857782944 | BJ7: -0.001128930486 | BK7: -0.00134631958 | BL7: -0.0015912544 | BM7: 0.003098320617 | BN7: -0.002105781907 | BO7: -0.002350716727 | BP7: -0.002865244234 | BR7: 488.6658368 | BT7: 4.634240408 | BV7: 0.662034344
A8: 4 | B8: =Data!N17 -> 120 | D8: 4.787491743 | F8: 0 | G8: 0 | H8: 0 | I8: 120 | J8: 0 | K8: 0 | L8: 0 | M8: 0 | N8: 0 | O8: 0 | P8: 0 | Q8: 0 | R8: 0 | S8: 0 | T8: 0 | U8: 0 | V8: 0 | W8: 0 | X8: 0 | Y8: 0 | Z8: 0 | AB8: 0 | AC8: 0 | AD8: 0 | AE8: 185 | AF8: 0 | AG8: 0 | AH8: 95 | AJ8: 4.787491743 | AL8: =OFFSET(AA4,A8,A8) -> 185 | AN8: 0.0005912478428 | AO8: 0.0004358758348 | AP8: 0.0003899941679 | AQ8: 0.005652794393 | AR8: 0.0001133547063 | AS8: 0 | AT8: -0.0004817575016 | AV8: 0.0005912478428 | AW8: 0.0004358758348 | AX8: 0.0003899941679 | AY8: 0.005652794393 | AZ8: 0.0001133547063 | BA8: 0 | BB8: 0.0001094903413 | BC8: -4.588166682e-05 | BD8: -9.176333363e-05 | BE8: 0.005171036891 | BF8: -0.0003684027953 | BG8: -0.0003722671603 | BH8: -0.0005276391684 | BI8: -0.0005735208352 | BJ8: 0.00468927939 | BK8: -0.0008540246619 | BL8: -0.00100939667 | BM8: -0.001055278337 | BN8: -0.001335782163 | BO8: -0.001491154172 | BP8: -0.001817539665 | BR8: 574.4990091 | BT8: 4.627046595 | BV8: 0.6610066564
A9: 5 | B9: =Data!N18 -> 130 | D9: 4.86753445 | F9: 0 | G9: 0 | H9: 0 | I9: 0 | J9: 130 | K9: 0 | L9: 0 | M9: 0 | N9: 0 | O9: 0 | P9: 0 | Q9: 0 | R9: 0 | S9: 0 | T9: 0 | U9: 0 | V9: 0 | W9: 0 | X9: 0 | Y9: 0 | Z9: 0 | AB9: 0 | AC9: 0 | AD9: 0 | AE9: 0 | AF9: 170 | AG9: 0 | AH9: 40 | AJ9: 4.86753445 | AL9: =OFFSET(AA4,A9,A9) -> 170 | AN9: 0.0002709123243 | AO9: 0.0001997201967 | AP9: 0.0001786970181 | AQ9: 0.0001133547063 | AR9: 0.005934292559 | AS9: 0 | AT9: -0.0002207433753 | AV9: 0.0002709123243 | AW9: 0.0001997201967 | AX9: 0.0001786970181 | AY9: 0.0001133547063 | AZ9: 0.005934292559 | BA9: 0 | BB9: 5.016894894e-05 | BC9: -2.10231786e-05 | BD9: -4.204635721e-05 | BE9: -0.0001073886691 | BF9: 0.005713549184 | BG9: -0.0001705744264 | BH9: -0.0002417665539 | BI9: -0.0002627897325 | BJ9: -0.0003281320444 | BK9: -0.0003913178017 | BL9: -0.0004625099293 | BM9: -0.0004835331079 | BN9: -0.0006120611771 | BO9: -0.0006832533046 | BP9: -0.0008328045524 | BR9: 632.7794786 | BT9: 4.72650481 | BV9: 0.6752149728
A10: 6 | B10: =Data!N19 -> 125 | D10: 4.828313737 | F10: 0 | G10: 0 | H10: 0 | I10: 0 | J10: 0 | K10: 125 | L10: 0 | M10: 0 | N10: 0 | O10: 0 | P10: 0 | Q10: 0 | R10: 0 | S10: 0 | T10: 0 | U10: 0 | V10: 0 | W10: 0 | X10: 0 | Y10: 0 | Z10: 0 | AB10: 0 | AC10: 0 | AD10: 0 | AE10: 0 | AF10: 0 | AG10: 125 | AH10: 0 | AJ10: 4.828313737 | AL10: =OFFSET(AA4,A10,A10) -> 125 | AN10: 0 | AO10: 0 | AP10: 0 | AQ10: 0 | AR10: 0 | AS10: 0.008 | AT10: 0 | AV10: 0 | AW10: 0 | AX10: 0 | AY10: 0 | AZ10: 0 | BA10: 0.008 | BB10: 0 | BC10: 0 | BD10: 0 | BE10: 0 | BF10: 0 | BG10: 0 | BH10: 0 | BI10: 0 | BJ10: 0 | BK10: 0 | BL10: 0 | BM10: 0 | BN10: 0 | BO10: 0 | BP10: 0 | BR10: 603.5392172 | BT10: 4.828313737 | BV10: 0.6897591053
A11: 7 | B11: =Data!O14 -> 55 | D11: 4.007333185 | F11: 0 | G11: 0 | H11: 0 | I11: 0 | J11: 0 | K11: 0 | L11: 55 | M11: 0 | N11: 0 | O11: 0 | P11: 0 | Q11: 0 | R11: 0 | S11: 0 | T11: 0 | U11: 0 | V11: 0 | W11: 0 | X11: 0 | Y11: 0 | Z11: 0 | AB11: 270 | AC11: 190 | AD11: 170 | AE11: 95 | AF11: 40 | AG11: 0 | AH11: 1765 | AJ11: 4.007333185 | AL11: =OFFSET(AA4,A11,A11) -> 1765 | AN11: -0.001151377378 | AO11: -0.0008488108361 | AP11: -0.000759462327 | AQ11: -0.0004817575016 | AR11: -0.0002207433753 | AS11: 0 | AT11: 0.0009381593452 | AV11: -0.001151377378 | AW11: -0.0008488108361 | AX11: -0.000759462327 | AY11: -0.0004817575016 | AZ11: -0.0002207433753 | BA11: 0 | BB11: -0.000213218033 | BC11: 8.934850906e-05 | BD11: 0.0001786970181 | BE11: 0.0004564018436 | BF11: 0.0007174159698 | BG11: 0.0007249413122 | BH11: 0.001027507854 | BI11: 0.001116856363 | BJ11: 0.001394561189 | BK11: 0.001663100657 | BL11: 0.001965667199 | BM11: 0.002055015708 | BN11: 0.002601260003 | BO11: 0.002903826545 | BP11: 0.003539419348 | BR11: 220.4033252 | BT11: -0.5792790238 | BV11: -0.08275414626
A12: 8 | B12: =Data!O15 -> 50 | D12: 3.912023005 | F12: 0 | G12: 0 | H12: 0 | I12: 0 | J12: 0 | K12: 0 | L12: 0 | M12: 50 | N12: 0 | O12: 0 | P12: 0 | Q12: 0 | R12: 0 | S12: 0 | T12: 0 | U12: 0 | V12: 0 | W12: 0 | X12: 0 | Y12: 0 | Z12: 0 | AJ12: 3.912023005 | BR12: 195.6011503
A13: 9 | B13: =Data!O16 -> 60 | D13: 4.094344562 | F13: 0 | G13: 0 | H13: 0 | I13: 0 | J13: 0 | K13: 0 | L13: 0 | M13: 0 | N13: 60 | O13: 0 | P13: 0 | Q13: 0 | R13: 0 | S13: 0 | T13: 0 | U13: 0 | V13: 0 | W13: 0 | X13: 0 | Y13: 0 | Z13: 0 | AJ13: 4.094344562 | BR13: 245.6606737
A14: 10 | B14: =Data!O17 -> 35 | D14: 3.555348061 | F14: 0 | G14: 0 | H14: 0 | I14: 0 | J14: 0 | K14: 0 | L14: 0 | M14: 0 | N14: 0 | O14: 35 | P14: 0 | Q14: 0 | R14: 0 | S14: 0 | T14: 0 | U14: 0 | V14: 0 | W14: 0 | X14: 0 | Y14: 0 | Z14: 0 | AJ14: 3.555348061 | BR14: 124.4371822
A15: 11 | B15: =Data!O18 -> 40 | D15: 3.688879454 | F15: =IF($A15=F$4,IF($B15<0,-(EXP(-$D15)^(2-$H$1)),IF($B15=0,0,EXP($D15)^(2-$H$1))),0) -> 0 | G15: 0 | H15: 0 | I15: 0 | J15: 0 | K15: 0 | L15: 0 | M15: 0 | N15: 0 | O15: 0 | P15: =IF($A15=P$4,IF($B15<0,-(EXP(-$D15)^(2-$H$1)),IF($B15=0,0,EXP($D15)^(2-$H$1))),0) -> 40 | Q15: 0 | R15: 0 | S15: 0 | T15: 0 | U15: 0 | V15: 0 | W15: 0 | X15: 0 | Y15: 0 | Z15: 0 | AJ15: 3.688879454 | BR15: 147.5551782
A16: 12 | B16: =Data!P14 -> 20 | D16: 2.995732274 | F16: 0 | G16: 0 | H16: 0 | I16: 0 | J16: 0 | K16: 0 | L16: 0 | M16: 0 | N16: 0 | O16: 0 | P16: 0 | Q16: 20 | R16: 0 | S16: 0 | T16: 0 | U16: 0 | V16: 0 | W16: 0 | X16: 0 | Y16: 0 | Z16: 0 | AJ16: 2.995732274 | BR16: 59.91464547
A17: 13 | B17: =Data!P15 -> 15 | D17: 2.708050201 | F17: 0 | G17: 0 | H17: 0 | I17: 0 | J17: 0 | K17: 0 | L17: 0 | M17: 0 | N17: 0 | O17: 0 | P17: 0 | Q17: 0 | R17: 15 | S17: 0 | T17: 0 | U17: 0 | V17: 0 | W17: 0 | X17: 0 | Y17: 0 | Z17: 0 | AJ17: 2.708050201 | BR17: 40.62075302
A18: 14 | B18: =Data!P16 -> 25 | D18: 3.218875825 | F18: 0 | G18: 0 | H18: 0 | I18: 0 | J18: 0 | K18: 0 | L18: 0 | M18: 0 | N18: 0 | O18: 0 | P18: 0 | Q18: 0 | R18: 0 | S18: 25 | T18: 0 | U18: 0 | V18: 0 | W18: 0 | X18: 0 | Y18: 0 | Z18: 0 | AJ18: 3.218875825 | BR18: 80.47189562
A19: 15 | B19: =Data!P17 -> 30 | D19: 3.401197382 | F19: 0 | G19: 0 | H19: 0 | I19: 0 | J19: 0 | K19: 0 | L19: 0 | M19: 0 | N19: 0 | O19: 0 | P19: 0 | Q19: 0 | R19: 0 | S19: 0 | T19: 30 | U19: 0 | V19: 0 | W19: 0 | X19: 0 | Y19: 0 | Z19: 0 | AJ19: 3.401197382 | BR19: 102.0359214
A20: 16 | B20: =Data!Q14 -> 30 | D20: 3.401197382 | F20: 0 | G20: 0 | H20: 0 | I20: 0 | J20: 0 | K20: 0 | L20: 0 | M20: 0 | N20: 0 | O20: 0 | P20: 0 | Q20: 0 | R20: 0 | S20: 0 | T20: 0 | U20: 30 | V20: 0 | W20: 0 | X20: 0 | Y20: 0 | Z20: 0 | AJ20: 3.401197382 | BR20: 102.0359214
A21: 17 | B21: =Data!Q15 -> 30 | D21: 3.401197382 | F21: 0 | G21: 0 | H21: 0 | I21: 0 | J21: 0 | K21: 0 | L21: 0 | M21: 0 | N21: 0 | O21: 0 | P21: 0 | Q21: 0 | R21: 0 | S21: 0 | T21: 0 | U21: 0 | V21: 30 | W21: 0 | X21: 0 | Y21: 0 | Z21: 0 | AJ21: 3.401197382 | BR21: 102.0359214
A22: 18 | B22: =Data!Q16 -> 20 | D22: 2.995732274 | F22: 0 | G22: 0 | H22: 0 | I22: 0 | J22: 0 | K22: 0 | L22: 0 | M22: 0 | N22: 0 | O22: 0 | P22: 0 | Q22: 0 | R22: 0 | S22: 0 | T22: 0 | U22: 0 | V22: 0 | W22: 20 | X22: 0 | Y22: 0 | Z22: 0 | AJ22: 2.995732274 | BR22: 59.91464547
A23: 19 | B23: =Data!R14 -> 15 | D23: 2.708050201 | F23: 0 | G23: 0 | H23: 0 | I23: 0 | J23: 0 | K23: 0 | L23: 0 | M23: 0 | N23: 0 | O23: 0 | P23: 0 | Q23: 0 | R23: 0 | S23: 0 | T23: 0 | U23: 0 | V23: 0 | W23: 0 | X23: 15 | Y23: 0 | Z23: 0 | AJ23: 2.708050201 | BR23: 40.62075302
A24: 20 | B24: =Data!R15 -> 5 | D24: 1.609437912 | F24: 0 | G24: 0 | H24: 0 | I24: 0 | J24: 0 | K24: 0 | L24: 0 | M24: 0 | N24: 0 | O24: 0 | P24: 0 | Q24: 0 | R24: 0 | S24: 0 | T24: 0 | U24: 0 | V24: 0 | W24: 0 | X24: 0 | Y24: 5 | Z24: 0 | AJ24: 1.609437912 | BR24: 8.047189562
A25: 21 | B25: =Data!S14 -> 5 | D25: 1.609437912 | F25: 0 | G25: 0 | H25: 0 | I25: 0 | J25: 0 | K25: 0 | L25: 0 | M25: 0 | N25: 0 | O25: 0 | P25: 0 | Q25: 0 | R25: 0 | S25: 0 | T25: 0 | U25: 0 | V25: 0 | W25: 0 | X25: 0 | Y25: 0 | Z25: 5 | AJ25: 1.609437912 | BR25: 8.047189562
A27: Newton-Raphson Interation Sequence -- Iteration 2
B28: y(i) | D28: xb(i) | F28: W(i,i) | AB28: XWX | AJ28: zz(i) | AL28: factor | AN28: xwx-1 | AV28: aa1(i,j) | BR28: aa2(j) | BT28: beta(j) | BV28: beta_diff = | BW28: =SUM(BV30:BV40) -> -0.0653282753 | BX28: beta_old = | BY28: =SUM(BT30:BT40) -> 27.44340607
B29: 1 | D29: 1 | F29: 1 | G29: 2 | H29: 3 | I29: 4 | J29: 5 | K29: 6 | L29: 7 | M29: 8 | N29: 9 | O29: 10 | P29: 11 | Q29: 12 | R29: 13 | S29: 14 | T29: 15 | U29: 16 | V29: 17 | W29: 18 | X29: 19 | Y29: 20 | Z29: 21 | AB29: 1 | AC29: 2 | AD29: 3 | AE29: 4 | AF29: 5 | AG29: 6 | AH29: 7 | AJ29: 1 | AN29: 1 | AO29: 2 | AP29: 3 | AQ29: 4 | AR29: 5 | AS29: 6 | AT29: 7 | AV29: 1 | AW29: 2 | AX29: 3 | AY29: 4 | AZ29: 5 | BA29: 6 | BB29: 7 | BC29: 8 | BD29: 9 | BE29: 10 | BF29: 11 | BG29: 12 | BH29: 13 | BI29: 14 | BJ29: 15 | BK29: 16 | BL29: 17 | BM29: 18 | BN29: 19 | BO29: 20 | BP29: 21
A30: 1 | B30: =B5 -> 95 | D30: =MMULT(DesignMatrix,BT5:BT11) -> 4.636570345 | F30: =IF($A30=F$4,IF($B30<0,-(EXP(-$D30)^(2-$H$1)),IF($B30=0,0,EXP($D30)^(2-$H$1))),0) -> 103.1898344 | G30: 0 | H30: 0 | I30: 0 | J30: 0 | K30: 0 | L30: 0 | M30: 0 | N30: 0 | O30: 0 | P30: =IF($A30=P$4,IF($B30<0,-(EXP(-$D30)^(2-$H$1)),IF($B30=0,0,EXP($D30)^(2-$H$1))),0) -> 0 | Q30: 0 | R30: 0 | S30: 0 | T30: 0 | U30: 0 | V30: 0 | W30: 0 | X30: 0 | Y30: 0 | Z30: 0 | AB30: =MMULT(TRANSPOSE(DesignMatrix),MMULT(F30:Z50,DesignMatrix)) -> 227.4221926 | AC30: 0 | AD30: 0 | AE30: 0 | AF30: 0 | AG30: 0 | AH30: 246.2336352 | AJ30: =IF(B30<0,D30+(B30+EXP(-D30))/-EXP(-D30),IF(B30=0,0,D30+(B30-EXP(D30))/EXP(D30))) -> 4.557203666 | AL30: =OFFSET(AA29,A30,A30) -> 227.4221926 | AN30: =MINVERSE(AB30:AH36) -> 0.005524417665 | AO30: 0.001022488062 | AP30: 0.0008714287777 | AQ30: 0.0006600627083 | AR30: 0.0003738885782 | AS30: 0 | AT30: -0.001041186668 | AV30: =MMULT(AN30:AT36,TRANSPOSE(DesignMatrix)) -> 0.005524417665 | AW30: 0.001022488062 | AX30: 0.0008714287777 | AY30: 0.0006600627083 | AZ30: 0.0003738885782 | BA30: 0 | BB30: 0.004483230997 | BC30: -1.869860594e-05 | BD30: -0.0001697578903 | BE30: -0.0003811239598 | BF30: -0.0006672980899 | BG30: 0.003442044329 | BH30: -0.001059885274 | BI30: -0.001210944558 | BJ30: -0.001422310628 | BK30: 0.002400857661 | BL30: -0.002101071942 | BM30: -0.002252131226 | BN30: 0.001359670993 | BO30: -0.00314225861 | BP30: 0.0003184843248 | BR30: =MMULT(F30:Z50,AJ30:AJ50) -> 470.2570918 | BT30: =MMULT(AV30:BP36,BR30:BR50) -> 4.638829626 | BV30: =BT30-BY3/$K$1 -> 0.7090104338
A31: 2 | B31: =B6 -> 110 | D31: 4.635337472 | F31: 0 | G31: 103.0626929 | H31: 0 | I31: 0 | J31: 0 | K31: 0 | L31: 0 | M31: 0 | N31: 0 | O31: 0 | P31: 0 | Q31: 0 | R31: 0 | S31: 0 | T31: 0 | U31: 0 | V31: 0 | W31: 0 | X31: 0 | Y31: 0 | Z31: 0 | AB31: 0 | AC31: 221.4506619 | AD31: 0 | AE31: 0 | AF31: 0 | AG31: 0 | AH31: 217.4736434 | AJ31: =IF(B31<0,D31+(B31+EXP(-D31))/-EXP(-D31),IF(B31=0,0,D31+(B31-EXP(D31))/EXP(D31))) -> 4.702648998 | AL31: =OFFSET(AA29,A31,A31) -> 221.4506619 | AN31: 0.001022488062 | AO31: 0.005443091918 | AP31: 0.0007904001446 | AQ31: 0.0005986876649 | AR31: 0.0003391230514 | AS31: 0 | AT31: -0.0009443733257 | AV31: 0.001022488062 | AW31: 0.005443091918 | AX31: 0.0007904001446 | AY31: 0.0005986876649 | AZ31: 0.0003391230514 | BA31: 0 | BB31: 7.811473641e-05 | BC31: 0.004498718592 | BD31: -0.0001539731811 | BE31: -0.0003456856608 | BF31: -0.0006052502743 | BG31: -0.0008662585893 | BH31: 0.003554345266 | BI31: -0.001098346507 | BJ31: -0.001290058987 | BK31: -0.001810631915 | BL31: 0.002609971941 | BM31: -0.002042719833 | BN31: -0.002755005241 | BO31: 0.001665598615 | BP31: -0.003699378566 | BR31: 484.6676693 | BT31: 4.615280721 | BV31: =BT31-BY3/$K$1 -> 0.6854615293
A32: 3 | B32: 105 | D32: 4.634240408 | F32: 0 | G32: 0 | H32: 102.9496885 | I32: 0 | J32: 0 | K32: 0 | L32: 0 | M32: 0 | N32: 0 | O32: 0 | P32: 0 | Q32: 0 | R32: 0 | S32: 0 | T32: 0 | U32: 0 | V32: 0 | W32: 0 | X32: 0 | Y32: 0 | Z32: 0 | AB32: 0 | AC32: 0 | AD32: 211.0613953 | AE32: 0 | AF32: 0 | AG32: 0 | AH32: 176.6493746 | AJ32: 4.654156073 | AL32: =OFFSET(AA29,A32,A32) -> 211.0613953 | AN32: 0.0008714287777 | AO32: 0.0007904001446 | AP32: 0.005411586701 | AQ32: 0.0005102393655 | AR32: 0.0002890220406 | AS32: 0 | AT32: -0.0008048544755 | AV32: 0.0008714287777 | AW32: 0.0007904001446 | AX32: 0.005411586701 | AY32: 0.0005102393655 | AZ32: 0.0002890220406 | BA32: 0 | BB32: 6.657430223e-05 | BC32: -1.445433095e-05 | BD32: 0.004606732225 | BE32: -0.00029461511 | BF32: -0.0005158324349 | BG32: -0.0007382801733 | BH32: -0.0008193088065 | BI32: 0.00380187775 | BJ32: -0.001099469586 | BK32: -0.001543134649 | BL32: -0.001624163282 | BM32: 0.002997023274 | BN32: -0.002347989124 | BO32: -0.002429017758 | BP32: -0.0031528436 | BR32: 479.1439179 | BT32: 4.656186332 | BV32: =BT32-BY3/$K$1 -> 0.7263671404
A33: 4 | B33: 120 | D33: 4.627046595 | F33: 0 | G33: 0 | H33: 0 | I33: 102.2117452 | J33: 0 | K33: 0 | L33: 0 | M33: 0 | N33: 0 | O33: 0 | P33: 0 | Q33: 0 | R33: 0 | S33: 0 | T33: 0 | U33: 0 | V33: 0 | W33: 0 | X33: 0 | Y33: 0 | Z33: 0 | AB33: 0 | AC33: 0 | AD33: 0 | AE33: 191.5694153 | AF33: 0 | AG33: 0 | AH33: 121.4458761 | AJ33: 4.801079968 | AL33: =OFFSET(AA29,A33,A33) -> 191.5694153 | AN33: 0.0006600627083 | AO33: 0.0005986876649 | AP33: 0.0005102393655 | AQ33: 0.005606520154 | AR33: 0.0002189194066 | AS33: 0 | AT33: -0.0006096360809 | AV33: 0.0006600627083 | AW33: 0.0005986876649 | AX33: 0.0005102393655 | AY33: 0.005606520154 | AZ33: 0.0002189194066 | BA33: 0 | BB33: 5.042662734e-05 | BC33: -1.094841607e-05 | BD33: -9.939671543e-05 | BE33: 0.004996884073 | BF33: -0.0003907166744 | BG33: -0.0005592094536 | BH33: -0.000620584497 | BI33: -0.0007090327964 | BJ33: 0.004387247992 | BK33: -0.001168845535 | BL33: -0.001230220578 | BM33: -0.001318668877 | BN33: -0.001778481615 | BO33: -0.001839856659 | BP33: -0.002388117696 | BR33: 490.7267623 | BT33: 4.613185992 | BV33: =BT33-BY3/$K$1 -> 0.6833668007
A34: 5 | B34: 130 | D34: 4.72650481 | F34: 0 | G34: 0 | H34: 0 | I34: 0 | J34: 112.900264 | K34: 0 | L34: 0 | M34: 0 | N34: 0 | O34: 0 | P34: 0 | Q34: 0 | R34: 0 | S34: 0 | T34: 0 | U34: 0 | V34: 0 | W34: 0 | X34: 0 | Y34: 0 | Z34: 0 | AB34: 0 | AC34: 0 | AD34: 0 | AE34: 0 | AF34: 176.1585287 | AG34: 0 | AH34: 63.25826469 | AJ34: 4.877963587 | AL34: =OFFSET(AA29,A34,A34) -> 176.1585287 | AN34: 0.0003738885782 | AO34: 0.0003391230514 | AP34: 0.0002890220406 | AQ34: 0.0002189194066 | AR34: 0.005800710585 | AS34: 0 | AT34: -0.0003453247163 | AV34: 0.0003738885782 | AW34: 0.0003391230514 | AX34: 0.0002890220406 | AY34: 0.0002189194066 | AZ34: 0.005800710585 | BA34: 0 | BB34: 2.856386183e-05 | BC34: -6.201664881e-06 | BD34: -5.63026757e-05 | BE34: -0.0001264053098 | BF34: 0.005455385869 | BG34: -0.0003167608545 | BH34: -0.0003515263812 | BI34: -0.000401627392 | BJ34: -0.0004717300261 | BK34: -0.0006620855708 | BL34: -0.0006968510975 | BM34: -0.0007469521084 | BN34: -0.001007410287 | BO34: -0.001042175814 | BP34: -0.001352735003 | BR34: 550.723377 | BT34: 4.703118248 | BV34: =BT34-BY3/$K$1 -> 0.7732990564
A35: 6 | B35: 125 | D35: 4.828313737 | F35: 0 | G35: 0 | H35: 0 | I35: 0 | J35: 0 | K35: 125 | L35: 0 | M35: 0 | N35: 0 | O35: 0 | P35: 0 | Q35: 0 | R35: 0 | S35: 0 | T35: 0 | U35: 0 | V35: 0 | W35: 0 | X35: 0 | Y35: 0 | Z35: 0 | AB35: 0 | AC35: 0 | AD35: 0 | AE35: 0 | AF35: 0 | AG35: 125 | AH35: 0 | AJ35: 4.828313737 | AL35: =OFFSET(AA29,A35,A35) -> 125 | AN35: 0 | AO35: 0 | AP35: 0 | AQ35: 0 | AR35: 0 | AS35: 0.008 | AT35: 0 | AV35: 0 | AW35: 0 | AX35: 0 | AY35: 0 | AZ35: 0 | BA35: 0.008 | BB35: 0 | BC35: 0 | BD35: 0 | BE35: 0 | BF35: 0 | BG35: 0 | BH35: 0 | BI35: 0 | BJ35: 0 | BK35: 0 | BL35: 0 | BM35: 0 | BN35: 0 | BO35: 0 | BP35: 0 | BR35: 603.5392172 | BT35: 4.828313737 | BV35: =BT35-BY3/$K$1 -> 0.8984945456
A36: 7 | B36: 55 | D36: 4.057291321 | F36: 0 | G36: 0 | H36: 0 | I36: 0 | J36: 0 | K36: 0 | L36: 57.81748975 | M36: 0 | N36: 0 | O36: 0 | P36: 0 | Q36: 0 | R36: 0 | S36: 0 | T36: 0 | U36: 0 | V36: 0 | W36: 0 | X36: 0 | Y36: 0 | Z36: 0 | AB36: 246.2336352 | AC36: 217.4736434 | AD36: 176.6493746 | AE36: 121.4458761 | AF36: 63.25826469 | AG36: 0 | AH36: 1767.610449 | AJ36: 4.008560569 | AL36: =OFFSET(AA29,A36,A36) -> 1767.610449 | AN36: -0.001041186668 | AO36: -0.0009443733257 | AP36: -0.0008048544755 | AQ36: -0.0006096360809 | AR36: -0.0003453247163 | AS36: 0 | AT36: 0.0009616434194 | AV36: -0.001041186668 | AW36: -0.0009443733257 | AX36: -0.0008048544755 | AY36: -0.0006096360809 | AZ36: -0.0003453247163 | BA36: 0 | BB36: -7.954324861e-05 | BC36: 1.727009374e-05 | BD36: 0.0001567889439 | BE36: 0.0003520073385 | BF36: 0.0006163187031 | BG36: 0.0008821001708 | BH36: 0.0009789135132 | BI36: 0.001118432363 | BJ36: 0.001313650758 | BK36: 0.00184374359 | BL36: 0.001940556933 | BM36: 0.002080075783 | BN36: 0.00280538701 | BO36: 0.002902200352 | BP36: 0.003767030429 | BR36: 231.7649096 | BT36: -0.6115085899 | BV36: =BT36-BY3/$K$1 -> -4.541327782
A37: 8 | B37: 50 | D37: 4.056058448 | F37: 0 | G37: 0 | H37: 0 | I37: 0 | J37: 0 | K37: 0 | L37: 0 | M37: 57.74625206 | N37: 0 | O37: 0 | P37: 0 | Q37: 0 | R37: 0 | S37: 0 | T37: 0 | U37: 0 | V37: 0 | W37: 0 | X37: 0 | Y37: 0 | Z37: 0 | AJ37: 3.921915507 | BR37: 226.4759214
A38: 9 | B38: 60 | D38: 4.054961384 | F38: 0 | G38: 0 | H38: 0 | I38: 0 | J38: 0 | K38: 0 | L38: 0 | M38: 0 | N38: 57.68293547 | O38: 0 | P38: 0 | Q38: 0 | R38: 0 | S38: 0 | T38: 0 | U38: 0 | V38: 0 | W38: 0 | X38: 0 | Y38: 0 | Z38: 0 | AJ38: 4.095130361 | BR38: 236.2191404
A39: 10 | B39: 35 | D39: 4.047767571 | F39: 0 | G39: 0 | H39: 0 | I39: 0 | J39: 0 | K39: 0 | L39: 0 | M39: 0 | N39: 0 | O39: 57.26946421 | P39: 0 | Q39: 0 | R39: 0 | S39: 0 | T39: 0 | U39: 0 | V39: 0 | W39: 0 | X39: 0 | Y39: 0 | Z39: 0 | AJ39: 3.658913501 | BR39: 209.5440158
A40: 11 | B40: 40 | D40: 4.147225786 | F40: =IF($A40=F$4,IF($B40<0,-(EXP(-$D40)^(2-$H$1)),IF($B40=0,0,EXP($D40)^(2-$H$1))),0) -> 0 | G40: 0 | H40: 0 | I40: 0 | J40: 0 | K40: 0 | L40: 0 | M40: 0 | N40: 0 | O40: 0 | P40: =IF($A40=P$4,IF($B40<0,-(EXP(-$D40)^(2-$H$1)),IF($B40=0,0,EXP($D40)^(2-$H$1))),0) -> 63.25826469 | Q40: 0 | R40: 0 | S40: 0 | T40: 0 | U40: 0 | V40: 0 | W40: 0 | X40: 0 | Y40: 0 | Z40: 0 | AJ40: 3.779554229 | BR40: 239.0880418
A41: 12 | B41: 20 | D41: 3.478012297 | F41: 0 | G41: 0 | H41: 0 | I41: 0 | J41: 0 | K41: 0 | L41: 0 | M41: 0 | N41: 0 | O41: 0 | P41: 0 | Q41: 32.39526587 | R41: 0 | S41: 0 | T41: 0 | U41: 0 | V41: 0 | W41: 0 | X41: 0 | Y41: 0 | Z41: 0 | AJ41: 3.095386455 | BR41: 100.2758672
A42: 13 | B42: 15 | D42: 3.476779424 | F42: 0 | G42: 0 | H42: 0 | I42: 0 | J42: 0 | K42: 0 | L42: 0 | M42: 0 | N42: 0 | O42: 0 | P42: 0 | Q42: 0 | R42: 32.35535123 | S42: 0 | T42: 0 | U42: 0 | V42: 0 | W42: 0 | X42: 0 | Y42: 0 | Z42: 0 | AJ42: 2.940381253 | BR42: 95.1370682
A43: 14 | B43: 25 | D43: 3.47568236 | F43: 0 | G43: 0 | H43: 0 | I43: 0 | J43: 0 | K43: 0 | L43: 0 | M43: 0 | N43: 0 | O43: 0 | P43: 0 | Q43: 0 | R43: 0 | S43: 32.31987481 | T43: 0 | U43: 0 | V43: 0 | W43: 0 | X43: 0 | Y43: 0 | Z43: 0 | AJ43: 3.249200208 | BR43: 105.013744
A44: 15 | B44: 30 | D44: 3.468488547 | F44: 0 | G44: 0 | H44: 0 | I44: 0 | J44: 0 | K44: 0 | L44: 0 | M44: 0 | N44: 0 | O44: 0 | P44: 0 | Q44: 0 | R44: 0 | S44: 0 | T44: 32.08820596 | U44: 0 | V44: 0 | W44: 0 | X44: 0 | Y44: 0 | Z44: 0 | AJ44: 3.403411492 | BR44: 109.2093689
A45: 16 | B45: 30 | D45: 2.898733273 | F45: 0 | G45: 0 | H45: 0 | I45: 0 | J45: 0 | K45: 0 | L45: 0 | M45: 0 | N45: 0 | O45: 0 | P45: 0 | Q45: 0 | R45: 0 | S45: 0 | T45: 0 | U45: 18.15113827 | V45: 0 | W45: 0 | X45: 0 | Y45: 0 | Z45: 0 | AJ45: 3.551522181 | BR45: 64.46417018
A46: 17 | B46: 30 | D46: 2.8975004 | F46: 0 | G46: 0 | H46: 0 | I46: 0 | J46: 0 | K46: 0 | L46: 0 | M46: 0 | N46: 0 | O46: 0 | P46: 0 | Q46: 0 | R46: 0 | S46: 0 | T46: 0 | U46: 0 | V46: 18.12877401 | W46: 0 | X46: 0 | Y46: 0 | Z46: 0 | AJ46: 3.552328244 | BR46: 64.39935594
A47: 18 | B47: 20 | D47: 2.896403336 | F47: 0 | G47: 0 | H47: 0 | I47: 0 | J47: 0 | K47: 0 | L47: 0 | M47: 0 | N47: 0 | O47: 0 | P47: 0 | Q47: 0 | R47: 0 | S47: 0 | T47: 0 | U47: 0 | V47: 0 | W47: 18.10889649 | X47: 0 | Y47: 0 | Z47: 0 | AJ47: 3.000832864 | BR47: 54.34177173
A48: 19 | B48: 15 | D48: 2.319454249 | F48: 0 | G48: 0 | H48: 0 | I48: 0 | J48: 0 | K48: 0 | L48: 0 | M48: 0 | N48: 0 | O48: 0 | P48: 0 | Q48: 0 | R48: 0 | S48: 0 | T48: 0 | U48: 0 | V48: 0 | W48: 0 | X48: 10.17012244 | Y48: 0 | Z48: 0 | AJ48: 2.794362746 | BR48: 28.41901127
A49: 20 | B49: 5 | D49: 2.318221376 | F49: 0 | G49: 0 | H49: 0 | I49: 0 | J49: 0 | K49: 0 | L49: 0 | M49: 0 | N49: 0 | O49: 0 | P49: 0 | Q49: 0 | R49: 0 | S49: 0 | T49: 0 | U49: 0 | V49: 0 | W49: 0 | X49: 0 | Y49: 10.1575917 | Z49: 0 | AJ49: 1.810464041 | BR49: 18.38995451
A50: 21 | B50: 5 | D50: 1.740175226 | F50: 0 | G50: 0 | H50: 0 | I50: 0 | J50: 0 | K50: 0 | L50: 0 | M50: 0 | N50: 0 | O50: 0 | P50: 0 | Q50: 0 | R50: 0 | S50: 0 | T50: 0 | U50: 0 | V50: 0 | W50: 0 | X50: 0 | Y50: 0 | Z50: 5.698341831 | AJ50: 1.617623464 | BR50: 9.21777145
A52: Newton-Raphson Interation Sequence -- Iteration 3
B53: y(i) | D53: xb(i) | F53: W(i,i) | AB53: XWX | AJ53: zz(i) | AL53: factor | AN53: xwx-1 | AV53: aa1(i,j) | BR53: aa2(j) | BT53: beta(j) | BV53: beta_diff = | BW53: =SUM(BV55:BV65) -> -0.0007717147043 | BX53: beta_old = | BY53: =SUM(BT55:BT65) -> 27.44263435
B54: 1 | D54: 1 | F54: 1 | G54: 2 | H54: 3 | I54: 4 | J54: 5 | K54: 6 | L54: 7 | M54: 8 | N54: 9 | O54: 10 | P54: 11 | Q54: 12 | R54: 13 | S54: 14 | T54: 15 | U54: 16 | V54: 17 | W54: 18 | X54: 19 | Y54: 20 | Z54: 21 | AB54: 1 | AC54: 2 | AD54: 3 | AE54: 4 | AF54: 5 | AG54: 6 | AH54: 7 | AJ54: 1 | AN54: 1 | AO54: 2 | AP54: 3 | AQ54: 4 | AR54: 5 | AS54: 6 | AT54: 7 | AV54: 1 | AW54: 2 | AX54: 3 | AY54: 4 | AZ54: 5 | BA54: 6 | BB54: 7 | BC54: 8 | BD54: 9 | BE54: 10 | BF54: 11 | BG54: 12 | BH54: 13 | BI54: 14 | BJ54: 15 | BK54: 16 | BL54: 17 | BM54: 18 | BN54: 19 | BO54: 20 | BP54: 21
A55: 1 | B55: =B30 -> 95 | D55: =MMULT(DesignMatrix,BT30:BT36) -> 4.638829626 | F55: =IF($A55=F$4,IF($B55<0,-(EXP(-$D55)^(2-$H$1)),IF($B55=0,0,EXP($D55)^(2-$H$1))),0) -> 103.4232328 | G55: 0 | H55: 0 | I55: 0 | J55: 0 | K55: 0 | L55: 0 | M55: 0 | N55: 0 | O55: 0 | P55: =IF($A55=P$4,IF($B55<0,-(EXP(-$D55)^(2-$H$1)),IF($B55=0,0,EXP($D55)^(2-$H$1))),0) -> 0 | Q55: 0 | R55: 0 | S55: 0 | T55: 0 | U55: 0 | V55: 0 | W55: 0 | X55: 0 | Y55: 0 | Z55: 0 | AB55: =MMULT(TRANSPOSE(DesignMatrix),MMULT(F55:Z75,DesignMatrix)) -> 220.312302 | AC55: 0 | AD55: 0 | AE55: 0 | AF55: 0 | AG55: 0 | AH55: 226.6873896 | AJ55: =IF(B55<0,D55+(B55+EXP(-D55))/-EXP(-D55),IF(B55=0,0,D55+(B55-EXP(D55))/EXP(D55))) -> 4.557385325 | AL55: =OFFSET(AA54,A55,A55) -> 220.312302 | AN55: =MINVERSE(AB55:AH61) -> 0.005631668927 | AO55: 0.0009975101785 | AP55: 0.0008564745079 | AQ55: 0.0006539748026 | AR55: 0.0003734965626 | AS55: 0 | AT55: -0.001061929143 | AV55: =MMULT(AN55:AT61,TRANSPOSE(DesignMatrix)) -> 0.005631668927 | AW55: 0.0009975101785 | AX55: 0.0008564745079 | AY55: 0.0006539748026 | AZ55: 0.0003734965626 | BA55: 0 | BB55: 0.004569739783 | BC55: -6.44189648e-05 | BD55: -0.0002054546355 | BE55: -0.0004079543407 | BF55: -0.0006884325807 | BG55: 0.00350781064 | BH55: -0.001126348108 | BI55: -0.001267383779 | BJ55: -0.001469883484 | BK55: 0.002445881497 | BL55: -0.002188277251 | BM55: -0.002329312922 | BN55: 0.001383952353 | BO55: -0.003250206395 | BP55: 0.00032202321 | BR55: =MMULT(F55:Z75,AJ55:AJ75) -> 471.3395235 | BT55: =MMULT(AV55:BP61,BR55:BR75) -> 4.639237533 | BV55: =BT55-BY28/$K$1 -> 0.7187509521
A56: 2 | B56: =B31 -> 110 | D56: 4.615280721 | F56: 0 | G56: 101.0161819 | H56: 0 | I56: 0 | J56: 0 | K56: 0 | L56: 0 | M56: 0 | N56: 0 | O56: 0 | P56: 0 | Q56: 0 | R56: 0 | S56: 0 | T56: 0 | U56: 0 | V56: 0 | W56: 0 | X56: 0 | Y56: 0 | Z56: 0 | AB56: 0 | AC56: 210.4367313 | AD56: 0 | AE56: 0 | AF56: 0 | AG56: 0 | AH56: 197.6711749 | AJ56: =IF(B56<0,D56+(B56+EXP(-D56))/-EXP(-D56),IF(B56=0,0,D56+(B56-EXP(D56))/EXP(D56))) -> 4.704215166 | AL56: =OFFSET(AA54,A56,A56) -> 210.4367313 | AN56: 0.0009975101785 | AO56: 0.005662670072 | AP56: 0.000781893539 | AQ56: 0.0005970273115 | AR56: 0.0003409728445 | AS56: 0 | AT56: -0.0009694573842 | AV56: 0.0009975101785 | AW56: 0.005662670072 | AX56: 0.000781893539 | AY56: 0.0005970273115 | AZ56: 0.0003409728445 | BA56: 0 | BB56: 2.805279433e-05 | BC56: 0.004693212688 | BD56: -0.0001875638452 | BE56: -0.0003724300727 | BF56: -0.0006284845397 | BG56: -0.0009414045899 | BH56: 0.003723755303 | BI56: -0.001157021229 | BJ56: -0.001341887457 | BK56: -0.001910861974 | BL56: 0.002754297919 | BM56: -0.002126478614 | BN56: -0.002880319358 | BO56: 0.001784840535 | BP56: -0.003849776743 | BR56: 475.201855 | BT56: 4.614871856 | BV56: =BT56-BY28/$K$1 -> 0.6943852749
A57: 3 | B57: 105 | D57: 4.656186332 | F57: 0 | G57: 0 | H57: 105.2339884 | I57: 0 | J57: 0 | K57: 0 | L57: 0 | M57: 0 | N57: 0 | O57: 0 | P57: 0 | Q57: 0 | R57: 0 | S57: 0 | T57: 0 | U57: 0 | V57: 0 | W57: 0 | X57: 0 | Y57: 0 | Z57: 0 | AB57: 0 | AC57: 0 | AD57: 210.1061565 | AE57: 0 | AF57: 0 | AG57: 0 | AH57: 169.4562845 | AJ57: 4.653962826 | AL57: =OFFSET(AA54,A57,A57) -> 210.1061565 | AN57: 0.0008564745079 | AO57: 0.000781893539 | AP57: 0.005430842211 | AQ57: 0.0005126149926 | AR57: 0.000292763478 | AS57: 0 | AT57: -0.0008323880336 | AV57: 0.0008564745079 | AW57: 0.000781893539 | AX57: 0.005430842211 | AY57: 0.0005126149926 | AZ57: 0.000292763478 | BA57: 0 | BB57: 2.408647423e-05 | BC57: -5.049449464e-05 | BD57: 0.004598454177 | BE57: -0.000319773041 | BF57: -0.0005396245557 | BG57: -0.0008083015594 | BH57: -0.0008828825283 | BI57: 0.003766066143 | BJ57: -0.001152161075 | BK57: -0.001640689593 | BL57: -0.001715270562 | BM57: 0.00293367811 | BN57: -0.002473077627 | BO57: -0.002547658596 | BP57: -0.00330546566 | BR57: 489.7550702 | BT57: 4.65711195 | BV57: =BT57-BY28/$K$1 -> 0.7366253695
A58: 4 | B58: 120 | D58: 4.613185992 | F58: 0 | G58: 0 | H58: 0 | I58: 100.8048019 | J58: 0 | K58: 0 | L58: 0 | M58: 0 | N58: 0 | O58: 0 | P58: 0 | Q58: 0 | R58: 0 | S58: 0 | T58: 0 | U58: 0 | V58: 0 | W58: 0 | X58: 0 | Y58: 0 | Z58: 0 | AB58: 0 | AC58: 0 | AD58: 0 | AE58: 185.1655726 | AF58: 0 | AG58: 0 | AH58: 114.0317313 | AJ58: 4.803605474 | AL58: =OFFSET(AA54,A58,A58) -> 185.1655726 | AN58: 0.0006539748026 | AO58: 0.0005970273115 | AP58: 0.0005126149926 | AQ58: 0.005791987338 | AR58: 0.0002235442339 | AS58: 0 | AT58: -0.0006355831902 | AV58: 0.0006539748026 | AW58: 0.0005970273115 | AX58: 0.0005126149926 | AY58: 0.005791987338 | AZ58: 0.0002235442339 | BA58: 0 | BB58: 1.839161246e-05 | BC58: -3.855587862e-05 | BD58: -0.0001229681975 | BE58: 0.005156404147 | BF58: -0.0004120389563 | BG58: -0.0006171915777 | BH58: -0.0006741390688 | BI58: -0.0007585513877 | BJ58: 0.004520820957 | BK58: -0.001252774768 | BL58: -0.001309722259 | BM58: -0.001394134578 | BN58: -0.001888357958 | BO58: -0.001945305449 | BP58: -0.002523941148 | BR58: 484.2264982 | BT58: 4.61338437 | BV58: =BT58-BY28/$K$1 -> 0.6928977887
A59: 5 | B59: 130 | D59: 4.703118248 | F59: 0 | G59: 0 | H59: 0 | I59: 0 | J59: 110.2905501 | K59: 0 | L59: 0 | M59: 0 | N59: 0 | O59: 0 | P59: 0 | Q59: 0 | R59: 0 | S59: 0 | T59: 0 | U59: 0 | V59: 0 | W59: 0 | X59: 0 | Y59: 0 | Z59: 0 | AB59: 0 | AC59: 0 | AD59: 0 | AE59: 0 | AF59: 170.1266801 | AG59: 0 | AH59: 59.83612995 | AJ59: 4.881823041 | AL59: =OFFSET(AA54,A59,A59) -> 170.1266801 | AN59: 0.0003734965626 | AO59: 0.0003409728445 | AP59: 0.000292763478 | AQ59: 0.0002235442339 | AR59: 0.006005642873 | AS59: 0 | AT59: -0.0003629927879 | AV59: 0.0003734965626 | AW59: 0.0003409728445 | AX59: 0.000292763478 | AY59: 0.0002235442339 | AZ59: 0.006005642873 | BA59: 0 | BB59: 1.050377478e-05 | BC59: -2.201994339e-05 | BD59: -7.022930991e-05 | BE59: -0.000139448554 | BF59: 0.005642650085 | BG59: -0.0003524890131 | BH59: -0.0003850127313 | BI59: -0.0004332220978 | BJ59: -0.0005024413418 | BK59: -0.000715481801 | BL59: -0.0007480055191 | BM59: -0.0007962148856 | BN59: -0.001078474589 | BO59: -0.001110998307 | BP59: -0.001441467377 | BR59: 538.4189487 | BT59: 4.702997609 | BV59: =BT59-BY28/$K$1 -> 0.7825110277
A60: 6 | B60: 125 | D60: 4.828313737 | F60: 0 | G60: 0 | H60: 0 | I60: 0 | J60: 0 | K60: 125 | L60: 0 | M60: 0 | N60: 0 | O60: 0 | P60: 0 | Q60: 0 | R60: 0 | S60: 0 | T60: 0 | U60: 0 | V60: 0 | W60: 0 | X60: 0 | Y60: 0 | Z60: 0 | AB60: 0 | AC60: 0 | AD60: 0 | AE60: 0 | AF60: 0 | AG60: 125 | AH60: 0 | AJ60: 4.828313737 | AL60: =OFFSET(AA54,A60,A60) -> 125 | AN60: 0 | AO60: 0 | AP60: 0 | AQ60: 0 | AR60: 0 | AS60: 0.008 | AT60: 0 | AV60: 0 | AW60: 0 | AX60: 0 | AY60: 0 | AZ60: 0 | BA60: 0.008 | BB60: 0 | BC60: 0 | BD60: 0 | BE60: 0 | BF60: 0 | BG60: 0 | BH60: 0 | BI60: 0 | BJ60: 0 | BK60: 0 | BL60: 0 | BM60: 0 | BN60: 0 | BO60: 0 | BP60: 0 | BR60: 603.5392172 | BT60: 4.828313737 | BV60: =BT60-BY28/$K$1 -> 0.9078271563
A61: 7 | B61: 55 | D61: 4.027321036 | F61: 0 | G61: 0 | H61: 0 | I61: 0 | J61: 0 | K61: 0 | L61: 56.11039198 | M61: 0 | N61: 0 | O61: 0 | P61: 0 | Q61: 0 | R61: 0 | S61: 0 | T61: 0 | U61: 0 | V61: 0 | W61: 0 | X61: 0 | Y61: 0 | Z61: 0 | AB61: 226.6873896 | AC61: 197.6711749 | AD61: 169.4562845 | AE61: 114.0317313 | AF61: 59.83612995 | AG61: 0 | AH61: 1615.799701 | AJ61: 4.007531618 | AL61: =OFFSET(AA54,A61,A61) -> 1615.799701 | AN61: -0.001061929143 | AO61: -0.0009694573842 | AP61: -0.0008323880336 | AQ61: -0.0006355831902 | AR61: -0.0003629927879 | AS61: 0 | AT61: 0.001032064706 | AV61: -0.001061929143 | AW61: -0.0009694573842 | AX61: -0.0008323880336 | AY61: -0.0006355831902 | AZ61: -0.0003629927879 | BA61: 0 | BB61: -2.986443696e-05 | BC61: 6.260732216e-05 | BD61: 0.0001996766727 | BE61: 0.0003964815162 | BF61: 0.0006690719185 | BG61: 0.001002200269 | BH61: 0.001094672029 | BI61: 0.001231741379 | BJ61: 0.001428546223 | BK61: 0.002034264976 | BL61: 0.002126736735 | BM61: 0.002263806085 | BN61: 0.003066329682 | BO61: 0.003158801441 | BP61: 0.004098394389 | BR61: 224.86417 | BT61: -0.6132827029 | BV61: =BT61-BY28/$K$1 -> -4.533769284
A62: 8 | B62: 50 | D62: 4.003772131 | F62: 0 | G62: 0 | H62: 0 | I62: 0 | J62: 0 | K62: 0 | L62: 0 | M62: 54.80449034 | N62: 0 | O62: 0 | P62: 0 | Q62: 0 | R62: 0 | S62: 0 | T62: 0 | U62: 0 | V62: 0 | W62: 0 | X62: 0 | Y62: 0 | Z62: 0 | AJ62: 3.916106133 | BR62: 214.6202007
A63: 9 | B63: 60 | D63: 4.044677742 | F63: 0 | G63: 0 | H63: 0 | I63: 0 | J63: 0 | K63: 0 | L63: 0 | M63: 0 | N63: 57.09278448 | O63: 0 | P63: 0 | Q63: 0 | R63: 0 | S63: 0 | T63: 0 | U63: 0 | V63: 0 | W63: 0 | X63: 0 | Y63: 0 | Z63: 0 | AJ63: 4.095598634 | BR63: 233.8291301
A64: 10 | B64: 35 | D64: 4.001677403 | F64: 0 | G64: 0 | H64: 0 | I64: 0 | J64: 0 | K64: 0 | L64: 0 | M64: 0 | N64: 0 | O64: 54.68980996 | P64: 0 | Q64: 0 | R64: 0 | S64: 0 | T64: 0 | U64: 0 | V64: 0 | W64: 0 | X64: 0 | Y64: 0 | Z64: 0 | AJ64: 3.641650371 | BR64: 199.1611667
A65: 11 | B65: 40 | D65: 4.091609658 | F65: =IF($A65=F$4,IF($B65<0,-(EXP(-$D65)^(2-$H$1)),IF($B65=0,0,EXP($D65)^(2-$H$1))),0) -> 0 | G65: 0 | H65: 0 | I65: 0 | J65: 0 | K65: 0 | L65: 0 | M65: 0 | N65: 0 | O65: 0 | P65: =IF($A65=P$4,IF($B65<0,-(EXP(-$D65)^(2-$H$1)),IF($B65=0,0,EXP($D65)^(2-$H$1))),0) -> 59.83612995 | Q65: 0 | R65: 0 | S65: 0 | T65: 0 | U65: 0 | V65: 0 | W65: 0 | X65: 0 | Y65: 0 | Z65: 0 | AJ65: 3.76010209 | BR65: 224.9899573
A66: 12 | B66: 20 | D66: 3.415812446 | F66: 0 | G66: 0 | H66: 0 | I66: 0 | J66: 0 | K66: 0 | L66: 0 | M66: 0 | N66: 0 | O66: 0 | P66: 0 | Q66: 30.44167159 | R66: 0 | S66: 0 | T66: 0 | U66: 0 | V66: 0 | W66: 0 | X66: 0 | Y66: 0 | Z66: 0 | AJ66: 3.072806591 | BR66: 93.5413691
A67: 13 | B67: 15 | D67: 3.392263541 | F67: 0 | G67: 0 | H67: 0 | I67: 0 | J67: 0 | K67: 0 | L67: 0 | M67: 0 | N67: 0 | O67: 0 | P67: 0 | Q67: 0 | R67: 29.73317843 | S67: 0 | T67: 0 | U67: 0 | V67: 0 | W67: 0 | X67: 0 | Y67: 0 | Z67: 0 | AJ67: 2.896750474 | BR67: 86.12959873
A68: 14 | B68: 25 | D68: 3.433169152 | F68: 0 | G68: 0 | H68: 0 | I68: 0 | J68: 0 | K68: 0 | L68: 0 | M68: 0 | N68: 0 | O68: 0 | P68: 0 | Q68: 0 | R68: 0 | S68: 30.97465075 | T68: 0 | U68: 0 | V68: 0 | W68: 0 | X68: 0 | Y68: 0 | Z68: 0 | AJ68: 3.240280755 | BR68: 100.3665647
A69: 15 | B69: 30 | D69: 3.390168813 | F69: 0 | G69: 0 | H69: 0 | I69: 0 | J69: 0 | K69: 0 | L69: 0 | M69: 0 | N69: 0 | O69: 0 | P69: 0 | Q69: 0 | R69: 0 | S69: 0 | T69: 29.67096068 | U69: 0 | V69: 0 | W69: 0 | X69: 0 | Y69: 0 | Z69: 0 | AJ69: 3.401258421 | BR69: 100.9186049
A70: 16 | B70: 30 | D70: 2.804303856 | F70: 0 | G70: 0 | H70: 0 | I70: 0 | J70: 0 | K70: 0 | L70: 0 | M70: 0 | N70: 0 | O70: 0 | P70: 0 | Q70: 0 | R70: 0 | S70: 0 | T70: 0 | U70: 16.51557468 | V70: 0 | W70: 0 | X70: 0 | Y70: 0 | Z70: 0 | AJ70: 3.620771074 | BR70: 59.79911508
A71: 17 | B71: 30 | D71: 2.780754951 | F71: 0 | G71: 0 | H71: 0 | I71: 0 | J71: 0 | K71: 0 | L71: 0 | M71: 0 | N71: 0 | O71: 0 | P71: 0 | Q71: 0 | R71: 0 | S71: 0 | T71: 0 | U71: 0 | V71: 16.13119462 | W71: 0 | X71: 0 | Y71: 0 | Z71: 0 | AJ71: 3.640505621 | BR71: 58.72570469
A72: 18 | B72: 20 | D72: 2.821660562 | F72: 0 | G72: 0 | H72: 0 | I72: 0 | J72: 0 | K72: 0 | L72: 0 | M72: 0 | N72: 0 | O72: 0 | P72: 0 | Q72: 0 | R72: 0 | S72: 0 | T72: 0 | U72: 0 | V72: 0 | W72: 16.80473282 | X72: 0 | Y72: 0 | Z72: 0 | AJ72: 3.011801472 | BR72: 50.61251905
A73: 19 | B73: 15 | D73: 2.192795266 | F73: 0 | G73: 0 | H73: 0 | I73: 0 | J73: 0 | K73: 0 | L73: 0 | M73: 0 | N73: 0 | O73: 0 | P73: 0 | Q73: 0 | R73: 0 | S73: 0 | T73: 0 | U73: 0 | V73: 0 | W73: 0 | X73: 8.960224352 | Y73: 0 | Z73: 0 | AJ73: 2.866860491 | BR73: 25.68771319
A74: 20 | B74: 5 | D74: 2.169246361 | F74: 0 | G74: 0 | H74: 0 | I74: 0 | J74: 0 | K74: 0 | L74: 0 | M74: 0 | N74: 0 | O74: 0 | P74: 0 | Q74: 0 | R74: 0 | S74: 0 | T74: 0 | U74: 0 | V74: 0 | W74: 0 | X74: 0 | Y74: 8.751685947 | Z74: 0 | AJ74: 1.740564851 | BR74: 15.23287695
A75: 21 | B75: 5 | D75: 1.581286676 | F75: 0 | G75: 0 | H75: 0 | I75: 0 | J75: 0 | K75: 0 | L75: 0 | M75: 0 | N75: 0 | O75: 0 | P75: 0 | Q75: 0 | R75: 0 | S75: 0 | T75: 0 | U75: 0 | V75: 0 | W75: 0 | X75: 0 | Y75: 0 | Z75: 4.861206587 | AJ75: 1.609837903 | BR75: 7.825754619
A77: Newton-Raphson Interation Sequence -- Iteration 4
B78: y(i) | D78: xb(i) | F78: W(i,i) | AB78: XWX | AJ78: zz(i) | AL78: factor | AN78: xwx-1 | AV78: aa1(i,j) | BR78: aa2(j) | BT78: beta(j) | BV78: beta_diff = | BW78: =SUM(BV80:BV90) -> 4.442187604e-07 | BX78: beta_old = | BY78: =SUM(BT80:BT90) -> 27.4426348
B79: 1 | D79: 1 | F79: 1 | G79: 2 | H79: 3 | I79: 4 | J79: 5 | K79: 6 | L79: 7 | M79: 8 | N79: 9 | O79: 10 | P79: 11 | Q79: 12 | R79: 13 | S79: 14 | T79: 15 | U79: 16 | V79: 17 | W79: 18 | X79: 19 | Y79: 20 | Z79: 21 | AB79: 1 | AC79: 2 | AD79: 3 | AE79: 4 | AF79: 5 | AG79: 6 | AH79: 7 | AJ79: 1 | AN79: 1 | AO79: 2 | AP79: 3 | AQ79: 4 | AR79: 5 | AS79: 6 | AT79: 7 | AV79: 1 | AW79: 2 | AX79: 3 | AY79: 4 | AZ79: 5 | BA79: 6 | BB79: 7 | BC79: 8 | BD79: 9 | BE79: 10 | BF79: 11 | BG79: 12 | BH79: 13 | BI79: 14 | BJ79: 15 | BK79: 16 | BL79: 17 | BM79: 18 | BN79: 19 | BO79: 20 | BP79: 21
A80: 1 | B80: =B55 -> 95 | D80: =MMULT(DesignMatrix,BT55:BT61) -> 4.639237533 | F80: =IF($A80=F$4,IF($B80<0,-(EXP(-$D80)^(2-$H$1)),IF($B80=0,0,EXP($D80)^(2-$H$1))),0) -> 103.4654285 | G80: 0 | H80: 0 | I80: 0 | J80: 0 | K80: 0 | L80: 0 | M80: 0 | N80: 0 | O80: 0 | P80: =IF($A80=P$4,IF($B80<0,-(EXP(-$D80)^(2-$H$1)),IF($B80=0,0,EXP($D80)^(2-$H$1))),0) -> 0 | Q80: 0 | R80: 0 | S80: 0 | T80: 0 | U80: 0 | V80: 0 | W80: 0 | X80: 0 | Y80: 0 | Z80: 0 | AB80: =MMULT(TRANSPOSE(DesignMatrix),MMULT(F80:Z100,DesignMatrix)) -> 220.0007836 | AC80: 0 | AD80: 0 | AE80: 0 | AF80: 0 | AG80: 0 | AH80: 225.7332445 | AJ80: =IF(B80<0,D80+(B80+EXP(-D80))/-EXP(-D80),IF(B80=0,0,D80+(B80-EXP(D80))/EXP(D80))) -> 4.557418624 | AL80: =OFFSET(AA79,A80,A80) -> 220.0007836 | AN80: =MINVERSE(AB80:AH86) -> 0.005635772824 | AO80: 0.0009957377813 | AP80: 0.0008552989789 | AQ80: 0.0006533663407 | AR80: 0.000373318802 | AS80: 0 | AT80: -0.001062645592 | AV80: =MMULT(AN80:AT86,TRANSPOSE(DesignMatrix)) -> 0.005635772824 | AW80: 0.0009957377813 | AX80: 0.0008552989789 | AY80: 0.0006533663407 | AZ80: 0.000373318802 | BA80: 0 | BB80: 0.004573127232 | BC80: -6.690781066e-05 | BD80: -0.0002073466131 | BE80: -0.0004092792512 | BF80: -0.0006893267899 | BG80: 0.00351048164 | BH80: -0.001129553403 | BI80: -0.001269992205 | BJ80: -0.001471924843 | BK80: 0.002447836048 | BL80: -0.002192198994 | BM80: -0.002332637797 | BN80: 0.001385190456 | BO80: -0.003254844586 | BP80: 0.000322544864 | BR80: =MMULT(F80:Z100,AJ80:AJ100) -> 471.5352709 | BT80: =MMULT(AV80:BP86,BR80:BR100) -> 4.639238365 | BV80: =BT80-BY53/$K$1 -> 0.7188620294
A81: 2 | B81: =B56 -> 110 | D81: 4.614871856 | F81: 0 | G81: 100.9748884 | H81: 0 | I81: 0 | J81: 0 | K81: 0 | L81: 0 | M81: 0 | N81: 0 | O81: 0 | P81: 0 | Q81: 0 | R81: 0 | S81: 0 | T81: 0 | U81: 0 | V81: 0 | W81: 0 | X81: 0 | Y81: 0 | Z81: 0 | AB81: 0 | AC81: 210.0008817 | AD81: 0 | AE81: 0 | AF81: 0 | AG81: 0 | AH81: 196.778506 | AJ81: =IF(B81<0,D81+(B81+EXP(-D81))/-EXP(-D81),IF(B81=0,0,D81+(B81-EXP(D81))/EXP(D81))) -> 4.704251619 | AL81: =OFFSET(AA79,A81,A81) -> 210.0008817 | AN81: 0.0009957377813 | AO81: 0.005671233009 | AP81: 0.0007810938138 | AQ81: 0.0005966807158 | AR81: 0.0003409299134 | AS81: 0 | AT81: -0.000970451174 | AV81: 0.0009957377813 | AW81: 0.005671233009 | AX81: 0.0007810938138 | AY81: 0.0005966807158 | AZ81: 0.0003409299134 | BA81: 0 | BB81: 2.528660727e-05 | BC81: 0.004700781835 | BD81: -0.0001893573601 | BE81: -0.0003737704582 | BF81: -0.0006295212606 | BG81: -0.0009451645667 | BH81: 0.003730330661 | BI81: -0.001159808534 | BJ81: -0.001344221632 | BK81: -0.001915615741 | BL81: 0.002759879487 | BM81: -0.002130259708 | BN81: -0.002886066915 | BO81: 0.001789428313 | BP81: -0.003856518089 | BR81: 475.0112821 | BT81: 4.61487167 | BV81: =BT81-BY53/$K$1 -> 0.694495334
A82: 3 | B82: 105 | D82: 4.65711195 | F82: 0 | G82: 0 | H82: 105.33144 | I82: 0 | J82: 0 | K82: 0 | L82: 0 | M82: 0 | N82: 0 | O82: 0 | P82: 0 | Q82: 0 | R82: 0 | S82: 0 | T82: 0 | U82: 0 | V82: 0 | W82: 0 | X82: 0 | Y82: 0 | Z82: 0 | AB82: 0 | AC82: 0 | AD82: 210.0003343 | AE82: 0 | AF82: 0 | AG82: 0 | AH82: 169.0244356 | AJ82: 4.653965311 | AL82: =OFFSET(AA79,A82,A82) -> 210.0003343 | AN82: 0.0008552989789 | AO82: 0.0007810938138 | AP82: 0.005432825567 | AQ82: 0.0005125249001 | AR82: 0.000292845177 | AS82: 0 | AT82: -0.0008335787933 | AV82: 0.0008552989789 | AW82: 0.0007810938138 | AX82: 0.005432825567 | AY82: 0.0005125249001 | AZ82: 0.000292845177 | BA82: 0 | BB82: 2.172018556e-05 | BC82: -5.248497947e-05 | BD82: 0.004599246774 | BE82: -0.0003210538932 | BF82: -0.0005407336163 | BG82: -0.0008118586077 | BH82: -0.0008860637728 | BI82: 0.003765667981 | BJ82: -0.001154632686 | BK82: -0.001645437401 | BL82: -0.001719642566 | BM82: 0.002932089187 | BN82: -0.002479016194 | BO82: -0.002553221359 | BP82: -0.003312594988 | BR82: 490.2088681 | BT82: 4.657113806 | BV82: =BT82-BY53/$K$1 -> 0.7367374696
A83: 4 | B83: 120 | D83: 4.61338437 | F83: 0 | G83: 0 | H83: 0 | I83: 100.8248013 | J83: 0 | K83: 0 | L83: 0 | M83: 0 | N83: 0 | O83: 0 | P83: 0 | Q83: 0 | R83: 0 | S83: 0 | T83: 0 | U83: 0 | V83: 0 | W83: 0 | X83: 0 | Y83: 0 | Z83: 0 | AB83: 0 | AC83: 0 | AD83: 0 | AE83: 185.0002361 | AF83: 0 | AG83: 0 | AH83: 113.7471686 | AJ83: 4.803567722 | AL83: =OFFSET(AA79,A83,A83) -> 185.0002361 | AN83: 0.0006533663407 | AO83: 0.0005966807158 | AP83: 0.0005125249001 | AQ83: 0.005796918345 | AR83: 0.0002237056122 | AS83: 0 | AT83: -0.0006367742033 | AV83: 0.0006533663407 | AW83: 0.0005966807158 | AX83: 0.0005125249001 | AY83: 0.005796918345 | AZ83: 0.0002237056122 | BA83: 0 | BB83: 1.659213738e-05 | BC83: -4.009348757e-05 | BD83: -0.0001242493032 | BE83: 0.005160144142 | BF83: -0.0004130685911 | BG83: -0.000620182066 | BH83: -0.0006768676909 | BI83: -0.0007610235065 | BJ83: 0.004523369938 | BK83: -0.001256956269 | BL83: -0.001313641894 | BM83: -0.00139779771 | BN83: -0.001893730473 | BO83: -0.001950416098 | BP83: -0.002530504676 | BR83: 484.318761 | BT83: 4.613385726 | BV83: =BT83-BY53/$K$1 -> 0.6930093903
A84: 5 | B84: 130 | D84: 4.702997609 | F84: 0 | G84: 0 | H84: 0 | I84: 0 | J84: 110.2772455 | K84: 0 | L84: 0 | M84: 0 | N84: 0 | O84: 0 | P84: 0 | Q84: 0 | R84: 0 | S84: 0 | T84: 0 | U84: 0 | V84: 0 | W84: 0 | X84: 0 | Y84: 0 | Z84: 0 | AB84: 0 | AC84: 0 | AD84: 0 | AE84: 0 | AF84: 170.0001081 | AG84: 0 | AH84: 59.72286263 | AJ84: 4.881844608 | AL84: =OFFSET(AA79,A84,A84) -> 170.0001081 | AN84: 0.000373318802 | AO84: 0.0003409299134 | AP84: 0.000292845177 | AQ84: 0.0002237056122 | AR84: 0.006010169544 | AS84: 0 | AT84: -0.0003638384286 | AV84: 0.000373318802 | AW84: 0.0003409299134 | AX84: 0.000292845177 | AY84: 0.0002237056122 | AZ84: 0.006010169544 | BA84: 0 | BB84: 9.480373358e-06 | BC84: -2.29085152e-05 | BD84: -7.099325161e-05 | BE84: -0.0001401328164 | BF84: 0.005646331116 | BG84: -0.0003543580553 | BH84: -0.0003867469438 | BI84: -0.0004348316802 | BJ84: -0.000503971245 | BK84: -0.0007181964839 | BL84: -0.0007505853725 | BM84: -0.0007986701089 | BN84: -0.001082034913 | BO84: -0.001114423801 | BP84: -0.001445873341 | BR84: 538.3563764 | BT84: 4.702998477 | BV84: =BT84-BY53/$K$1 -> 0.782622141
A85: 6 | B85: 125 | D85: 4.828313737 | F85: 0 | G85: 0 | H85: 0 | I85: 0 | J85: 0 | K85: 125 | L85: 0 | M85: 0 | N85: 0 | O85: 0 | P85: 0 | Q85: 0 | R85: 0 | S85: 0 | T85: 0 | U85: 0 | V85: 0 | W85: 0 | X85: 0 | Y85: 0 | Z85: 0 | AB85: 0 | AC85: 0 | AD85: 0 | AE85: 0 | AF85: 0 | AG85: 125 | AH85: 0 | AJ85: 4.828313737 | AL85: =OFFSET(AA79,A85,A85) -> 125 | AN85: 0 | AO85: 0 | AP85: 0 | AQ85: 0 | AR85: 0 | AS85: 0.008 | AT85: 0 | AV85: 0 | AW85: 0 | AX85: 0 | AY85: 0 | AZ85: 0 | BA85: 0.008 | BB85: 0 | BC85: 0 | BD85: 0 | BE85: 0 | BF85: 0 | BG85: 0 | BH85: 0 | BI85: 0 | BJ85: 0 | BK85: 0 | BL85: 0 | BM85: 0 | BN85: 0 | BO85: 0 | BP85: 0 | BR85: 603.5392172 | BT85: 4.828313737 | BV85: =BT85-BY53/$K$1 -> 0.9079374013
A86: 7 | B86: 55 | D86: 4.02595483 | F86: 0 | G86: 0 | H86: 0 | I86: 0 | J86: 0 | K86: 0 | L86: 56.033786 | M86: 0 | N86: 0 | O86: 0 | P86: 0 | Q86: 0 | R86: 0 | S86: 0 | T86: 0 | U86: 0 | V86: 0 | W86: 0 | X86: 0 | Y86: 0 | Z86: 0 | AB86: 225.7332445 | AC86: 196.778506 | AD86: 169.0244356 | AE86: 113.7471686 | AF86: 59.72286263 | AG86: 0 | AH86: 1608.534168 | AJ86: 4.007505497 | AL86: =OFFSET(AA79,A86,A86) -> 1608.534168 | AN86: -0.001062645592 | AO86: -0.000970451174 | AP86: -0.0008335787933 | AQ86: -0.0006367742033 | AR86: -0.0003638384286 | AS86: 0 | AT86: 0.001035659871 | AV86: -0.001062645592 | AW86: -0.000970451174 | AX86: -0.0008335787933 | AY86: -0.0006367742033 | AZ86: -0.0003638384286 | BA86: 0 | BB86: -2.69857208e-05 | BC86: 6.520869714e-05 | BD86: 0.0002020810778 | BE86: 0.0003988856678 | BF86: 0.0006718214425 | BG86: 0.00100867415 | BH86: 0.001100868568 | BI86: 0.001237740949 | BJ86: 0.001434545539 | BK86: 0.002044334021 | BL86: 0.002136528439 | BM86: 0.00227340082 | BN86: 0.003079993893 | BO86: 0.00317218831 | BP86: 0.004115653764 | BR86: 224.5557054 | BT86: -0.6132869854 | BV86: =BT86-BY53/$K$1 -> -4.533663321
A87: 8 | B87: 50 | D87: 4.001589153 | F87: 0 | G87: 0 | H87: 0 | I87: 0 | J87: 0 | K87: 0 | L87: 0 | M87: 54.68498382 | N87: 0 | O87: 0 | P87: 0 | Q87: 0 | R87: 0 | S87: 0 | T87: 0 | U87: 0 | V87: 0 | W87: 0 | X87: 0 | Y87: 0 | Z87: 0 | AJ87: 3.915916936 | BR87: 214.1418543
A88: 9 | B88: 60 | D88: 4.043829248 | F88: 0 | G88: 0 | H88: 0 | I88: 0 | J88: 0 | K88: 0 | L88: 0 | M88: 0 | N88: 57.0443621 | O88: 0 | P88: 0 | Q88: 0 | R88: 0 | S88: 0 | T88: 0 | U88: 0 | V88: 0 | W88: 0 | X88: 0 | Y88: 0 | Z88: 0 | AJ88: 4.095642219 | BR88: 233.6332978
A89: 10 | B89: 35 | D89: 4.000101667 | F89: 0 | G89: 0 | H89: 0 | I89: 0 | J89: 0 | K89: 0 | L89: 0 | M89: 0 | N89: 0 | O89: 54.60370113 | P89: 0 | Q89: 0 | R89: 0 | S89: 0 | T89: 0 | U89: 0 | V89: 0 | W89: 0 | X89: 0 | Y89: 0 | Z89: 0 | AJ89: 3.641083858 | BR89: 198.8166548
A90: 11 | B90: 40 | D90: 4.089714906 | F90: =IF($A90=F$4,IF($B90<0,-(EXP(-$D90)^(2-$H$1)),IF($B90=0,0,EXP($D90)^(2-$H$1))),0) -> 0 | G90: 0 | H90: 0 | I90: 0 | J90: 0 | K90: 0 | L90: 0 | M90: 0 | N90: 0 | O90: 0 | P90: =IF($A90=P$4,IF($B90<0,-(EXP(-$D90)^(2-$H$1)),IF($B90=0,0,EXP($D90)^(2-$H$1))),0) -> 59.72286263 | Q90: 0 | R90: 0 | S90: 0 | T90: 0 | U90: 0 | V90: 0 | W90: 0 | X90: 0 | Y90: 0 | Z90: 0 | AJ90: 3.759475166 | BR90: 224.5266189
A91: 12 | B91: 20 | D91: 3.412672127 | F91: 0 | G91: 0 | H91: 0 | I91: 0 | J91: 0 | K91: 0 | L91: 0 | M91: 0 | N91: 0 | O91: 0 | P91: 0 | Q91: 30.34622499 | R91: 0 | S91: 0 | T91: 0 | U91: 0 | V91: 0 | W91: 0 | X91: 0 | Y91: 0 | Z91: 0 | AJ91: 3.071732686 | BR91: 93.2154912
A92: 13 | B92: 15 | D92: 3.38830645 | F92: 0 | G92: 0 | H92: 0 | I92: 0 | J92: 0 | K92: 0 | L92: 0 | M92: 0 | N92: 0 | O92: 0 | P92: 0 | Q92: 0 | R92: 29.61575402 | S92: 0 | T92: 0 | U92: 0 | V92: 0 | W92: 0 | X92: 0 | Y92: 0 | Z92: 0 | AJ92: 2.894793639 | BR92: 85.73149634
A93: 14 | B93: 25 | D93: 3.430546545 | F93: 0 | G93: 0 | H93: 0 | I93: 0 | J93: 0 | K93: 0 | L93: 0 | M93: 0 | N93: 0 | O93: 0 | P93: 0 | Q93: 0 | R93: 0 | S93: 30.89352282 | T93: 0 | U93: 0 | V93: 0 | W93: 0 | X93: 0 | Y93: 0 | Z93: 0 | AJ93: 3.239777662 | BR93: 100.0881452
A94: 15 | B94: 30 | D94: 3.386818964 | F94: 0 | G94: 0 | H94: 0 | I94: 0 | J94: 0 | K94: 0 | L94: 0 | M94: 0 | N94: 0 | O94: 0 | P94: 0 | Q94: 0 | R94: 0 | S94: 0 | T94: 29.57173374 | U94: 0 | V94: 0 | W94: 0 | X94: 0 | Y94: 0 | Z94: 0 | AJ94: 3.401301248 | BR94: 100.5823749
A95: 16 | B95: 30 | D95: 2.799389424 | F95: 0 | G95: 0 | H95: 0 | I95: 0 | J95: 0 | K95: 0 | L95: 0 | M95: 0 | N95: 0 | O95: 0 | P95: 0 | Q95: 0 | R95: 0 | S95: 0 | T95: 0 | U95: 16.43460913 | V95: 0 | W95: 0 | X95: 0 | Y95: 0 | Z95: 0 | AJ95: 3.624805518 | BR95: 59.57226187
A96: 17 | B96: 30 | D96: 2.775023747 | F96: 0 | G96: 0 | H96: 0 | I96: 0 | J96: 0 | K96: 0 | L96: 0 | M96: 0 | N96: 0 | O96: 0 | P96: 0 | Q96: 0 | R96: 0 | S96: 0 | T96: 0 | U96: 0 | V96: 16.03900787 | W96: 0 | X96: 0 | Y96: 0 | Z96: 0 | AJ96: 3.64546363 | BR96: 58.46961985
A97: 18 | B97: 20 | D97: 2.817263842 | F97: 0 | G97: 0 | H97: 0 | I97: 0 | J97: 0 | K97: 0 | L97: 0 | M97: 0 | N97: 0 | O97: 0 | P97: 0 | Q97: 0 | R97: 0 | S97: 0 | T97: 0 | U97: 0 | V97: 0 | W97: 16.7310093 | X97: 0 | Y97: 0 | Z97: 0 | AJ97: 3.012648988 | BR97: 50.40465823
A98: 19 | B98: 15 | D98: 2.186106721 | F98: 0 | G98: 0 | H98: 0 | I98: 0 | J98: 0 | K98: 0 | L98: 0 | M98: 0 | N98: 0 | O98: 0 | P98: 0 | Q98: 0 | R98: 0 | S98: 0 | T98: 0 | U98: 0 | V98: 0 | W98: 0 | X98: 8.900493471 | Y98: 0 | Z98: 0 | AJ98: 2.871406536 | BR98: 25.55693513
A99: 20 | B99: 5 | D99: 2.161741044 | F99: 0 | G99: 0 | H99: 0 | I99: 0 | J99: 0 | K99: 0 | L99: 0 | M99: 0 | N99: 0 | O99: 0 | P99: 0 | Q99: 0 | R99: 0 | S99: 0 | T99: 0 | U99: 0 | V99: 0 | W99: 0 | X99: 0 | Y99: 8.686247642 | Z99: 0 | AJ99: 1.737363592 | BR99: 15.0911704
A100: 21 | B100: 5 | D100: 1.572824018 | F100: 0 | G100: 0 | H100: 0 | I100: 0 | J100: 0 | K100: 0 | L100: 0 | M100: 0 | N100: 0 | O100: 0 | P100: 0 | Q100: 0 | R100: 0 | S100: 0 | T100: 0 | U100: 0 | V100: 0 | W100: 0 | X100: 0 | Y100: 0 | Z100: 4.820241442 | AJ100: 1.610116457 | BR100: 7.761150072
A102: Newton-Raphson Interation Sequence -- Iteration 5
B103: y(i) | D103: xb(i) | F103: W(i,i) | AB103: XWX | AJ103: zz(i) | AL103: factor | AN103: xwx-1 | AV103: aa1(i,j) | BR103: aa2(j) | BT103: beta(j) | BV103: beta_diff = | BW103: =SUM(BV105:BV115) -> 5.313083307e-12 | BX103: beta_old = | BY103: =SUM(BT105:BT115) -> 27.4426348
B104: 1 | D104: 1 | F104: 1 | G104: 2 | H104: 3 | I104: 4 | J104: 5 | K104: 6 | L104: 7 | M104: 8 | N104: 9 | O104: 10 | P104: 11 | Q104: 12 | R104: 13 | S104: 14 | T104: 15 | U104: 16 | V104: 17 | W104: 18 | X104: 19 | Y104: 20 | Z104: 21 | AB104: 1 | AC104: 2 | AD104: 3 | AE104: 4 | AF104: 5 | AG104: 6 | AH104: 7 | AJ104: 1 | AN104: 1 | AO104: 2 | AP104: 3 | AQ104: 4 | AR104: 5 | AS104: 6 | AT104: 7 | AV104: 1 | AW104: 2 | AX104: 3 | AY104: 4 | AZ104: 5 | BA104: 6 | BB104: 7 | BC104: 8 | BD104: 9 | BE104: 10 | BF104: 11 | BG104: 12 | BH104: 13 | BI104: 14 | BJ104: 15 | BK104: 16 | BL104: 17 | BM104: 18 | BN104: 19 | BO104: 20 | BP104: 21
A105: 1 | B105: =B80 -> 95 | D105: =MMULT(DesignMatrix,BT80:BT86) -> 4.639238365 | F105: =IF($A105=F$4,IF($B105<0,-(EXP(-$D105)^(2-$H$1)),IF($B105=0,0,EXP($D105)^(2-$H$1))),0) -> 103.4655147 | G105: 0 | H105: 0 | I105: 0 | J105: 0 | K105: 0 | L105: 0 | M105: 0 | N105: 0 | O105: 0 | P105: =IF($A105=P$4,IF($B105<0,-(EXP(-$D105)^(2-$H$1)),IF($B105=0,0,EXP($D105)^(2-$H$1))),0) -> 0 | Q105: 0 | R105: 0 | S105: 0 | T105: 0 | U105: 0 | V105: 0 | W105: 0 | X105: 0 | Y105: 0 | Z105: 0 | AB105: =MMULT(TRANSPOSE(DesignMatrix),MMULT(F105:Z125,DesignMatrix)) -> 220 | AC105: 0 | AD105: 0 | AE105: 0 | AF105: 0 | AG105: 0 | AH105: 225.7309133 | AJ105: =IF(B105<0,D105+(B105+EXP(-D105))/-EXP(-D105),IF(B105=0,0,D105+(B105-EXP(D105))/EXP(D105))) -> 4.557418692 | AL105: =OFFSET(AA104,A105,A105) -> 220 | AN105: =MINVERSE(AB105:AH111) -> 0.005635783155 | AO105: 0.0009957332722 | AP105: 0.0008552959413 | AQ105: 0.0006533647184 | AR105: 0.000373318285 | AS105: 0 | AT105: -0.001062647072 | AV105: =MMULT(AN105:AT111,TRANSPOSE(DesignMatrix)) -> 0.005635783155 | AW105: 0.0009957332722 | AX105: 0.0008552959413 | AY105: 0.0006533647184 | AZ105: 0.000373318285 | BA105: 0 | BB105: 0.004573136083 | BC105: -6.691380004e-05 | BD105: -0.0002073511309 | BE105: -0.0004092823538 | BF105: -0.0006893287872 | BG105: 0.00351048901 | BH105: -0.001129560872 | BI105: -0.001269998203 | BJ105: -0.001471929426 | BK105: 0.002447841938 | BL105: -0.002192207944 | BM105: -0.002332645275 | BN105: 0.001385194866 | BO105: -0.003254855017 | BP105: 0.0003225477937 | BR105: =MMULT(F105:Z125,AJ105:AJ125) -> 471.5356704 | BT105: =MMULT(AV105:BP111,BR105:BR125) -> 4.639238365 | BV105: =BT105-BY78/$K$1 -> 0.718861966
A106: 2 | B106: =B81 -> 110 | D106: 4.61487167 | F106: 0 | G106: 100.9748696 | H106: 0 | I106: 0 | J106: 0 | K106: 0 | L106: 0 | M106: 0 | N106: 0 | O106: 0 | P106: 0 | Q106: 0 | R106: 0 | S106: 0 | T106: 0 | U106: 0 | V106: 0 | W106: 0 | X106: 0 | Y106: 0 | Z106: 0 | AB106: 0 | AC106: 210 | AD106: 0 | AE106: 0 | AF106: 0 | AG106: 0 | AH106: 196.7765146 | AJ106: =IF(B106<0,D106+(B106+EXP(-D106))/-EXP(-D106),IF(B106=0,0,D106+(B106-EXP(D106))/EXP(D106))) -> 4.704251636 | AL106: =OFFSET(AA104,A106,A106) -> 210 | AN106: 0.0009957332722 | AO106: 0.005671249652 | AP106: 0.0007810916993 | AQ106: 0.0005966797379 | AR106: 0.0003409297291 | AS106: 0 | AT106: -0.0009704533452 | AV106: 0.0009957332722 | AW106: 0.005671249652 | AX106: 0.0007810916993 | AY106: 0.0005966797379 | AZ106: 0.0003409297291 | BA106: 0 | BB106: 2.527992701e-05 | BC106: 0.004700796307 | BD106: -0.0001893616459 | BE106: -0.0003737736072 | BF106: -0.0006295236161 | BG106: -0.0009451734182 | BH106: 0.003730342961 | BI106: -0.001159814991 | BJ106: -0.001344226952 | BK106: -0.001915626763 | BL106: 0.002759889616 | BM106: -0.002130268336 | BN106: -0.002886080108 | BO106: 0.001789436271 | BP106: -0.003856533454 | BR106: 475.0111955 | BT106: 4.61487167 | BV106: =BT106-BY78/$K$1 -> 0.6944952706
A107: 3 | B107: 105 | D107: 4.657113806 | F107: 0 | G107: 0 | H107: 105.3316354 | I107: 0 | J107: 0 | K107: 0 | L107: 0 | M107: 0 | N107: 0 | O107: 0 | P107: 0 | Q107: 0 | R107: 0 | S107: 0 | T107: 0 | U107: 0 | V107: 0 | W107: 0 | X107: 0 | Y107: 0 | Z107: 0 | AB107: 0 | AC107: 0 | AD107: 210 | AE107: 0 | AF107: 0 | AG107: 0 | AH107: 169.0233309 | AJ107: 4.653965317 | AL107: =OFFSET(AA104,A107,A107) -> 210 | AN107: 0.0008552959413 | AO107: 0.0007810916993 | AP107: 0.005432831986 | AQ107: 0.0005125245609 | AR107: 0.0002928453048 | AS107: 0 | AT107: -0.0008335814726 | AV107: 0.0008552959413 | AW107: 0.0007810916993 | AX107: 0.005432831986 | AY107: 0.0005125245609 | AZ107: 0.0002928453048 | BA107: 0 | BB107: 2.17144687e-05 | BC107: -5.248977335e-05 | BD107: 0.004599250513 | BE107: -0.0003210569117 | BF107: -0.0005407361679 | BG107: -0.000811867004 | BH107: -0.000886071246 | BI107: 0.003765669041 | BJ107: -0.001154638384 | BK107: -0.001645448477 | BL107: -0.001719652719 | BM107: 0.002932087568 | BN107: -0.002479029949 | BO107: -0.002553234191 | BP107: -0.003312611422 | BR107: 490.2097781 | BT107: 4.657113806 | BV107: =BT107-BY78/$K$1 -> 0.7367374061
A108: 4 | B108: 120 | D108: 4.613385726 | F108: 0 | G108: 0 | H108: 0 | I108: 100.824938 | J108: 0 | K108: 0 | L108: 0 | M108: 0 | N108: 0 | O108: 0 | P108: 0 | Q108: 0 | R108: 0 | S108: 0 | T108: 0 | U108: 0 | V108: 0 | W108: 0 | X108: 0 | Y108: 0 | Z108: 0 | AB108: 0 | AC108: 0 | AD108: 0 | AE108: 185 | AF108: 0 | AG108: 0 | AH108: 113.7465825 | AJ108: 4.803567464 | AL108: =OFFSET(AA104,A108,A108) -> 185 | AN108: 0.0006533647184 | AO108: 0.0005966797379 | AP108: 0.0005125245609 | AQ108: 0.005796925404 | AR108: 0.0002237059488 | AS108: 0 | AT108: -0.0006367769304 | AV108: 0.0006533647184 | AW108: 0.0005966797379 | AX108: 0.0005125245609 | AY108: 0.005796925404 | AZ108: 0.0002237059488 | BA108: 0 | BB108: 1.658778797e-05 | BC108: -4.009719248e-05 | BD108: -0.0001242523695 | BE108: 0.005160148473 | BF108: -0.0004130709816 | BG108: -0.0006201891425 | BH108: -0.0006768741229 | BI108: -0.0007610292999 | BJ108: 0.004523371543 | BK108: -0.001256966073 | BL108: -0.001313651053 | BM108: -0.00139780623 | BN108: -0.001893743003 | BO108: -0.001950427984 | BP108: -0.002530519934 | BR108: 484.319392 | BT108: 4.613385726 | BV108: =BT108-BY78/$K$1 -> 0.6930093269
A109: 5 | B109: 130 | D109: 4.702998477 | F109: 0 | G109: 0 | H109: 0 | I109: 0 | J109: 110.2773413 | K109: 0 | L109: 0 | M109: 0 | N109: 0 | O109: 0 | P109: 0 | Q109: 0 | R109: 0 | S109: 0 | T109: 0 | U109: 0 | V109: 0 | W109: 0 | X109: 0 | Y109: 0 | Z109: 0 | AB109: 0 | AC109: 0 | AD109: 0 | AE109: 0 | AF109: 170 | AG109: 0 | AH109: 59.72265873 | AJ109: 4.881844453 | AL109: =OFFSET(AA104,A109,A109) -> 170 | AN109: 0.000373318285 | AO109: 0.0003409297291 | AP109: 0.0002928453048 | AQ109: 0.0002237059488 | AR109: 0.006010173619 | AS109: 0 | AT109: -0.0003638403864 | AV109: 0.000373318285 | AW109: 0.0003409297291 | AX109: 0.0002928453048 | AY109: 0.0002237059488 | AZ109: 0.006010173619 | BA109: 0 | BB109: 9.47789861e-06 | BC109: -2.291065726e-05 | BD109: -7.099508156e-05 | BE109: -0.0001401344375 | BF109: 0.005646333233 | BG109: -0.0003543624877 | BH109: -0.0003867510436 | BI109: -0.0004348354679 | BJ109: -0.0005039748239 | BK109: -0.0007182028741 | BL109: -0.00075059143 | BM109: -0.0007986758543 | BN109: -0.00108204326 | BO109: -0.001114431816 | BP109: -0.001445883647 | BR109: 538.3568268 | BT109: 4.702998477 | BV109: =BT109-BY78/$K$1 -> 0.7826220775
A110: 6 | B110: 125 | D110: 4.828313737 | F110: 0 | G110: 0 | H110: 0 | I110: 0 | J110: 0 | K110: 125 | L110: 0 | M110: 0 | N110: 0 | O110: 0 | P110: 0 | Q110: 0 | R110: 0 | S110: 0 | T110: 0 | U110: 0 | V110: 0 | W110: 0 | X110: 0 | Y110: 0 | Z110: 0 | AB110: 0 | AC110: 0 | AD110: 0 | AE110: 0 | AF110: 0 | AG110: 125 | AH110: 0 | AJ110: 4.828313737 | AL110: =OFFSET(AA104,A110,A110) -> 125 | AN110: 0 | AO110: 0 | AP110: 0 | AQ110: 0 | AR110: 0 | AS110: 0.008 | AT110: 0 | AV110: 0 | AW110: 0 | AX110: 0 | AY110: 0 | AZ110: 0 | BA110: 0.008 | BB110: 0 | BC110: 0 | BD110: 0 | BE110: 0 | BF110: 0 | BG110: 0 | BH110: 0 | BI110: 0 | BJ110: 0 | BK110: 0 | BL110: 0 | BM110: 0 | BN110: 0 | BO110: 0 | BP110: 0 | BR110: 603.5392172 | BT110: 4.828313737 | BV110: =BT110-BY78/$K$1 -> 0.9079373378
A111: 7 | B111: 55 | D111: 4.02595138 | F111: 0 | G111: 0 | H111: 0 | I111: 0 | J111: 0 | K111: 0 | L111: 56.03359268 | M111: 0 | N111: 0 | O111: 0 | P111: 0 | Q111: 0 | R111: 0 | S111: 0 | T111: 0 | U111: 0 | V111: 0 | W111: 0 | X111: 0 | Y111: 0 | Z111: 0 | AB111: 225.7309133 | AC111: 196.7765146 | AD111: 169.0233309 | AE111: 113.7465825 | AF111: 59.72265873 | AG111: 0 | AH111: 1608.517051 | AJ111: 4.007505433 | AL111: =OFFSET(AA104,A111,A111) -> 1608.517051 | AN111: -0.001062647072 | AO111: -0.0009704533452 | AP111: -0.0008335814726 | AQ111: -0.0006367769304 | AR111: -0.0003638403864 | AS111: 0 | AT111: 0.001035668321 | AV111: -0.001062647072 | AW111: -0.0009704533452 | AX111: -0.0008335814726 | AY111: -0.0006367769304 | AZ111: -0.0003638403864 | BA111: 0 | BB111: -2.697875141e-05 | BC111: 6.521497563e-05 | BD111: 0.0002020868482 | BE111: 0.0003988913904 | BF111: 0.0006718279344 | BG111: 0.001008689569 | BH111: 0.001100883296 | BI111: 0.001237755169 | BJ111: 0.001434559711 | BK111: 0.00204435789 | BL111: 0.002136551617 | BM111: 0.00227342349 | BN111: 0.003080026211 | BO111: 0.003172219938 | BP111: 0.004115694532 | BR111: 224.5549271 | BT111: -0.6132869854 | BV111: =BT111-BY78/$K$1 -> -4.533663385
A112: 8 | B112: 50 | D112: 4.001584685 | F112: 0 | G112: 0 | H112: 0 | I112: 0 | J112: 0 | K112: 0 | L112: 0 | M112: 54.68473948 | N112: 0 | O112: 0 | P112: 0 | Q112: 0 | R112: 0 | S112: 0 | T112: 0 | U112: 0 | V112: 0 | W112: 0 | X112: 0 | Y112: 0 | Z112: 0 | AJ112: 3.915916553 | BR112: 214.1408765
A113: 9 | B113: 60 | D113: 4.04382682 | F113: 0 | G113: 0 | H113: 0 | I113: 0 | J113: 0 | K113: 0 | L113: 0 | M113: 0 | N113: 57.04422363 | O113: 0 | P113: 0 | Q113: 0 | R113: 0 | S113: 0 | T113: 0 | U113: 0 | V113: 0 | W113: 0 | X113: 0 | Y113: 0 | Z113: 0 | AJ113: 4.095642345 | BR113: 233.6327378
A114: 10 | B114: 35 | D114: 4.000098741 | F114: 0 | G114: 0 | H114: 0 | I114: 0 | J114: 0 | K114: 0 | L114: 0 | M114: 0 | N114: 0 | O114: 54.60354137 | P114: 0 | Q114: 0 | R114: 0 | S114: 0 | T114: 0 | U114: 0 | V114: 0 | W114: 0 | X114: 0 | Y114: 0 | Z114: 0 | AJ114: 3.641082808 | BR114: 198.8160157
A115: 11 | B115: 40 | D115: 4.089711492 | F115: =IF($A115=F$4,IF($B115<0,-(EXP(-$D115)^(2-$H$1)),IF($B115=0,0,EXP($D115)^(2-$H$1))),0) -> 0 | G115: 0 | H115: 0 | I115: 0 | J115: 0 | K115: 0 | L115: 0 | M115: 0 | N115: 0 | O115: 0 | P115: =IF($A115=P$4,IF($B115<0,-(EXP(-$D115)^(2-$H$1)),IF($B115=0,0,EXP($D115)^(2-$H$1))),0) -> 59.72265873 | Q115: 0 | R115: 0 | S115: 0 | T115: 0 | U115: 0 | V115: 0 | W115: 0 | X115: 0 | Y115: 0 | Z115: 0 | AJ115: 3.759474038 | BR115: 224.525785
A116: 12 | B116: 20 | D116: 3.412664395 | F116: 0 | G116: 0 | H116: 0 | I116: 0 | J116: 0 | K116: 0 | L116: 0 | M116: 0 | N116: 0 | O116: 0 | P116: 0 | Q116: 30.34599034 | R116: 0 | S116: 0 | T116: 0 | U116: 0 | V116: 0 | W116: 0 | X116: 0 | Y116: 0 | Z116: 0 | AJ116: 3.07173005 | BR116: 93.21469041
A117: 13 | B117: 15 | D117: 3.388297699 | F117: 0 | G117: 0 | H117: 0 | I117: 0 | J117: 0 | K117: 0 | L117: 0 | M117: 0 | N117: 0 | O117: 0 | P117: 0 | Q117: 0 | R117: 29.61549486 | S117: 0 | T117: 0 | U117: 0 | V117: 0 | W117: 0 | X117: 0 | Y117: 0 | Z117: 0 | AJ117: 2.89478932 | BR117: 85.73061824
A118: 14 | B118: 25 | D118: 3.430539835 | F118: 0 | G118: 0 | H118: 0 | I118: 0 | J118: 0 | K118: 0 | L118: 0 | M118: 0 | N118: 0 | O118: 0 | P118: 0 | Q118: 0 | R118: 0 | S118: 30.89331554 | T118: 0 | U118: 0 | V118: 0 | W118: 0 | X118: 0 | Y118: 0 | Z118: 0 | AJ118: 3.239776382 | BR118: 100.087434
A119: 15 | B119: 30 | D119: 3.386811756 | F119: 0 | G119: 0 | H119: 0 | I119: 0 | J119: 0 | K119: 0 | L119: 0 | M119: 0 | N119: 0 | O119: 0 | P119: 0 | Q119: 0 | R119: 0 | S119: 0 | T119: 29.57152058 | U119: 0 | V119: 0 | W119: 0 | X119: 0 | Y119: 0 | Z119: 0 | AJ119: 3.401301353 | BR119: 100.581653
A120: 16 | B120: 30 | D120: 2.799377409 | F120: 0 | G120: 0 | H120: 0 | I120: 0 | J120: 0 | K120: 0 | L120: 0 | M120: 0 | N120: 0 | O120: 0 | P120: 0 | Q120: 0 | R120: 0 | S120: 0 | T120: 0 | U120: 16.43441167 | V120: 0 | W120: 0 | X120: 0 | Y120: 0 | Z120: 0 | AJ120: 3.624815435 | BR120: 59.5717091
A121: 17 | B121: 30 | D121: 2.775010714 | F121: 0 | G121: 0 | H121: 0 | I121: 0 | J121: 0 | K121: 0 | L121: 0 | M121: 0 | N121: 0 | O121: 0 | P121: 0 | Q121: 0 | R121: 0 | S121: 0 | T121: 0 | U121: 0 | V121: 16.03879883 | W121: 0 | X121: 0 | Y121: 0 | Z121: 0 | AJ121: 3.645474974 | BR121: 58.46903977
A122: 18 | B122: 20 | D122: 2.81725285 | F122: 0 | G122: 0 | H122: 0 | I122: 0 | J122: 0 | K122: 0 | L122: 0 | M122: 0 | N122: 0 | O122: 0 | P122: 0 | Q122: 0 | R122: 0 | S122: 0 | T122: 0 | U122: 0 | V122: 0 | W122: 16.73082539 | X122: 0 | Y122: 0 | Z122: 0 | AJ122: 3.012651136 | BR122: 50.40414011
A123: 19 | B123: 15 | D123: 2.186090424 | F123: 0 | G123: 0 | H123: 0 | I123: 0 | J123: 0 | K123: 0 | L123: 0 | M123: 0 | N123: 0 | O123: 0 | P123: 0 | Q123: 0 | R123: 0 | S123: 0 | T123: 0 | U123: 0 | V123: 0 | W123: 0 | X123: 8.900348418 | Y123: 0 | Z123: 0 | AJ123: 2.871417705 | BR123: 25.55661803
A124: 20 | B124: 5 | D124: 2.161723729 | F124: 0 | G124: 0 | H124: 0 | I124: 0 | J124: 0 | K124: 0 | L124: 0 | M124: 0 | N124: 0 | O124: 0 | P124: 0 | Q124: 0 | R124: 0 | S124: 0 | T124: 0 | U124: 0 | V124: 0 | W124: 0 | X124: 0 | Y124: 8.686097236 | Z124: 0 | AJ124: 1.737356244 | BR124: 15.09084527
A125: 21 | B125: 5 | D125: 1.572803439 | F125: 0 | G125: 0 | H125: 0 | I125: 0 | J125: 0 | K125: 0 | L125: 0 | M125: 0 | N125: 0 | O125: 0 | P125: 0 | Q125: 0 | R125: 0 | S125: 0 | T125: 0 | U125: 0 | V125: 0 | W125: 0 | X125: 0 | Y125: 0 | Z125: 4.820142243 | AJ125: 1.610117225 | BR125: 7.760994052
A127: Newton-Raphson Interation Sequence -- Iteration 6
B128: y(i) | D128: xb(i) | F128: W(i,i) | AB128: XWX | AJ128: zz(i) | AL128: factor | AN128: xwx-1 | AV128: aa1(i,j) | BR128: aa2(j) | BT128: beta(j) | BV128: beta_diff = | BW128: =SUM(BV130:BV140) -> 0 | BX128: beta_old = | BY128: =SUM(BT130:BT140) -> 27.4426348
B129: 1 | D129: 1 | F129: 1 | G129: 2 | H129: 3 | I129: 4 | J129: 5 | K129: 6 | L129: 7 | M129: 8 | N129: 9 | O129: 10 | P129: 11 | Q129: 12 | R129: 13 | S129: 14 | T129: 15 | U129: 16 | V129: 17 | W129: 18 | X129: 19 | Y129: 20 | Z129: 21 | AB129: 1 | AC129: 2 | AD129: 3 | AE129: 4 | AF129: 5 | AG129: 6 | AH129: 7 | AJ129: 1 | AN129: 1 | AO129: 2 | AP129: 3 | AQ129: 4 | AR129: 5 | AS129: 6 | AT129: 7 | AV129: 1 | AW129: 2 | AX129: 3 | AY129: 4 | AZ129: 5 | BA129: 6 | BB129: 7 | BC129: 8 | BD129: 9 | BE129: 10 | BF129: 11 | BG129: 12 | BH129: 13 | BI129: 14 | BJ129: 15 | BK129: 16 | BL129: 17 | BM129: 18 | BN129: 19 | BO129: 20 | BP129: 21
A130: 1 | B130: =B105 -> 95 | D130: =MMULT(DesignMatrix,BT105:BT111) -> 4.639238365 | F130: =IF($A130=F$4,IF($B130<0,-(EXP(-$D130)^(2-$H$1)),IF($B130=0,0,EXP($D130)^(2-$H$1))),0) -> 103.4655147 | G130: 0 | H130: 0 | I130: 0 | J130: 0 | K130: 0 | L130: 0 | M130: 0 | N130: 0 | O130: 0 | P130: =IF($A130=P$4,IF($B130<0,-(EXP(-$D130)^(2-$H$1)),IF($B130=0,0,EXP($D130)^(2-$H$1))),0) -> 0 | Q130: 0 | R130: 0 | S130: 0 | T130: 0 | U130: 0 | V130: 0 | W130: 0 | X130: 0 | Y130: 0 | Z130: 0 | AB130: =MMULT(TRANSPOSE(DesignMatrix),MMULT(F130:Z150,DesignMatrix)) -> 220 | AC130: 0 | AD130: 0 | AE130: 0 | AF130: 0 | AG130: 0 | AH130: 225.7309132 | AJ130: =IF(B130<0,D130+(B130+EXP(-D130))/-EXP(-D130),IF(B130=0,0,D130+(B130-EXP(D130))/EXP(D130))) -> 4.557418692 | AL130: =OFFSET(AA129,A130,A130) -> 220 | AN130: =MINVERSE(AB130:AH136) -> 0.005635783155 | AO130: 0.0009957332722 | AP130: 0.0008552959413 | AQ130: 0.0006533647184 | AR130: 0.000373318285 | AS130: 0 | AT130: -0.001062647072 | AV130: =MMULT(AN130:AT136,TRANSPOSE(DesignMatrix)) -> 0.005635783155 | AW130: 0.0009957332722 | AX130: 0.0008552959413 | AY130: 0.0006533647184 | AZ130: 0.000373318285 | BA130: 0 | BB130: 0.004573136083 | BC130: -6.691380007e-05 | BD130: -0.0002073511309 | BE130: -0.0004092823538 | BF130: -0.0006893287873 | BG130: 0.00351048901 | BH130: -0.001129560872 | BI130: -0.001269998203 | BJ130: -0.001471929426 | BK130: 0.002447841938 | BL130: -0.002192207945 | BM130: -0.002332645275 | BN130: 0.001385194866 | BO130: -0.003254855017 | BP130: 0.0003225477938 | BR130: =MMULT(F130:Z150,AJ130:AJ150) -> 471.5356704 | BT130: =MMULT(AV130:BP136,BR130:BR150) -> 4.639238365 | BV130: =BT130-BY103/$K$1 -> 0.718861966
A131: 2 | B131: =B106 -> 110 | D131: 4.61487167 | F131: 0 | G131: 100.9748696 | H131: 0 | I131: 0 | J131: 0 | K131: 0 | L131: 0 | M131: 0 | N131: 0 | O131: 0 | P131: 0 | Q131: 0 | R131: 0 | S131: 0 | T131: 0 | U131: 0 | V131: 0 | W131: 0 | X131: 0 | Y131: 0 | Z131: 0 | AB131: 0 | AC131: 210 | AD131: 0 | AE131: 0 | AF131: 0 | AG131: 0 | AH131: 196.7765146 | AJ131: =IF(B131<0,D131+(B131+EXP(-D131))/-EXP(-D131),IF(B131=0,0,D131+(B131-EXP(D131))/EXP(D131))) -> 4.704251636 | AL131: =OFFSET(AA129,A131,A131) -> 210 | AN131: 0.0009957332722 | AO131: 0.005671249652 | AP131: 0.0007810916993 | AQ131: 0.0005966797379 | AR131: 0.0003409297291 | AS131: 0 | AT131: -0.0009704533452 | AV131: 0.0009957332722 | AW131: 0.005671249652 | AX131: 0.0007810916993 | AY131: 0.0005966797379 | AZ131: 0.0003409297291 | BA131: 0 | BB131: 2.527992697e-05 | BC131: 0.004700796307 | BD131: -0.0001893616459 | BE131: -0.0003737736072 | BF131: -0.0006295236161 | BG131: -0.0009451734182 | BH131: 0.003730342961 | BI131: -0.001159814991 | BJ131: -0.001344226952 | BK131: -0.001915626763 | BL131: 0.002759889616 | BM131: -0.002130268336 | BN131: -0.002886080109 | BO131: 0.001789436271 | BP131: -0.003856533454 | BR131: 475.0111955 | BT131: 4.61487167 | BV131: =BT131-BY103/$K$1 -> 0.6944952706
A132: 3 | B132: 105 | D132: 4.657113806 | F132: 0 | G132: 0 | H132: 105.3316354 | I132: 0 | J132: 0 | K132: 0 | L132: 0 | M132: 0 | N132: 0 | O132: 0 | P132: 0 | Q132: 0 | R132: 0 | S132: 0 | T132: 0 | U132: 0 | V132: 0 | W132: 0 | X132: 0 | Y132: 0 | Z132: 0 | AB132: 0 | AC132: 0 | AD132: 210 | AE132: 0 | AF132: 0 | AG132: 0 | AH132: 169.0233309 | AJ132: 4.653965317 | AL132: =OFFSET(AA129,A132,A132) -> 210 | AN132: 0.0008552959413 | AO132: 0.0007810916993 | AP132: 0.005432831986 | AQ132: 0.0005125245609 | AR132: 0.0002928453048 | AS132: 0 | AT132: -0.0008335814727 | AV132: 0.0008552959413 | AW132: 0.0007810916993 | AX132: 0.005432831986 | AY132: 0.0005125245609 | AZ132: 0.0002928453048 | BA132: 0 | BB132: 2.171446867e-05 | BC132: -5.248977338e-05 | BD132: 0.004599250513 | BE132: -0.0003210569117 | BF132: -0.0005407361679 | BG132: -0.000811867004 | BH132: -0.000886071246 | BI132: 0.003765669041 | BJ132: -0.001154638384 | BK132: -0.001645448477 | BL132: -0.001719652719 | BM132: 0.002932087568 | BN132: -0.002479029949 | BO132: -0.002553234191 | BP132: -0.003312611422 | BR132: 490.2097782 | BT132: 4.657113806 | BV132: =BT132-BY103/$K$1 -> 0.7367374061
A133: 4 | B133: 120 | D133: 4.613385726 | F133: 0 | G133: 0 | H133: 0 | I133: 100.824938 | J133: 0 | K133: 0 | L133: 0 | M133: 0 | N133: 0 | O133: 0 | P133: 0 | Q133: 0 | R133: 0 | S133: 0 | T133: 0 | U133: 0 | V133: 0 | W133: 0 | X133: 0 | Y133: 0 | Z133: 0 | AB133: 0 | AC133: 0 | AD133: 0 | AE133: 185 | AF133: 0 | AG133: 0 | AH133: 113.7465825 | AJ133: 4.803567464 | AL133: =OFFSET(AA129,A133,A133) -> 185 | AN133: 0.0006533647184 | AO133: 0.0005966797379 | AP133: 0.0005125245609 | AQ133: 0.005796925404 | AR133: 0.0002237059488 | AS133: 0 | AT133: -0.0006367769304 | AV133: 0.0006533647184 | AW133: 0.0005966797379 | AX133: 0.0005125245609 | AY133: 0.005796925404 | AZ133: 0.0002237059488 | BA133: 0 | BB133: 1.658778794e-05 | BC133: -4.00971925e-05 | BD133: -0.0001242523695 | BE133: 0.005160148473 | BF133: -0.0004130709816 | BG133: -0.0006201891425 | BH133: -0.0006768741229 | BI133: -0.0007610292999 | BJ133: 0.004523371543 | BK133: -0.001256966073 | BL133: -0.001313651053 | BM133: -0.00139780623 | BN133: -0.001893743003 | BO133: -0.001950427984 | BP133: -0.002530519934 | BR133: 484.319392 | BT133: 4.613385726 | BV133: =BT133-BY103/$K$1 -> 0.6930093269
A134: 5 | B134: 130 | D134: 4.702998477 | F134: 0 | G134: 0 | H134: 0 | I134: 0 | J134: 110.2773413 | K134: 0 | L134: 0 | M134: 0 | N134: 0 | O134: 0 | P134: 0 | Q134: 0 | R134: 0 | S134: 0 | T134: 0 | U134: 0 | V134: 0 | W134: 0 | X134: 0 | Y134: 0 | Z134: 0 | AB134: 0 | AC134: 0 | AD134: 0 | AE134: 0 | AF134: 170 | AG134: 0 | AH134: 59.72265873 | AJ134: 4.881844453 | AL134: =OFFSET(AA129,A134,A134) -> 170 | AN134: 0.000373318285 | AO134: 0.0003409297291 | AP134: 0.0002928453048 | AQ134: 0.0002237059488 | AR134: 0.006010173619 | AS134: 0 | AT134: -0.0003638403864 | AV134: 0.000373318285 | AW134: 0.0003409297291 | AX134: 0.0002928453048 | AY134: 0.0002237059488 | AZ134: 0.006010173619 | BA134: 0 | BB134: 9.477898596e-06 | BC134: -2.291065727e-05 | BD134: -7.099508157e-05 | BE134: -0.0001401344375 | BF134: 0.005646333233 | BG134: -0.0003543624878 | BH134: -0.0003867510436 | BI134: -0.0004348354679 | BJ134: -0.0005039748239 | BK134: -0.0007182028741 | BL134: -0.00075059143 | BM134: -0.0007986758543 | BN134: -0.001082043261 | BO134: -0.001114431816 | BP134: -0.001445883647 | BR134: 538.3568268 | BT134: 4.702998477 | BV134: =BT134-BY103/$K$1 -> 0.7826220775
A135: 6 | B135: 125 | D135: 4.828313737 | F135: 0 | G135: 0 | H135: 0 | I135: 0 | J135: 0 | K135: 125 | L135: 0 | M135: 0 | N135: 0 | O135: 0 | P135: 0 | Q135: 0 | R135: 0 | S135: 0 | T135: 0 | U135: 0 | V135: 0 | W135: 0 | X135: 0 | Y135: 0 | Z135: 0 | AB135: 0 | AC135: 0 | AD135: 0 | AE135: 0 | AF135: 0 | AG135: 125 | AH135: 0 | AJ135: 4.828313737 | AL135: =OFFSET(AA129,A135,A135) -> 125 | AN135: 0 | AO135: 0 | AP135: 0 | AQ135: 0 | AR135: 0 | AS135: 0.008 | AT135: 0 | AV135: 0 | AW135: 0 | AX135: 0 | AY135: 0 | AZ135: 0 | BA135: 0.008 | BB135: 0 | BC135: 0 | BD135: 0 | BE135: 0 | BF135: 0 | BG135: 0 | BH135: 0 | BI135: 0 | BJ135: 0 | BK135: 0 | BL135: 0 | BM135: 0 | BN135: 0 | BO135: 0 | BP135: 0 | BR135: 603.5392172 | BT135: 4.828313737 | BV135: =BT135-BY103/$K$1 -> 0.9079373378
A136: 7 | B136: 55 | D136: 4.02595138 | F136: 0 | G136: 0 | H136: 0 | I136: 0 | J136: 0 | K136: 0 | L136: 56.03359267 | M136: 0 | N136: 0 | O136: 0 | P136: 0 | Q136: 0 | R136: 0 | S136: 0 | T136: 0 | U136: 0 | V136: 0 | W136: 0 | X136: 0 | Y136: 0 | Z136: 0 | AB136: 225.7309132 | AC136: 196.7765146 | AD136: 169.0233309 | AE136: 113.7465825 | AF136: 59.72265873 | AG136: 0 | AH136: 1608.517051 | AJ136: 4.007505433 | AL136: =OFFSET(AA129,A136,A136) -> 1608.517051 | AN136: -0.001062647072 | AO136: -0.0009704533452 | AP136: -0.0008335814727 | AQ136: -0.0006367769304 | AR136: -0.0003638403864 | AS136: 0 | AT136: 0.001035668321 | AV136: -0.001062647072 | AW136: -0.0009704533452 | AX136: -0.0008335814727 | AY136: -0.0006367769304 | AZ136: -0.0003638403864 | BA136: 0 | BB136: -2.697875137e-05 | BC136: 6.521497567e-05 | BD136: 0.0002020868482 | BE136: 0.0003988913904 | BF136: 0.0006718279345 | BG136: 0.001008689569 | BH136: 0.001100883297 | BI136: 0.001237755169 | BJ136: 0.001434559711 | BK136: 0.00204435789 | BL136: 0.002136551617 | BM136: 0.00227342349 | BN136: 0.003080026211 | BO136: 0.003172219938 | BP136: 0.004115694532 | BR136: 224.5549271 | BT136: -0.6132869854 | BV136: =BT136-BY103/$K$1 -> -4.533663385
A137: 8 | B137: 50 | D137: 4.001584685 | F137: 0 | G137: 0 | H137: 0 | I137: 0 | J137: 0 | K137: 0 | L137: 0 | M137: 54.68473947 | N137: 0 | O137: 0 | P137: 0 | Q137: 0 | R137: 0 | S137: 0 | T137: 0 | U137: 0 | V137: 0 | W137: 0 | X137: 0 | Y137: 0 | Z137: 0 | AJ137: 3.915916553 | BR137: 214.1408765
A138: 9 | B138: 60 | D138: 4.04382682 | F138: 0 | G138: 0 | H138: 0 | I138: 0 | J138: 0 | K138: 0 | L138: 0 | M138: 0 | N138: 57.04422363 | O138: 0 | P138: 0 | Q138: 0 | R138: 0 | S138: 0 | T138: 0 | U138: 0 | V138: 0 | W138: 0 | X138: 0 | Y138: 0 | Z138: 0 | AJ138: 4.095642345 | BR138: 233.6327378
A139: 10 | B139: 35 | D139: 4.000098741 | F139: 0 | G139: 0 | H139: 0 | I139: 0 | J139: 0 | K139: 0 | L139: 0 | M139: 0 | N139: 0 | O139: 54.60354137 | P139: 0 | Q139: 0 | R139: 0 | S139: 0 | T139: 0 | U139: 0 | V139: 0 | W139: 0 | X139: 0 | Y139: 0 | Z139: 0 | AJ139: 3.641082808 | BR139: 198.8160157
A140: 11 | B140: 40 | D140: 4.089711492 | F140: =IF($A140=F$4,IF($B140<0,-(EXP(-$D140)^(2-$H$1)),IF($B140=0,0,EXP($D140)^(2-$H$1))),0) -> 0 | G140: 0 | H140: 0 | I140: 0 | J140: 0 | K140: 0 | L140: 0 | M140: 0 | N140: 0 | O140: 0 | P140: =IF($A140=P$4,IF($B140<0,-(EXP(-$D140)^(2-$H$1)),IF($B140=0,0,EXP($D140)^(2-$H$1))),0) -> 59.72265873 | Q140: 0 | R140: 0 | S140: 0 | T140: 0 | U140: 0 | V140: 0 | W140: 0 | X140: 0 | Y140: 0 | Z140: 0 | AJ140: 3.759474038 | BR140: 224.525785
A141: 12 | B141: 20 | D141: 3.412664395 | F141: 0 | G141: 0 | H141: 0 | I141: 0 | J141: 0 | K141: 0 | L141: 0 | M141: 0 | N141: 0 | O141: 0 | P141: 0 | Q141: 30.34599034 | R141: 0 | S141: 0 | T141: 0 | U141: 0 | V141: 0 | W141: 0 | X141: 0 | Y141: 0 | Z141: 0 | AJ141: 3.07173005 | BR141: 93.21469041
A142: 13 | B142: 15 | D142: 3.388297699 | F142: 0 | G142: 0 | H142: 0 | I142: 0 | J142: 0 | K142: 0 | L142: 0 | M142: 0 | N142: 0 | O142: 0 | P142: 0 | Q142: 0 | R142: 29.61549486 | S142: 0 | T142: 0 | U142: 0 | V142: 0 | W142: 0 | X142: 0 | Y142: 0 | Z142: 0 | AJ142: 2.89478932 | BR142: 85.73061823
A143: 14 | B143: 25 | D143: 3.430539835 | F143: 0 | G143: 0 | H143: 0 | I143: 0 | J143: 0 | K143: 0 | L143: 0 | M143: 0 | N143: 0 | O143: 0 | P143: 0 | Q143: 0 | R143: 0 | S143: 30.89331554 | T143: 0 | U143: 0 | V143: 0 | W143: 0 | X143: 0 | Y143: 0 | Z143: 0 | AJ143: 3.239776382 | BR143: 100.087434
A144: 15 | B144: 30 | D144: 3.386811756 | F144: 0 | G144: 0 | H144: 0 | I144: 0 | J144: 0 | K144: 0 | L144: 0 | M144: 0 | N144: 0 | O144: 0 | P144: 0 | Q144: 0 | R144: 0 | S144: 0 | T144: 29.57152058 | U144: 0 | V144: 0 | W144: 0 | X144: 0 | Y144: 0 | Z144: 0 | AJ144: 3.401301353 | BR144: 100.5816529
A145: 16 | B145: 30 | D145: 2.799377409 | F145: 0 | G145: 0 | H145: 0 | I145: 0 | J145: 0 | K145: 0 | L145: 0 | M145: 0 | N145: 0 | O145: 0 | P145: 0 | Q145: 0 | R145: 0 | S145: 0 | T145: 0 | U145: 16.43441167 | V145: 0 | W145: 0 | X145: 0 | Y145: 0 | Z145: 0 | AJ145: 3.624815435 | BR145: 59.5717091
A146: 17 | B146: 30 | D146: 2.775010714 | F146: 0 | G146: 0 | H146: 0 | I146: 0 | J146: 0 | K146: 0 | L146: 0 | M146: 0 | N146: 0 | O146: 0 | P146: 0 | Q146: 0 | R146: 0 | S146: 0 | T146: 0 | U146: 0 | V146: 16.03879883 | W146: 0 | X146: 0 | Y146: 0 | Z146: 0 | AJ146: 3.645474975 | BR146: 58.46903977
A147: 18 | B147: 20 | D147: 2.817252849 | F147: 0 | G147: 0 | H147: 0 | I147: 0 | J147: 0 | K147: 0 | L147: 0 | M147: 0 | N147: 0 | O147: 0 | P147: 0 | Q147: 0 | R147: 0 | S147: 0 | T147: 0 | U147: 0 | V147: 0 | W147: 16.73082539 | X147: 0 | Y147: 0 | Z147: 0 | AJ147: 3.012651136 | BR147: 50.40414011
A148: 19 | B148: 15 | D148: 2.186090424 | F148: 0 | G148: 0 | H148: 0 | I148: 0 | J148: 0 | K148: 0 | L148: 0 | M148: 0 | N148: 0 | O148: 0 | P148: 0 | Q148: 0 | R148: 0 | S148: 0 | T148: 0 | U148: 0 | V148: 0 | W148: 0 | X148: 8.900348417 | Y148: 0 | Z148: 0 | AJ148: 2.871417705 | BR148: 25.55661803
A149: 20 | B149: 5 | D149: 2.161723729 | F149: 0 | G149: 0 | H149: 0 | I149: 0 | J149: 0 | K149: 0 | L149: 0 | M149: 0 | N149: 0 | O149: 0 | P149: 0 | Q149: 0 | R149: 0 | S149: 0 | T149: 0 | U149: 0 | V149: 0 | W149: 0 | X149: 0 | Y149: 8.686097235 | Z149: 0 | AJ149: 1.737356244 | BR149: 15.09084527
A150: 21 | B150: 5 | D150: 1.572803439 | F150: 0 | G150: 0 | H150: 0 | I150: 0 | J150: 0 | K150: 0 | L150: 0 | M150: 0 | N150: 0 | O150: 0 | P150: 0 | Q150: 0 | R150: 0 | S150: 0 | T150: 0 | U150: 0 | V150: 0 | W150: 0 | X150: 0 | Y150: 0 | Z150: 4.820142243 | AJ150: 1.610117225 | BR150: 7.760994051

Sheet Diagnostics
A1: Residual Graphs | AC1: =AVERAGE(AJ5:AJ25) -> 0.1173096271 | AD1: =STDEV(AJ5:AJ25) -> 2.154508194
AC2: Normal RSS Calc | AF2: Normality for Pearson Residuals
W3: Exposure | X3: Develop | Y3: Calendar | Z3: Fitted | AC3: Scaled
W4: Offset | X4: Offset | Y4: Period | Z4: Values | AA4: Residual | AC4: Normal | AD4: Difference | AF4: Rank | AG4: Order | AH4: Percentile | AI4: PhiInv | AJ4: Sort | AK4: R2
V5: 1 | W5: 1 | X5: 0 | Y5: =IF(W5="","",W5+X5-1) -> 0 | Z5: =IF(W5="","",OFFSET(Data!$N$77,W5,X5)) -> 103.4655147 | AA5: =IF(W5="","",OFFSET(Data!$N$104,W5,X5)) -> -1.288974725 | AC5: =IF(AH5="","",NORMINV(AH5,$AC$1,$AD$1)) -> -3.953655065 | AD5: =IF(AC5="","",AJ5-AC5) -> 0.7194355221 | AF5: =IF(AA5="","",RANK(AA5,ResidY1Values,1)) -> 6 | AG5: =IF(W5="","",V5) -> 1 | AH5: =IF(W5="","",(AG5-0.375)/(Data!$P$113+0.25)) -> 0.02941176471 | AI5: =IF(W5="","",NORMINV(AH5,0,1)) -> -1.88950996 | AJ5: =IF(AA5="","",IF(ISERROR(MATCH(AG5,AF$5:AF$25,0)),0,OFFSET(AA$4,MATCH(AG5,AF$5:AF$25,0),0))) -> -3.234219543 | AK5: =CORREL(NormXValues,NormYValues)^2 -> 0.9649013055 | AM5: u | AN5: =LN(Data!$P$113) -> 3.044522438
V6: 2 | W6: 2 | X6: 0 | Y6: =IF(W6="","",W6+X6-1) -> 1 | Z6: =IF(W6="","",OFFSET(Data!$N$77,W6,X6)) -> 100.9748696 | AA6: =IF(W6="","",OFFSET(Data!$N$104,W6,X6)) -> 1.373905487 | AC6: =IF(AH6="","",NORMINV(AH6,$AC$1,$AD$1)) -> -2.961955334 | AD6: =IF(AC6="","",AJ6-AC6) -> -0.2169460592 | AF6: 16 | AG6: =IF(W6="","",V6) -> 2 | AH6: =IF(W6="","",(AG6-0.375)/(Data!$P$113+0.25)) -> 0.07647058824 | AI6: =IF(W6="","",NORMINV(AH6,0,1)) -> -1.429219424 | AJ6: =IF(AA6="","",IF(ISERROR(MATCH(AG6,AF$5:AF$25,0)),0,OFFSET(AA$4,MATCH(AG6,AF$5:AF$25,0),0))) -> -3.178901393 | AM6: v | AN6: =LN(AN5) -> 1.113344054
V7: 3 | W7: 3 | X7: 0 | Y7: 2 | Z7: =IF(W7="","",OFFSET(Data!$N$77,W7,X7)) -> 105.3316354 | AA7: =IF(W7="","",OFFSET(Data!$N$104,W7,X7)) -> -0.04940672315 | AC7: -2.376582762 | AD7: -0.5814755479 | AF7: 10 | AG7: 3 | AH7: =IF(W7="","",(AG7-0.375)/(Data!$P$113+0.25)) -> 0.1235294118 | AI7: -1.157522815 | AJ7: -2.95805831 | AM7: Mu | AN7: =-1.2725+1.0521*(AN6-AN5) -> -3.304292778
V8: 4 | W8: 4 | X8: 0 | Y8: 3 | Z8: =IF(W8="","",OFFSET(Data!$N$77,W8,X8)) -> 100.824938 | AA8: =IF(W8="","",OFFSET(Data!$N$104,W8,X8)) -> 2.962470464 | AC8: -1.933444511 | AD8: -0.1252606456 | AF8: 18 | AG8: 4 | AH8: =IF(W8="","",(AG8-0.375)/(Data!$P$113+0.25)) -> 0.1705882353 | AI8: -0.9518432764 | AJ8: -2.058705157 | AM8: Sigma | AN8: =1.0308-0.26758*(AN6+2/AN5) -> 0.5571134194
V9: 5 | W9: 5 | X9: 0 | Y9: 4 | Z9: =IF(W9="","",OFFSET(Data!$N$77,W9,X9)) -> 110.2773413 | AA9: =IF(W9="","",OFFSET(Data!$N$104,W9,X9)) -> 3.234219543 | AC9: -1.563560952 | AD9: 0.2259213361 | AF9: 19 | AG9: 5 | AH9: =IF(W9="","",(AG9-0.375)/(Data!$P$113+0.25)) -> 0.2176470588 | AI9: -0.7801643936 | AJ9: -1.337639615 | AM9: z | AN9: =(LN(1-AK5)-AN7)/AN8 -> -0.08130941539
V10: 6 | W10: 6 | X10: 0 | Y10: 5 | Z10: =IF(W10="","",OFFSET(Data!$N$77,W10,X10)) -> 125 | AA10: =IF(W10="","",OFFSET(Data!$N$104,W10,X10)) -> 0 | AC10: -1.237669663 | AD10: -0.05130506202 | AF10: 11 | AG10: 6 | AH10: =IF(W10="","",(AG10-0.375)/(Data!$P$113+0.25)) -> 0.2647058824 | AI10: -0.6289042176 | AJ10: -1.288974725 | AM10: p-Value | AN10: =1-NORMSDIST(AN9) -> 0.5324020568
V11: 7 | W11: 1 | X11: 1 | Y11: 1 | Z11: =IF(W11="","",OFFSET(Data!$N$77,W11,X11)) -> 56.03359267 | AA11: =IF(W11="","",OFFSET(Data!$N$104,W11,X11)) -> -0.1599449608 | AC11: -0.9402402579 | AD11: -0.2399166223 | AF11: 9 | AG11: 7 | AH11: =IF(W11="","",(AG11-0.375)/(Data!$P$113+0.25)) -> 0.3117647059 | AI11: -0.490854427 | AJ11: -1.18015688
V12: 8 | W12: 2 | X12: 1 | Y12: 2 | Z12: =IF(W12="","",OFFSET(Data!$N$77,W12,X12)) -> 54.68473947 | AA12: =IF(W12="","",OFFSET(Data!$N$104,W12,X12)) -> -0.736751274 | AC12: -0.6617717953 | AD12: -0.07497947878 | AF12: 8 | AG12: 8 | AH12: =IF(W12="","",(AG12-0.375)/(Data!$P$113+0.25)) -> 0.3588235294 | AI12: -0.361605226 | AJ12: -0.736751274
V13: 9 | W13: 3 | X13: 1 | Y13: 3 | Z13: =IF(W13="","",OFFSET(Data!$N$77,W13,X13)) -> 57.04422363 | AA13: =IF(W13="","",OFFSET(Data!$N$104,W13,X13)) -> 0.45926579 | AC13: -0.3957866377 | AD13: 0.2358416769 | AF13: 14 | AG13: 9 | AH13: =IF(W13="","",(AG13-0.375)/(Data!$P$113+0.25)) -> 0.4058823529 | AI13: -0.2381500642 | AJ13: -0.1599449608
V14: 10 | W14: 4 | X14: 1 | Y14: 4 | Z14: =IF(W14="","",OFFSET(Data!$N$77,W14,X14)) -> 54.60354137 | AA14: =IF(W14="","",OFFSET(Data!$N$104,W14,X14)) -> -3.178901393 | AC14: -0.1374262169 | AD14: 0.08801949374 | AF14: 2 | AG14: 10 | AH14: =IF(W14="","",(AG14-0.375)/(Data!$P$113+0.25)) -> 0.4529411765 | AI14: -0.1182338711 | AJ14: -0.04940672315
V15: 11 | W15: 5 | X15: 1 | Y15: 5 | Z15: =IF(W15="","",OFFSET(Data!$N$77,W15,X15)) -> 59.72265873 | AA15: =IF(W15="","",OFFSET(Data!$N$104,W15,X15)) -> -3.234219543 | AC15: 0.1173096271 | AD15: -0.1173096271 | AF15: 1 | AG15: 11 | AH15: =IF(W15="","",(AG15-0.375)/(Data!$P$113+0.25)) -> 0.5 | AI15: 0 | AJ15: 0
V16: 12 | W16: 1 | X16: 2 | Y16: 2 | Z16: =IF(W16="","",OFFSET(Data!$N$77,W16,X16)) -> 30.34599034 | AA16: =IF(W16="","",OFFSET(Data!$N$104,W16,X16)) -> -2.058705157 | AC16: 0.3720454711 | AD16: -0.2856565538 | AF16: 4 | AG16: 12 | AH16: =IF(W16="","",(AG16-0.375)/(Data!$P$113+0.25)) -> 0.5470588235 | AI16: 0.1182338711 | AJ16: 0.08638891736
V17: 13 | W17: 2 | X17: 2 | Y17: 3 | Z17: =IF(W17="","",OFFSET(Data!$N$77,W17,X17)) -> 29.61549486 | AA17: =IF(W17="","",OFFSET(Data!$N$104,W17,X17)) -> -2.95805831 | AC17: 0.6304058919 | AD17: -0.5412688048 | AF17: 3 | AG17: 13 | AH17: =IF(W17="","",(AG17-0.375)/(Data!$P$113+0.25)) -> 0.5941176471 | AI17: 0.2381500642 | AJ17: 0.08913708706
V18: 14 | W18: 3 | X18: 2 | Y18: 4 | Z18: =IF(W18="","",OFFSET(Data!$N$77,W18,X18)) -> 30.89331554 | AA18: =IF(W18="","",OFFSET(Data!$N$104,W18,X18)) -> -1.18015688 | AC18: 0.8963910495 | AD18: -0.4371252595 | AF18: 7 | AG18: 14 | AH18: =IF(W18="","",(AG18-0.375)/(Data!$P$113+0.25)) -> 0.6411764706 | AI18: 0.361605226 | AJ18: 0.45926579
V19: 15 | W19: 4 | X19: 2 | Y19: 5 | Z19: =IF(W19="","",OFFSET(Data!$N$77,W19,X19)) -> 29.57152058 | AA19: =IF(W19="","",OFFSET(Data!$N$104,W19,X19)) -> 0.08913708706 | AC19: 1.174859512 | AD19: -0.3011651839 | AF19: 13 | AG19: 15 | AH19: =IF(W19="","",(AG19-0.375)/(Data!$P$113+0.25)) -> 0.6882352941 | AI19: 0.490854427 | AJ19: 0.8736943283
V20: 16 | W20: 1 | X20: 3 | Y20: 3 | Z20: =IF(W20="","",OFFSET(Data!$N$77,W20,X20)) -> 16.43441167 | AA20: =IF(W20="","",OFFSET(Data!$N$104,W20,X20)) -> 3.61052709 | AC20: 1.472288917 | AD20: -0.09838343039 | AF20: 20 | AG20: 16 | AH20: =IF(W20="","",(AG20-0.375)/(Data!$P$113+0.25)) -> 0.7352941176 | AI20: 0.6289042176 | AJ20: 1.373905487
V21: 17 | W21: 2 | X21: 3 | Y21: 4 | Z21: =IF(W21="","",OFFSET(Data!$N$77,W21,X21)) -> 16.03879883 | AA21: =IF(W21="","",OFFSET(Data!$N$104,W21,X21)) -> 3.774676893 | AC21: 1.798180206 | AD21: 0.3837949461 | AF21: 21 | AG21: 17 | AH21: =IF(W21="","",(AG21-0.375)/(Data!$P$113+0.25)) -> 0.7823529412 | AI21: 0.7801643936 | AJ21: 2.181975152
V22: 18 | W22: 3 | X22: 3 | Y22: 5 | Z22: =IF(W22="","",OFFSET(Data!$N$77,W22,X22)) -> 16.73082539 | AA22: =IF(W22="","",OFFSET(Data!$N$104,W22,X22)) -> 0.8736943283 | AC22: 2.168063766 | AD22: 0.7944066982 | AF22: 15 | AG22: 18 | AH22: =IF(W22="","",(AG22-0.375)/(Data!$P$113+0.25)) -> 0.8294117647 | AI22: 0.9518432764 | AJ22: 2.962470464
V23: 19 | W23: 1 | X23: 4 | Y23: 4 | Z23: =IF(W23="","",OFFSET(Data!$N$77,W23,X23)) -> 8.900348417 | AA23: =IF(W23="","",OFFSET(Data!$N$104,W23,X23)) -> 2.181975152 | AC23: 2.611202017 | AD23: 0.6230175262 | AF23: 17 | AG23: 19 | AH23: =IF(W23="","",(AG23-0.375)/(Data!$P$113+0.25)) -> 0.8764705882 | AI23: 1.157522815 | AJ23: 3.234219543
V24: 20 | W24: 2 | X24: 4 | Y24: 5 | Z24: =IF(W24="","",OFFSET(Data!$N$77,W24,X24)) -> 8.686097235 | AA24: =IF(W24="","",OFFSET(Data!$N$104,W24,X24)) -> -1.337639615 | AC24: 3.196574588 | AD24: 0.4139525026 | AF24: 5 | AG24: 20 | AH24: =IF(W24="","",(AG24-0.375)/(Data!$P$113+0.25)) -> 0.9235294118 | AI24: 1.429219424 | AJ24: 3.61052709
V25: 21 | W25: 1 | X25: 5 | Y25: 5 | Z25: =IF(W25="","",OFFSET(Data!$N$77,W25,X25)) -> 4.820142243 | AA25: =IF(W25="","",OFFSET(Data!$N$104,W25,X25)) -> 0.08638891736 | AC25: 4.188274319 | AD25: -0.4135974266 | AF25: 12 | AG25: 21 | AH25: =IF(W25="","",(AG25-0.375)/(Data!$P$113+0.25)) -> 0.9705882353 | AI25: 1.88950996 | AJ25: 3.774676893
AC27: RSS | AD27: =SUMSQ(AD5:AD25) -> 3.287422701 | AI27: Linear Regression
V28: Mean Residuals | AC28: AIC | AD28: =2*(Data!R113)+Data!P113*(LN(2*PI()*AD27/Data!P113)+1) -> 34.65262877 | AI28: =LINEST(NormYValues,NormXValues,TRUE,TRUE) -> 2.19393253 | AJ28: 0.1173096271
A29: Normality Plot | V29: Exposure | W29: Residual | X29: Develop | Y29: Residual | Z29: Calendar | AA29: Residual | AC29: BIC | AD29: =Data!P113*LN(AD27/Data!P113)+(Data!R113*LN(Data!P113)) -> -17.63113256 | AI29: 0.09599541743 | AJ29: 0.09036956285
V30: 1 | W30: =IF(V30="","",SUMIF(ResidX2Values,V30,ResidY1Values)/COUNTIF(ResidX2Values,V30)) -> 0.3952110528 | X30: 0 | Y30: =IF(X30="","",SUMIF(ResidX1Values,X30,ResidY1Values)/COUNTIF(ResidX1Values,X30)) -> 1.038702341 | Z30: 0 | AA30: =IF(Z30="","",SUMIF(ResidX3Values,Z30,ResidY1Values)/COUNTIF(ResidX3Values,Z30)) -> -1.288974725 | AI30: 0.9649013055 | AJ30: 0.4141253623
V31: 2 | W31: =IF(V31="","",SUMIF(ResidX2Values,V31,ResidY1Values)/COUNTIF(ResidX2Values,V31)) -> 0.02322663593 | X31: 1 | Y31: -1.370110276 | Z31: 1 | AA31: 0.606980263 | AI31: 522.330676 | AJ31: 19
V32: 3 | W32: =IF(V32="","",SUMIF(ResidX2Values,V32,ResidY1Values)/COUNTIF(ResidX2Values,V32)) -> 0.02584912871 | X32: 2 | Y32: -1.526945815 | Z32: 2 | AA32: -0.948287718 | AI32: 89.57961466 | AJ32: 3.258496498
V33: 4 | W33: =IF(V33="","",SUMIF(ResidX2Values,V33,ResidY1Values)/COUNTIF(ResidX2Values,V33)) -> -0.04243128062 | X33: 3 | Y33: 2.752966104 | Z33: 3 | AA33: 1.018551258
V34: 5 | W34: =IF(V34="","",SUMIF(ResidX2Values,V34,ResidY1Values)/COUNTIF(ResidX2Values,V34)) -> -3.752553823e-14 | X34: 4 | Y34: 0.4221677682 | Z34: 4 | AA34: 0.9663626629 | AI34: Line of best fit
X35: 5 | Y35: 0.08638891736 | Z35: 5 | AA35: -0.5871064709 | AI35: -3 | AJ35: =AI35*AI$28+AJ$28 -> -6.464487963
AI36: 3 | AJ36: =AI36*AI$28+AJ$28 -> 6.699107218
A45: ="N = "&TEXT(Data!$P$113,"0") -> N = 21 | C45: ="p-Value = "&TEXT(AN10,"0.0%") -> p-Value = 53.2% | F45: R2 = | G45: =AK5 -> 0.9649013055
A46: ="Normal: MU = "&TEXT(AC1,"0.00")&", Sigma = "&TEXT(AD1,"0.00") -> Normal: MU = 0.12, Sigma = 2.15 | G46: ="AIC = "&TEXT(AD28,"0.0")&", BIC = "&TEXT(AD29,"0.0") -> AIC = 34.7, BIC = -17.6

Sheet Hat Matrix
A1: Weight Matrix
A2: =Data!N78 -> 103.4655147 | B2: 0 | C2: 0 | D2: 0 | E2: 0 | F2: 0 | G2: 0 | H2: 0 | I2: 0 | J2: 0 | K2: 0 | L2: 0 | M2: 0 | N2: 0 | O2: 0 | P2: 0 | Q2: 0 | R2: 0 | S2: 0 | T2: 0 | U2: 0
A3: 0 | B3: =Data!N79 -> 100.9748696 | C3: 0 | D3: 0 | E3: 0 | F3: 0 | G3: 0 | H3: 0 | I3: 0 | J3: 0 | K3: 0 | L3: 0 | M3: 0 | N3: 0 | O3: 0 | P3: 0 | Q3: 0 | R3: 0 | S3: 0 | T3: 0 | U3: 0
A4: 0 | B4: 0 | C4: =Data!N80 -> 105.3316354 | D4: 0 | E4: 0 | F4: 0 | G4: 0 | H4: 0 | I4: 0 | J4: 0 | K4: 0 | L4: 0 | M4: 0 | N4: 0 | O4: 0 | P4: 0 | Q4: 0 | R4: 0 | S4: 0 | T4: 0 | U4: 0
A5: 0 | B5: 0 | C5: 0 | D5: =Data!N81 -> 100.824938 | E5: 0 | F5: 0 | G5: 0 | H5: 0 | I5: 0 | J5: 0 | K5: 0 | L5: 0 | M5: 0 | N5: 0 | O5: 0 | P5: 0 | Q5: 0 | R5: 0 | S5: 0 | T5: 0 | U5: 0
A6: 0 | B6: 0 | C6: 0 | D6: 0 | E6: =Data!N82 -> 110.2773413 | F6: 0 | G6: 0 | H6: 0 | I6: 0 | J6: 0 | K6: 0 | L6: 0 | M6: 0 | N6: 0 | O6: 0 | P6: 0 | Q6: 0 | R6: 0 | S6: 0 | T6: 0 | U6: 0
A7: 0 | B7: 0 | C7: 0 | D7: 0 | E7: 0 | F7: =Data!N83 -> 125 | G7: 0 | H7: 0 | I7: 0 | J7: 0 | K7: 0 | L7: 0 | M7: 0 | N7: 0 | O7: 0 | P7: 0 | Q7: 0 | R7: 0 | S7: 0 | T7: 0 | U7: 0
A8: 0 | B8: 0 | C8: 0 | D8: 0 | E8: 0 | F8: 0 | G8: =Data!O78 -> 56.03359267 | H8: 0 | I8: 0 | J8: 0 | K8: 0 | L8: 0 | M8: 0 | N8: 0 | O8: 0 | P8: 0 | Q8: 0 | R8: 0 | S8: 0 | T8: 0 | U8: 0
A9: 0 | B9: 0 | C9: 0 | D9: 0 | E9: 0 | F9: 0 | G9: 0 | H9: =Data!O79 -> 54.68473947 | I9: 0 | J9: 0 | K9: 0 | L9: 0 | M9: 0 | N9: 0 | O9: 0 | P9: 0 | Q9: 0 | R9: 0 | S9: 0 | T9: 0 | U9: 0
A10: 0 | B10: 0 | C10: 0 | D10: 0 | E10: 0 | F10: 0 | G10: 0 | H10: 0 | I10: =Data!O80 -> 57.04422363 | J10: 0 | K10: 0 | L10: 0 | M10: 0 | N10: 0 | O10: 0 | P10: 0 | Q10: 0 | R10: 0 | S10: 0 | T10: 0 | U10: 0
A11: 0 | B11: 0 | C11: 0 | D11: 0 | E11: 0 | F11: 0 | G11: 0 | H11: 0 | I11: 0 | J11: =Data!O81 -> 54.60354137 | K11: 0 | L11: 0 | M11: 0 | N11: 0 | O11: 0 | P11: 0 | Q11: 0 | R11: 0 | S11: 0 | T11: 0 | U11: 0
A12: 0 | B12: 0 | C12: 0 | D12: 0 | E12: 0 | F12: 0 | G12: 0 | H12: 0 | I12: 0 | J12: 0 | K12: =Data!O82 -> 59.72265873 | L12: 0 | M12: 0 | N12: 0 | O12: 0 | P12: 0 | Q12: 0 | R12: 0 | S12: 0 | T12: 0 | U12: 0
A13: 0 | B13: 0 | C13: 0 | D13: 0 | E13: 0 | F13: 0 | G13: 0 | H13: 0 | I13: 0 | J13: 0 | K13: 0 | L13: =Data!P78 -> 30.34599034 | M13: 0 | N13: 0 | O13: 0 | P13: 0 | Q13: 0 | R13: 0 | S13: 0 | T13: 0 | U13: 0
A14: 0 | B14: 0 | C14: 0 | D14: 0 | E14: 0 | F14: 0 | G14: 0 | H14: 0 | I14: 0 | J14: 0 | K14: 0 | L14: 0 | M14: =Data!P79 -> 29.61549486 | N14: 0 | O14: 0 | P14: 0 | Q14: 0 | R14: 0 | S14: 0 | T14: 0 | U14: 0
A15: 0 | B15: 0 | C15: 0 | D15: 0 | E15: 0 | F15: 0 | G15: 0 | H15: 0 | I15: 0 | J15: 0 | K15: 0 | L15: 0 | M15: 0 | N15: =Data!P80 -> 30.89331554 | O15: 0 | P15: 0 | Q15: 0 | R15: 0 | S15: 0 | T15: 0 | U15: 0
A16: 0 | B16: 0 | C16: 0 | D16: 0 | E16: 0 | F16: 0 | G16: 0 | H16: 0 | I16: 0 | J16: 0 | K16: 0 | L16: 0 | M16: 0 | N16: 0 | O16: =Data!P81 -> 29.57152058 | P16: 0 | Q16: 0 | R16: 0 | S16: 0 | T16: 0 | U16: 0
A17: 0 | B17: 0 | C17: 0 | D17: 0 | E17: 0 | F17: 0 | G17: 0 | H17: 0 | I17: 0 | J17: 0 | K17: 0 | L17: 0 | M17: 0 | N17: 0 | O17: 0 | P17: =Data!Q78 -> 16.43441167 | Q17: 0 | R17: 0 | S17: 0 | T17: 0 | U17: 0
A18: 0 | B18: 0 | C18: 0 | D18: 0 | E18: 0 | F18: 0 | G18: 0 | H18: 0 | I18: 0 | J18: 0 | K18: 0 | L18: 0 | M18: 0 | N18: 0 | O18: 0 | P18: 0 | Q18: =Data!Q79 -> 16.03879883 | R18: 0 | S18: 0 | T18: 0 | U18: 0
A19: 0 | B19: 0 | C19: 0 | D19: 0 | E19: 0 | F19: 0 | G19: 0 | H19: 0 | I19: 0 | J19: 0 | K19: 0 | L19: 0 | M19: 0 | N19: 0 | O19: 0 | P19: 0 | Q19: 0 | R19: =Data!Q80 -> 16.73082539 | S19: 0 | T19: 0 | U19: 0
A20: 0 | B20: 0 | C20: 0 | D20: 0 | E20: 0 | F20: 0 | G20: 0 | H20: 0 | I20: 0 | J20: 0 | K20: 0 | L20: 0 | M20: 0 | N20: 0 | O20: 0 | P20: 0 | Q20: 0 | R20: 0 | S20: =Data!R78 -> 8.900348417 | T20: 0 | U20: 0
A21: 0 | B21: 0 | C21: 0 | D21: 0 | E21: 0 | F21: 0 | G21: 0 | H21: 0 | I21: 0 | J21: 0 | K21: 0 | L21: 0 | M21: 0 | N21: 0 | O21: 0 | P21: 0 | Q21: 0 | R21: 0 | S21: 0 | T21: =Data!R79 -> 8.686097235 | U21: 0
A22: 0 | B22: 0 | C22: 0 | D22: 0 | E22: 0 | F22: 0 | G22: 0 | H22: 0 | I22: 0 | J22: 0 | K22: 0 | L22: 0 | M22: 0 | N22: 0 | O22: 0 | P22: 0 | Q22: 0 | R22: 0 | S22: 0 | T22: 0 | U22: =Data!S78 -> 4.820142243
A24: Hat Matrix
A25: =MMULT(MMULT(MMULT(DesignMatrix,MINVERSE(MMULT(MMULT(TRANSPOSE(DesignMatrix),WeightMatrix),DesignMatrix))),TRANSPOSE(DesignMatrix)),WeightMatrix) -> 0.5831092046 | B25: 0.1005440373 | C25: 0.09008972029 | D25: 0.06587545725 | E25: 0.04116854791 | F25: 0 | G25: 0.2562492445 | H25: -0.003659163724 | I25: -0.01182818428 | J25: -0.02234826594 | K25: -0.04116854791 | L25: 0.1065292656 | M25: -0.0334525042 | N25: -0.03923445522 | O25: -0.04352719131 | P25: 0.04022884212 | Q25: -0.03516038222 | R25: -0.03902708079 | S25: 0.01232871693 | T25: -0.02827198716 | U25: 0.001554726246
A26: 0.1030240555 | B26: 0.5726536941 | C26: 0.08227366612 | D26: 0.06016019761 | E26: 0.03759682409 | F26: 0 | G26: 0.001416525131 | H26: 0.2570618213 | I26: -0.01080198808 | J26: -0.02040936263 | K26: -0.03759682409 | L26: -0.02868222342 | M26: 0.1104759528 | N26: -0.03583053048 | O26: -0.03975083499 | P26: -0.03148219884 | Q26: 0.04426531436 | R26: -0.03564114756 | S26: -0.02568711852 | T26: 0.01554321745 | U26: -0.01858903981
A27: 0.08849363475 | B27: 0.07887063248 | C27: 0.5722490782 | D27: 0.05167525711 | E27: 0.03229420162 | F27: 0 | G27: 0.001216739692 | H27: -0.002870389582 | I27: 0.2623606748 | J27: -0.01753084436 | K27: -0.03229420162 | L27: -0.02463690826 | M27: -0.02624143843 | N27: 0.1163340019 | O27: -0.03414441274 | P27: -0.02704197765 | Q27: -0.02758116402 | R27: 0.04905624512 | S27: -0.02206423028 | T27: -0.02217764045 | U27: -0.01596725825
A28: 0.06760071684 | B28: 0.06024965873 | C28: 0.05398505021 | D28: 0.5844746447 | E28: 0.02466969726 | F28: 0 | G28: 0.0009294733531 | H28: -0.002192704525 | I28: -0.007087879952 | J28: 0.2817623806 | K28: -0.02466969726 | L28: -0.01882025373 | M28: -0.02004596211 | N28: -0.0235107183 | O28: 0.1337629747 | P28: -0.0206574979 | Q28: -0.02106938498 | R28: -0.02338645196 | S28: -0.01685497254 | T28: -0.01694160712 | U28: -0.01219746603
A29: 0.03862556848 | B29: 0.03442533494 | C29: 0.03084587489 | D29: 0.02255513843 | E29: 0.6627859673 | F29: 0 | G29: 0.0005310807093 | H29: -0.001252863324 | I29: -0.00404985931 | J29: -0.007651836557 | K29: 0.3372140327 | L29: -0.01075348063 | M29: -0.01145382354 | N29: -0.01343350932 | O29: -0.01490330188 | P29: -0.0118032417 | Q29: -0.01203858495 | R29: -0.01336250626 | S29: -0.009630562021 | T29: -0.009680063119 | U29: -0.006969364844
A30: 0 | B30: 0 | C30: 0 | D30: 0 | E30: 0 | F30: 1 | G30: 0 | H30: 0 | I30: 0 | J30: 0 | K30: 0 | L30: 0 | M30: 0 | N30: 0 | O30: 0 | P30: 0 | Q30: 0 | R30: 0 | S30: 0 | T30: 0 | U30: 0
A31: 0.4731618784 | B31: 0.00255263733 | C31: 0.002287220497 | D31: 0.001672462692 | E31: 0.001045197458 | F31: 0 | G31: 0.2547375281 | H31: -9.289976977e-05 | I31: -0.0003002969201 | J31: -0.0005673834015 | K31: -0.001045197458 | L31: 0.1371389495 | M31: -0.0008493005979 | N31: -0.0009960942258 | O31: -0.00110507929 | P31: 0.0738266613 | Q31: -0.0008926606349 | R31: -0.0009908293515 | S31: 0.03974202334 | T31: -0.0007177763271 | U31: 0.02139295932
A32: -0.006923270762 | B32: 0.4746622941 | C32: -0.005528833674 | D32: -0.00404279695 | E32: -0.002526526371 | F32: 0 | G32: -9.519123449e-05 | H32: 0.2606280853 | I32: 0.0007258992852 | J32: 0.001371519913 | K32: 0.002526526371 | L32: 0.001927460513 | M32: 0.1430791564 | N32: 0.002407830511 | O32: 0.002671277037 | P32: 0.002115620335 | Q32: 0.07853303594 | R32: 0.002395103878 | S32: 0.001726187887 | T32: 0.04309742828 | U32: 0.001249193261
A33: -0.02145369147 | B33: -0.0191207675 | C33: 0.4844465784 | D33: -0.01252773746 | E33: -0.007829148839 | F33: 0 | G33: -0.000294976673 | H33: 0.000695874372 | I33: 0.2738885622 | J33: 0.004250038178 | K33: 0.007829148839 | L33: 0.00597277567 | M33: 0.006361765176 | N33: 0.1545723629 | O33: 0.008277699278 | P33: 0.006555841525 | Q33: 0.006686557569 | R33: 0.08709249655 | S33: 0.005349076128 | T33: 0.005376570384 | U33: 0.003870974823
A34: -0.04234660938 | B34: -0.03774174125 | C34: -0.03381744958 | D34: 0.5202716501 | E34: -0.01545365319 | F34: 0 | G34: -0.0005822430123 | H34: 0.001373559429 | I34: 0.004440007409 | J34: 0.3035432632 | K34: 0.01545365319 | L34: 0.0117894302 | M34: 0.0125572415 | N34: 0.0147276427 | O34: 0.1761850867 | P34: 0.01294032128 | Q34: 0.01319833661 | R34: 0.01464979947 | S34: 0.01055833387 | T34: 0.01061260372 | U34: 0.007640767043
A35: -0.07132175774 | B35: -0.06356606504 | C35: -0.05695662491 | D35: -0.04164785613 | E35: 0.6226626168 | F35: 0 | G35: -0.0009806356561 | H35: 0.00231340063 | I35: 0.007478028051 | J35: 0.01412904598 | K35: 0.3773373832 | L35: 0.0198562033 | M35: 0.02114938006 | N35: 0.02480485168 | O35: 0.02751881015 | P35: 0.02179457748 | Q35: 0.02222913664 | R35: 0.02467374518 | S35: 0.01778274439 | T35: 0.01787414772 | U35: 0.01286886823
A36: 0.3632145522 | B36: -0.09543876265 | C36: -0.08551527929 | D36: -0.06253053187 | E36: -0.039078153 | F36: 0 | G36: 0.2532258118 | H36: 0.003473364185 | I36: 0.01122759044 | J36: 0.02121349914 | K36: 0.039078153 | L36: 0.1677486334 | M36: 0.03175390301 | N36: 0.03724226677 | O36: 0.04131703273 | P36: 0.1074244805 | Q36: 0.03337506095 | R36: 0.03704542209 | S36: 0.06715532976 | T36: 0.02683643451 | U36: 0.04123119239
A37: -0.116870597 | B37: 0.3766708941 | C37: -0.09333133347 | D37: -0.06824579151 | E37: -0.04264987683 | F37: 0 | G37: -0.0016069076 | H37: 0.2641943493 | I37: 0.01225378665 | J37: 0.02315240245 | K37: 0.04264987683 | L37: 0.03253714444 | M37: 0.17568236 | N37: 0.0406461915 | O37: 0.04509338906 | P37: 0.03571343951 | Q37: 0.1128007575 | R37: 0.04043135532 | S37: 0.0291394943 | T37: 0.07065163912 | U37: 0.02108742633
A38: -0.1314010177 | B38: -0.1171121675 | C38: 0.3966440786 | D38: -0.07673073202 | E38: -0.04795249929 | F38: 0 | G38: -0.001806693038 | H38: 0.004262138326 | I38: 0.2854164495 | J38: 0.02603092072 | K38: 0.04795249929 | L38: 0.0365824596 | M38: 0.03896496878 | N38: 0.1928107239 | O38: 0.0506998113 | P38: 0.0401536607 | Q38: 0.04095427916 | R38: 0.125128748 | S38: 0.03276238254 | T38: 0.03293078122 | U38: 0.02370920789
A39: -0.1522939356 | B39: -0.1357331412 | C39: -0.1216199494 | D39: 0.4560686556 | E39: -0.05557700365 | F39: 0 | G39: -0.002093959378 | H39: 0.004939823383 | I39: 0.01596789477 | J39: 0.3253241457 | K39: 0.05557700365 | L39: 0.04239911413 | M39: 0.04516044511 | N39: 0.05296600369 | O39: 0.2186071987 | P39: 0.04653814045 | Q39: 0.04746605819 | R39: 0.05268605091 | S39: 0.03797164028 | T39: 0.03816681455 | U39: 0.02747900011
A40: 0.2532672259 | B40: -0.1934301626 | C40: -0.1733177791 | D40: -0.1267335264 | E40: -0.07920150345 | F40: 0 | G40: 0.2517140954 | H40: 0.007039628139 | I40: 0.0227554778 | J40: 0.04299438168 | K40: 0.07920150345 | L40: 0.1983583174 | M40: 0.06435710662 | N40: 0.07548062776 | O40: 0.08373914476 | P40: 0.1410222997 | Q40: 0.06764278254 | R40: 0.07508167352 | S40: 0.09456863617 | T40: 0.05439064534 | U40: 0.06106942546
A41: -0.2268179232 | B41: 0.2786794941 | C41: -0.1811338333 | D41: -0.1324487861 | E41: -0.08277322728 | F41: 0 | G41: -0.003118623965 | H41: 0.2677606132 | I41: 0.02378167401 | J41: 0.04493328499 | K41: 0.08277322728 | L41: 0.06314682837 | M41: 0.2082855636 | N41: 0.0788845525 | O41: 0.08751550108 | P41: 0.06931125869 | Q41: 0.1470684791 | R41: 0.07846760675 | S41: 0.05655280071 | T41: 0.09820584995 | U41: 0.0409256594
A42: -0.2413483439 | B42: -0.2151035675 | C42: 0.3088415788 | D42: -0.1409337266 | E42: -0.08807584975 | F42: 0 | G42: -0.003318409404 | H42: 0.007828402281 | I42: 0.2969443369 | J42: 0.04781180326 | K42: 0.08807584975 | L42: 0.06719214353 | M42: 0.07156817239 | N42: 0.2310490849 | O42: 0.09312192332 | P42: 0.07375147988 | Q42: 0.07522200074 | R42: 0.1631649994 | S42: 0.06017568895 | T42: 0.06048499205 | U42: 0.04354744097
A43: 0.1433198997 | B43: -0.2914215626 | C43: -0.2611202789 | D43: -0.190936521 | E43: -0.1193248539 | F43: 0 | G43: 0.250202379 | H43: 0.01060589209 | I43: 0.03428336516 | J43: 0.06477526422 | K43: 0.1193248539 | L43: 0.2289680013 | M43: 0.09696031022 | N43: 0.1137189888 | O43: 0.1261612568 | P43: 0.1746201188 | Q43: 0.1019105041 | R43: 0.113117925 | S43: 0.1219819426 | T43: 0.08194485618 | U43: 0.08090765853
A44: -0.3367652494 | B44: 0.1806880941 | C44: -0.2689363331 | D44: -0.1966517806 | E44: -0.1228965777 | F44: 0 | G44: -0.004630340331 | H44: 0.2713268772 | I44: 0.03530956137 | J44: 0.06671416753 | K44: 0.1228965777 | L44: 0.0937565123 | M44: 0.2408887672 | N44: 0.1171229135 | O44: 0.1299376131 | P44: 0.1029090779 | Q44: 0.1813362007 | R44: 0.1165038582 | S44: 0.08396610712 | T44: 0.1257600608 | U44: 0.06076389248
A45: 0.03337257348 | B45: -0.3894129626 | C45: -0.3489227787 | D45: -0.2551395156 | E45: -0.1594482044 | F45: 0 | G45: 0.2486906627 | H45: 0.01417215605 | I45: 0.04581125252 | J45: 0.08655614676 | K45: 0.1594482044 | L45: 0.2595776852 | M45: 0.1295635138 | N45: 0.1519573498 | O45: 0.1685833688 | P45: 0.208217938 | Q45: 0.1361782257 | R45: 0.1511541764 | S45: 0.149395249 | T45: 0.109499067 | U45: 0.1007458916
A48: Hat Matrix Factors
A49: =IF(A25=1,0,1/SQRT(1-A25)) -> 1.548776844
B50: =IF(B26=1,0,1/SQRT(1-B26)) -> 1.52971323
C51: =IF(C27=1,0,1/SQRT(1-C27)) -> 1.52898957
D52: =IF(D28=1,0,1/SQRT(1-D28)) -> 1.551319442
E53: =IF(E29=1,0,1/SQRT(1-E29)) -> 1.722055644
F54: =IF(F30=1,0,1/SQRT(1-F30)) -> 0
G55: =IF(G31=1,0,1/SQRT(1-G31)) -> 1.158364858
H56: =IF(H32=1,0,1/SQRT(1-H32)) -> 1.162970036
I57: =IF(I33=1,0,1/SQRT(1-I33)) -> 1.173541254
J58: =IF(J34=1,0,1/SQRT(1-J34)) -> 1.198265149
K59: =IF(K35=1,0,1/SQRT(1-K35)) -> 1.267282985
L60: =IF(L36=1,0,1/SQRT(1-L36)) -> 1.096156949
M61: =IF(M37=1,0,1/SQRT(1-M37)) -> 1.101419353
N62: =IF(N38=1,0,1/SQRT(1-N38)) -> 1.113043937
O63: =IF(O39=1,0,1/SQRT(1-O39)) -> 1.131267465
P64: =IF(P40=1,0,1/SQRT(1-P40)) -> 1.078969219
Q65: =IF(Q41=1,0,1/SQRT(1-Q41)) -> 1.082786713
R66: =IF(R42=1,0,1/SQRT(1-R42)) -> 1.093150812
S67: =IF(S43=1,0,1/SQRT(1-S43)) -> 1.067206044
T68: =IF(T44=1,0,1/SQRT(1-T44)) -> 1.069509578
U69: =IF(U45=1,0,1/SQRT(1-U45)) -> 1.054529624

Sheet GLM 2
A1: GLM Estimation of Sample Data Parameters | G1: rho = | H1: =Data!F55 -> 1 | J1: parameters = | K1: =Data!R113 -> 7
A2: Newton-Raphson Interation Sequence -- Iteration 1
B3: y(i) | D3: xb(i) | F3: W(i,i) | AB3: XWX | AJ3: zz(i) | AL3: factor | AN3: xwx-1 | AV3: aa1(i,j) | BR3: aa2(j) | BT3: beta(j) | BV3: beta_diff = | BW3: =SUM(BV5:BV15) -> 3.934457654 | BX3: beta_old = | BY3: =SUM(BT5:BT15) -> 27.54120358
B4: 1 | D4: 1 | F4: 1 | G4: 2 | H4: 3 | I4: 4 | J4: 5 | K4: 6 | L4: 7 | M4: 8 | N4: 9 | O4: 10 | P4: 11 | Q4: 12 | R4: 13 | S4: 14 | T4: 15 | U4: 16 | V4: 17 | W4: 18 | X4: 19 | Y4: 20 | Z4: 21 | AB4: 1 | AC4: 2 | AD4: 3 | AE4: 4 | AF4: 5 | AG4: 6 | AH4: 7 | AJ4: 1 | AN4: 1 | AO4: 2 | AP4: 3 | AQ4: 4 | AR4: 5 | AS4: 6 | AT4: 7 | AV4: 1 | AW4: 2 | AX4: 3 | AY4: 4 | AZ4: 5 | BA4: 6 | BB4: 7 | BC4: 8 | BD4: 9 | BE4: 10 | BF4: 11 | BG4: 12 | BH4: 13 | BI4: 14 | BJ4: 15 | BK4: 16 | BL4: 17 | BM4: 18 | BN4: 19 | BO4: 20 | BP4: 21
A5: 1 | B5: =Data!N138 -> 102.9629594 | D5: =IF(B5<0,-LN(-B5),LN(B5)) -> 4.634369306 | F5: =IF($A5=F$4,IF($B5<0,-(EXP(-$D5)^(2-$H$1)),IF($B5=0,0,EXP($D5)^(2-$H$1))),0) -> 102.9629594 | G5: 0 | H5: 0 | I5: 0 | J5: 0 | K5: 0 | L5: 0 | M5: 0 | N5: 0 | O5: 0 | P5: =IF($A5=P$4,IF($B5<0,-(EXP(-$D5)^(2-$H$1)),IF($B5=0,0,EXP($D5)^(2-$H$1))),0) -> 0 | Q5: 0 | R5: 0 | S5: 0 | T5: 0 | U5: 0 | V5: 0 | W5: 0 | X5: 0 | Y5: 0 | Z5: 0 | AB5: =MMULT(TRANSPOSE(DesignMatrix),MMULT(F5:Z25,DesignMatrix)) -> 264.4680273 | AC5: 0 | AD5: 0 | AE5: 0 | AF5: 0 | AG5: 0 | AH5: 350.5483952 | AJ5: =IF(B5<0,D5+(B5+EXP(-D5))/-EXP(-D5),IF(B5=0,0,D5+(B5-EXP(D5))/EXP(D5))) -> 4.634369306 | AL5: =OFFSET(AA4,A5,A5) -> 264.4680273 | AN5: =MINVERSE(AB5:AH11) -> 0.005236300604 | AO5: 0.0009862964096 | AP5: 0.0006281251765 | AQ5: 0.0007385263022 | AR5: 0.000508798358 | AS5: 0 | AT5: -0.001097805884 | AV5: =MMULT(AN5:AT11,TRANSPOSE(DesignMatrix)) -> 0.005236300604 | AW5: 0.0009862964096 | AX5: 0.0006281251765 | AY5: 0.0007385263022 | AZ5: 0.000508798358 | BA5: 0 | BB5: 0.00413849472 | BC5: -0.0001115094748 | BD5: -0.0004696807079 | BE5: -0.0003592795822 | BF5: -0.0005890075264 | BG5: 0.003040688835 | BH5: -0.001209315359 | BI5: -0.001567486592 | BJ5: -0.001457085467 | BK5: 0.001942882951 | BL5: -0.002307121244 | BM5: -0.002665292477 | BN5: 0.0008450770666 | BO5: -0.003404927128 | BP5: -0.0002527288178 | BR5: =MMULT(F5:Z25,AJ5:AJ25) -> 477.1683784 | BT5: =MMULT(AV5:BP11,BR5:BR25) -> 4.776369335 | BV5: =BT5/$K$1 -> 0.6823384765
A6: 2 | B6: =Data!N139 -> 130.7436251 | D6: =IF(B6<0,-LN(-B6),LN(B6)) -> 4.873238346 | F6: 0 | G6: 130.7436251 | H6: 0 | I6: 0 | J6: 0 | K6: 0 | L6: 0 | M6: 0 | N6: 0 | O6: 0 | P6: 0 | Q6: 0 | R6: 0 | S6: 0 | T6: 0 | U6: 0 | V6: 0 | W6: 0 | X6: 0 | Y6: 0 | Z6: 0 | AB6: 0 | AC6: 245.7903854 | AD6: 0 | AE6: 0 | AF6: 0 | AG6: 0 | AH6: 220.8242624 | AJ6: =IF(B6<0,D6+(B6+EXP(-D6))/-EXP(-D6),IF(B6=0,0,D6+(B6-EXP(D6))/EXP(D6))) -> 4.873238346 | AL6: =OFFSET(AA4,A6,A6) -> 245.7903854 | AN6: 0.0009862964096 | AO6: 0.004737027604 | AP6: 0.0004257486617 | AQ6: 0.0005005794969 | AR6: 0.000344867915 | AS6: 0 | AT6: -0.0007441022962 | AV6: 0.0009862964096 | AW6: 0.004737027604 | AX6: 0.0004257486617 | AY6: 0.0005005794969 | AZ6: 0.000344867915 | BA6: 0 | BB6: 0.0002421941135 | BC6: 0.003992925308 | BD6: -0.0003183536345 | BE6: -0.0002435227993 | BF6: -0.0003992343811 | BG6: -0.0005019081827 | BH6: 0.003248823012 | BI6: -0.001062455931 | BJ6: -0.0009876250955 | BK6: -0.001246010479 | BL6: 0.002504720716 | BM6: -0.001806558227 | BN6: -0.001990112775 | BO6: 0.00176061842 | BP6: -0.002734215071 | BR6: 637.1448474 | BT6: 4.727207312 | BV6: 0.6753153303
A7: 3 | B7: =Data!N140 -> 144.071598 | D7: 4.970310384 | F7: 0 | G7: 0 | H7: 144.071598 | I7: 0 | J7: 0 | K7: 0 | L7: 0 | M7: 0 | N7: 0 | O7: 0 | P7: 0 | Q7: 0 | R7: 0 | S7: 0 | T7: 0 | U7: 0 | V7: 0 | W7: 0 | X7: 0 | Y7: 0 | Z7: 0 | AB7: 0 | AC7: 0 | AD7: 249.4010553 | AE7: 0 | AF7: 0 | AG7: 0 | AH7: 142.6983441 | AJ7: 4.970310384 | AL7: =OFFSET(AA4,A7,A7) -> 249.4010553 | AN7: 0.0006281251765 | AO7: 0.0004257486617 | AP7: 0.00428074516 | AQ7: 0.000318795224 | AR7: 0.0002196299387 | AS7: 0 | AT7: -0.0004738832886 | AV7: 0.0006281251765 | AW7: 0.0004257486617 | AX7: 0.00428074516 | AY7: 0.000318795224 | AZ7: 0.0002196299387 | BA7: 0 | BB7: 0.0001542418879 | BC7: -4.813462686e-05 | BD7: 0.003806861872 | BE7: -0.0001550880646 | BF7: -0.0002542533499 | BG7: -0.0003196414006 | BH7: -0.0005220179154 | BI7: 0.003332978583 | BJ7: -0.0006289713531 | BK7: -0.0007935246892 | BL7: -0.000995901204 | BM7: 0.002859095295 | BN7: -0.001267407978 | BO7: -0.001469784493 | BP7: -0.001741291266 | BR7: 716.0805594 | BT7: 4.845326833 | BV7: 0.6921895476
A8: 4 | B8: =Data!N141 -> 88.97479141 | D8: 4.488353087 | F8: 0 | G8: 0 | H8: 0 | I8: 88.97479141 | J8: 0 | K8: 0 | L8: 0 | M8: 0 | N8: 0 | O8: 0 | P8: 0 | Q8: 0 | R8: 0 | S8: 0 | T8: 0 | U8: 0 | V8: 0 | W8: 0 | X8: 0 | Y8: 0 | Z8: 0 | AB8: 0 | AC8: 0 | AD8: 0 | AE8: 180.0757289 | AF8: 0 | AG8: 0 | AH8: 121.1422384 | AJ8: 4.488353087 | AL8: =OFFSET(AA4,A8,A8) -> 180.0757289 | AN8: 0.0007385263022 | AO8: 0.0005005794969 | AP8: 0.000318795224 | AQ8: 0.005928046837 | AR8: 0.0002582327418 | AS8: 0 | AT8: -0.0005571744071 | AV8: 0.0007385263022 | AW8: 0.0005005794969 | AX8: 0.000318795224 | AY8: 0.005928046837 | AZ8: 0.0002582327418 | BA8: 0 | BB8: 0.0001813518951 | BC8: -5.659491024e-05 | BD8: -0.0002383791831 | BE8: 0.00537087243 | BF8: -0.0002989416653 | BG8: -0.000375822512 | BH8: -0.0006137693173 | BI8: -0.0007955535902 | BJ8: 0.004813698023 | BK8: -0.0009329969191 | BL8: -0.001170943724 | BM8: -0.001352727997 | BN8: -0.001490171326 | BO8: -0.001728118132 | BP8: -0.002047345733 | BR8: 399.3502797 | BT8: 4.549010848 | BV8: 0.6498586926
A9: 5 | B9: =Data!N142 -> 88.65825693 | D9: 4.484789169 | F9: 0 | G9: 0 | H9: 0 | I9: 0 | J9: 88.65825693 | K9: 0 | L9: 0 | M9: 0 | N9: 0 | O9: 0 | P9: 0 | Q9: 0 | R9: 0 | S9: 0 | T9: 0 | U9: 0 | V9: 0 | W9: 0 | X9: 0 | Y9: 0 | Z9: 0 | AB9: 0 | AC9: 0 | AD9: 0 | AE9: 0 | AF9: 165.2433149 | AG9: 0 | AH9: 76.58505796 | AJ9: 4.484789169 | AL9: =OFFSET(AA4,A9,A9) -> 165.2433149 | AN9: 0.000508798358 | AO9: 0.000344867915 | AP9: 0.0002196299387 | AQ9: 0.0002582327418 | AR9: 0.006229588217 | AS9: 0 | AT9: -0.0003838582629 | AV9: 0.000508798358 | AW9: 0.000344867915 | AX9: 0.0002196299387 | AY9: 0.0002582327418 | AZ9: 0.006229588217 | BA9: 0 | BB9: 0.0001249400951 | BC9: -3.899034782e-05 | BD9: -0.0001642283242 | BE9: -0.0001256255211 | BF9: 0.005845729954 | BG9: -0.0002589181677 | BH9: -0.0004228486107 | BI9: -0.000548086587 | BJ9: -0.000509483784 | BK9: -0.0006427764306 | BL9: -0.0008067068735 | BM9: -0.0009319448499 | BN9: -0.001026634693 | BO9: -0.001190565136 | BP9: -0.001410492956 | BR9: 397.6135904 | BT9: 4.671476343 | BV9: 0.6673537632
A10: 6 | B10: =Data!N143 -> 91.92790268 | D10: 4.521004603 | F10: 0 | G10: 0 | H10: 0 | I10: 0 | J10: 0 | K10: 91.92790268 | L10: 0 | M10: 0 | N10: 0 | O10: 0 | P10: 0 | Q10: 0 | R10: 0 | S10: 0 | T10: 0 | U10: 0 | V10: 0 | W10: 0 | X10: 0 | Y10: 0 | Z10: 0 | AB10: 0 | AC10: 0 | AD10: 0 | AE10: 0 | AF10: 0 | AG10: 91.92790268 | AH10: 0 | AJ10: 4.521004603 | AL10: =OFFSET(AA4,A10,A10) -> 91.92790268 | AN10: 0 | AO10: 0 | AP10: 0 | AQ10: 0 | AR10: 0 | AS10: 0.01087809001 | AT10: 0 | AV10: 0 | AW10: 0 | AX10: 0 | AY10: 0 | AZ10: 0 | BA10: 0.01087809001 | BB10: 0 | BC10: 0 | BD10: 0 | BE10: 0 | BF10: 0 | BG10: 0 | BH10: 0 | BI10: 0 | BJ10: 0 | BK10: 0 | BL10: 0 | BM10: 0 | BN10: 0 | BO10: 0 | BP10: 0 | BR10: 415.6064712 | BT10: 4.521004603 | BV10: 0.6458578005
A11: 7 | B11: =Data!O138 -> 62.57368307 | D11: 4.136344791 | F11: 0 | G11: 0 | H11: 0 | I11: 0 | J11: 0 | K11: 0 | L11: 62.57368307 | M11: 0 | N11: 0 | O11: 0 | P11: 0 | Q11: 0 | R11: 0 | S11: 0 | T11: 0 | U11: 0 | V11: 0 | W11: 0 | X11: 0 | Y11: 0 | Z11: 0 | AB11: 350.5483952 | AC11: 220.8242624 | AD11: 142.6983441 | AE11: 121.1422384 | AF11: 76.58505796 | AG11: 0 | AH11: 2069.072945 | AJ11: 4.136344791 | AL11: =OFFSET(AA4,A11,A11) -> 2069.072945 | AN11: -0.001097805884 | AO11: -0.0007441022962 | AP11: -0.0004738832886 | AQ11: -0.0005571744071 | AR11: -0.0003838582629 | AS11: 0 | AT11: 0.0008282295985 | AV11: -0.001097805884 | AW11: -0.0007441022962 | AX11: -0.0004738832886 | AY11: -0.0005571744071 | AZ11: -0.0003838582629 | BA11: 0 | BB11: -0.0002695762859 | BC11: 8.412730231e-05 | BD11: 0.0003543463099 | BE11: 0.0002710551914 | BF11: 0.0004443713356 | BG11: 0.0005586533125 | BH11: 0.0009123569008 | BI11: 0.001182575908 | BJ11: 0.00109928479 | BK11: 0.001386882911 | BL11: 0.001740586499 | BM11: 0.002010805507 | BN11: 0.002215112509 | BO11: 0.002568816098 | BP11: 0.003043342108 | BR11: 258.826328 | BT11: -0.549191696 | BV11: -0.07845595657
A12: 8 | B12: =Data!O139 -> 55.34390049 | D12: 4.013566454 | F12: 0 | G12: 0 | H12: 0 | I12: 0 | J12: 0 | K12: 0 | L12: 0 | M12: 55.34390049 | N12: 0 | O12: 0 | P12: 0 | Q12: 0 | R12: 0 | S12: 0 | T12: 0 | U12: 0 | V12: 0 | W12: 0 | X12: 0 | Y12: 0 | Z12: 0 | AJ12: 4.013566454 | BR12: 222.1264224
A13: 9 | B13: =Data!O140 -> 79.4190599 | D13: 4.374738389 | F13: 0 | G13: 0 | H13: 0 | I13: 0 | J13: 0 | K13: 0 | L13: 0 | M13: 0 | N13: 79.4190599 | O13: 0 | P13: 0 | Q13: 0 | R13: 0 | S13: 0 | T13: 0 | U13: 0 | V13: 0 | W13: 0 | X13: 0 | Y13: 0 | Z13: 0 | AJ13: 4.374738389 | BR13: 347.4376101
A14: 10 | B14: =Data!O141 -> 61.05963651 | D14: 4.111851034 | F14: 0 | G14: 0 | H14: 0 | I14: 0 | J14: 0 | K14: 0 | L14: 0 | M14: 0 | N14: 0 | O14: 61.05963651 | P14: 0 | Q14: 0 | R14: 0 | S14: 0 | T14: 0 | U14: 0 | V14: 0 | W14: 0 | X14: 0 | Y14: 0 | Z14: 0 | AJ14: 4.111851034 | BR14: 251.0681295
A15: 11 | B15: =Data!O142 -> 76.58505796 | D15: 4.338401992 | F15: =IF($A15=F$4,IF($B15<0,-(EXP(-$D15)^(2-$H$1)),IF($B15=0,0,EXP($D15)^(2-$H$1))),0) -> 0 | G15: 0 | H15: 0 | I15: 0 | J15: 0 | K15: 0 | L15: 0 | M15: 0 | N15: 0 | O15: 0 | P15: =IF($A15=P$4,IF($B15<0,-(EXP(-$D15)^(2-$H$1)),IF($B15=0,0,EXP($D15)^(2-$H$1))),0) -> 76.58505796 | Q15: 0 | R15: 0 | S15: 0 | T15: 0 | U15: 0 | V15: 0 | W15: 0 | X15: 0 | Y15: 0 | Z15: 0 | AJ15: 4.338401992 | BR15: 332.256768
A16: 12 | B16: =Data!P138 -> 51.13962648 | D16: 3.934559666 | F16: 0 | G16: 0 | H16: 0 | I16: 0 | J16: 0 | K16: 0 | L16: 0 | M16: 0 | N16: 0 | O16: 0 | P16: 0 | Q16: 51.13962648 | R16: 0 | S16: 0 | T16: 0 | U16: 0 | V16: 0 | W16: 0 | X16: 0 | Y16: 0 | Z16: 0 | AJ16: 3.934559666 | BR16: 201.2119117
A17: 13 | B17: =Data!P139 -> 28.74507246 | D17: 3.35846636 | F17: 0 | G17: 0 | H17: 0 | I17: 0 | J17: 0 | K17: 0 | L17: 0 | M17: 0 | N17: 0 | O17: 0 | P17: 0 | Q17: 0 | R17: 28.74507246 | S17: 0 | T17: 0 | U17: 0 | V17: 0 | W17: 0 | X17: 0 | Y17: 0 | Z17: 0 | AJ17: 3.35846636 | BR17: 96.53935886
A18: 14 | B18: =Data!P140 -> 14.45190814 | D18: 2.670826457 | F18: 0 | G18: 0 | H18: 0 | I18: 0 | J18: 0 | K18: 0 | L18: 0 | M18: 0 | N18: 0 | O18: 0 | P18: 0 | Q18: 0 | R18: 0 | S18: 14.45190814 | T18: 0 | U18: 0 | V18: 0 | W18: 0 | X18: 0 | Y18: 0 | Z18: 0 | AJ18: 2.670826457 | BR18: 38.5985386
A19: 15 | B19: =Data!P141 -> 30.04130094 | D19: 3.402573133 | F19: 0 | G19: 0 | H19: 0 | I19: 0 | J19: 0 | K19: 0 | L19: 0 | M19: 0 | N19: 0 | O19: 0 | P19: 0 | Q19: 0 | R19: 0 | S19: 0 | T19: 30.04130094 | U19: 0 | V19: 0 | W19: 0 | X19: 0 | Y19: 0 | Z19: 0 | AJ19: 3.402573133 | BR19: 102.2177235
A20: 16 | B20: =Data!Q138 -> 16.79576788 | D20: 2.821126943 | F20: 0 | G20: 0 | H20: 0 | I20: 0 | J20: 0 | K20: 0 | L20: 0 | M20: 0 | N20: 0 | O20: 0 | P20: 0 | Q20: 0 | R20: 0 | S20: 0 | T20: 0 | U20: 16.79576788 | V20: 0 | W20: 0 | X20: 0 | Y20: 0 | Z20: 0 | AJ20: 2.821126943 | BR20: 47.38299329
A21: 17 | B21: =Data!Q139 -> 15.84093247 | D21: 2.762597253 | F21: 0 | G21: 0 | H21: 0 | I21: 0 | J21: 0 | K21: 0 | L21: 0 | M21: 0 | N21: 0 | O21: 0 | P21: 0 | Q21: 0 | R21: 0 | S21: 0 | T21: 0 | U21: 0 | V21: 15.84093247 | W21: 0 | X21: 0 | Y21: 0 | Z21: 0 | AJ21: 2.762597253 | BR21: 43.76211652
A22: 18 | B22: =Data!Q140 -> 11.45848932 | D22: 2.438730881 | F22: 0 | G22: 0 | H22: 0 | I22: 0 | J22: 0 | K22: 0 | L22: 0 | M22: 0 | N22: 0 | O22: 0 | P22: 0 | Q22: 0 | R22: 0 | S22: 0 | T22: 0 | U22: 0 | V22: 0 | W22: 11.45848932 | X22: 0 | Y22: 0 | Z22: 0 | AJ22: 2.438730881 | BR22: 27.94417175
A23: 19 | B23: =Data!R138 -> 19.67179698 | D23: 2.979185985 | F23: 0 | G23: 0 | H23: 0 | I23: 0 | J23: 0 | K23: 0 | L23: 0 | M23: 0 | N23: 0 | O23: 0 | P23: 0 | Q23: 0 | R23: 0 | S23: 0 | T23: 0 | U23: 0 | V23: 0 | W23: 0 | X23: 19.67179698 | Y23: 0 | Z23: 0 | AJ23: 2.979185985 | BR23: 58.60594186
A24: 20 | B24: =Data!R139 -> 15.1168549 | D24: 2.71581034 | F24: 0 | G24: 0 | H24: 0 | I24: 0 | J24: 0 | K24: 0 | L24: 0 | M24: 0 | N24: 0 | O24: 0 | P24: 0 | Q24: 0 | R24: 0 | S24: 0 | T24: 0 | U24: 0 | V24: 0 | W24: 0 | X24: 0 | Y24: 15.1168549 | Z24: 0 | AJ24: 2.71581034 | BR24: 41.05451084
A25: 21 | B25: =Data!S138 -> 11.32419352 | D25: 2.426941456 | F25: 0 | G25: 0 | H25: 0 | I25: 0 | J25: 0 | K25: 0 | L25: 0 | M25: 0 | N25: 0 | O25: 0 | P25: 0 | Q25: 0 | R25: 0 | S25: 0 | T25: 0 | U25: 0 | V25: 0 | W25: 0 | X25: 0 | Y25: 0 | Z25: 11.32419352 | AJ25: 2.426941456 | BR25: 27.4831547
A27: Newton-Raphson Interation Sequence -- Iteration 2
B28: y(i) | D28: xb(i) | F28: W(i,i) | AB28: XWX | AJ28: zz(i) | AL28: factor | AN28: xwx-1 | AV28: aa1(i,j) | BR28: aa2(j) | BT28: beta(j) | BV28: beta_diff = | BW28: =SUM(BV30:BV40) -> -0.04699397411 | BX28: beta_old = | BY28: =SUM(BT30:BT40) -> 27.4942096
B29: 1 | D29: 1 | F29: 1 | G29: 2 | H29: 3 | I29: 4 | J29: 5 | K29: 6 | L29: 7 | M29: 8 | N29: 9 | O29: 10 | P29: 11 | Q29: 12 | R29: 13 | S29: 14 | T29: 15 | U29: 16 | V29: 17 | W29: 18 | X29: 19 | Y29: 20 | Z29: 21 | AB29: 1 | AC29: 2 | AD29: 3 | AE29: 4 | AF29: 5 | AG29: 6 | AH29: 7 | AJ29: 1 | AN29: 1 | AO29: 2 | AP29: 3 | AQ29: 4 | AR29: 5 | AS29: 6 | AT29: 7 | AV29: 1 | AW29: 2 | AX29: 3 | AY29: 4 | AZ29: 5 | BA29: 6 | BB29: 7 | BC29: 8 | BD29: 9 | BE29: 10 | BF29: 11 | BG29: 12 | BH29: 13 | BI29: 14 | BJ29: 15 | BK29: 16 | BL29: 17 | BM29: 18 | BN29: 19 | BO29: 20 | BP29: 21
A30: 1 | B30: =B5 -> 102.9629594 | D30: =MMULT(DesignMatrix,BT5:BT11) -> 4.776369335 | F30: =IF($A30=F$4,IF($B30<0,-(EXP(-$D30)^(2-$H$1)),IF($B30=0,0,EXP($D30)^(2-$H$1))),0) -> 118.6727061 | G30: 0 | H30: 0 | I30: 0 | J30: 0 | K30: 0 | L30: 0 | M30: 0 | N30: 0 | O30: 0 | P30: =IF($A30=P$4,IF($B30<0,-(EXP(-$D30)^(2-$H$1)),IF($B30=0,0,EXP($D30)^(2-$H$1))),0) -> 0 | Q30: 0 | R30: 0 | S30: 0 | T30: 0 | U30: 0 | V30: 0 | W30: 0 | X30: 0 | Y30: 0 | Z30: 0 | AB30: =MMULT(TRANSPOSE(DesignMatrix),MMULT(F30:Z50,DesignMatrix)) -> 270.4184164 | AC30: 0 | AD30: 0 | AE30: 0 | AF30: 0 | AG30: 0 | AH30: 307.0497094 | AJ30: =IF(B30<0,D30+(B30+EXP(-D30))/-EXP(-D30),IF(B30=0,0,D30+(B30-EXP(D30))/EXP(D30))) -> 4.643990566 | AL30: =OFFSET(AA29,A30,A30) -> 270.4184164 | AN30: =MINVERSE(AB30:AH36) -> 0.004736325644 | AO30: 0.0009359198704 | AP30: 0.0007920624877 | AQ30: 0.0005954618546 | AR30: 0.0003347458413 | AS30: 0 | AT30: -0.0009144762932 | AV30: =MMULT(AN30:AT36,TRANSPOSE(DesignMatrix)) -> 0.004736325644 | AW30: 0.0009359198704 | AX30: 0.0007920624877 | AY30: 0.0005954618546 | AZ30: 0.0003347458413 | BA30: 0 | BB30: 0.00382184935 | BC30: 2.144357725e-05 | BD30: -0.0001224138055 | BE30: -0.0003190144385 | BF30: -0.0005797304518 | BG30: 0.002907373057 | BH30: -0.0008930327159 | BI30: -0.001036890099 | BJ30: -0.001233490732 | BK30: 0.001992896764 | BL30: -0.001807509009 | BM30: -0.001951366392 | BN30: 0.001078420471 | BO30: -0.002721985302 | BP30: 0.0001639441779 | BR30: =MMULT(F30:Z50,AJ30:AJ50) -> 551.1149278 | BT30: =MMULT(AV30:BP36,BR30:BR50) -> 4.785282173 | BV30: =BT30-BY3/$K$1 -> 0.850824519
A31: 2 | B31: =B6 -> 130.7436251 | D31: 4.727207312 | F31: 0 | G31: 112.9796046 | H31: 0 | I31: 0 | J31: 0 | K31: 0 | L31: 0 | M31: 0 | N31: 0 | O31: 0 | P31: 0 | Q31: 0 | R31: 0 | S31: 0 | T31: 0 | U31: 0 | V31: 0 | W31: 0 | X31: 0 | Y31: 0 | Z31: 0 | AB31: 0 | AC31: 250.193804 | AD31: 0 | AE31: 0 | AF31: 0 | AG31: 0 | AH31: 256.0606047 | AJ31: =IF(B31<0,D31+(B31+EXP(-D31))/-EXP(-D31),IF(B31=0,0,D31+(B31-EXP(D31))/EXP(D31))) -> 4.884439413 | AL31: =OFFSET(AA29,A31,A31) -> 250.193804 | AN31: 0.0009359198704 | AO31: 0.00484049355 | AP31: 0.0007139260622 | AQ31: 0.0005367199479 | AR31: 0.0003017233919 | AS31: 0 | AT31: -0.0008242638291 | AV31: 0.0009359198704 | AW31: 0.00484049355 | AX31: 0.0007139260622 | AY31: 0.0005367199479 | AZ31: 0.0003017233919 | BA31: 0 | BB31: 0.0001116560413 | BC31: 0.004016229721 | BD31: -0.0001103377669 | BE31: -0.0002875438813 | BF31: -0.0005225404372 | BG31: -0.0007126077878 | BH31: 0.003191965892 | BI31: -0.000934601596 | BJ31: -0.00111180771 | BK31: -0.001536871617 | BL31: 0.002367702063 | BM31: -0.001758865425 | BN31: -0.002361135446 | BO31: 0.001543438233 | BP31: -0.003185399275 | BR31: 551.8420334 | BT31: 4.737474535 | BV31: =BT31-BY3/$K$1 -> 0.8030168811
A32: 3 | B32: 144.071598 | D32: 4.845326833 | F32: 0 | G32: 0 | H32: 127.1448303 | I32: 0 | J32: 0 | K32: 0 | L32: 0 | M32: 0 | N32: 0 | O32: 0 | P32: 0 | Q32: 0 | R32: 0 | S32: 0 | T32: 0 | U32: 0 | V32: 0 | W32: 0 | X32: 0 | Y32: 0 | Z32: 0 | AB32: 0 | AC32: 0 | AD32: 267.4290832 | AE32: 0 | AF32: 0 | AG32: 0 | AH32: 231.6304386 | AJ32: 4.978456647 | AL32: =OFFSET(AA29,A32,A32) -> 267.4290832 | AN32: 0.0007920624877 | AO32: 0.0007139260622 | AP32: 0.004343499753 | AQ32: 0.0004542223651 | AR32: 0.0002553464115 | AS32: 0 | AT32: -0.0006975687552 | AV32: 0.0007920624877 | AW32: 0.0007139260622 | AX32: 0.004343499753 | AY32: 0.0004542223651 | AZ32: 0.0002553464115 | BA32: 0 | BB32: 9.449373244e-05 | BC32: 1.635730702e-05 | BD32: 0.003645930998 | BE32: -0.0002433463901 | BF32: -0.0004422223437 | BG32: -0.0006030750228 | BH32: -0.0006812114482 | BI32: 0.002948362243 | BJ32: -0.0009409151453 | BK32: -0.001300643778 | BL32: -0.001378780203 | BM32: 0.002250793488 | BN32: -0.001998212533 | BO32: -0.002076348959 | BP32: -0.002695781288 | BR32: 632.9850257 | BT32: 4.801498328 | BV32: =BT32-BY3/$K$1 -> 0.867040674
A33: 4 | B33: 88.97479141 | D33: 4.549010848 | F33: 0 | G33: 0 | H33: 0 | I33: 94.53884876 | J33: 0 | K33: 0 | L33: 0 | M33: 0 | N33: 0 | O33: 0 | P33: 0 | Q33: 0 | R33: 0 | S33: 0 | T33: 0 | U33: 0 | V33: 0 | W33: 0 | X33: 0 | Y33: 0 | Z33: 0 | AB33: 0 | AC33: 0 | AD33: 0 | AE33: 180.6472893 | AF33: 0 | AG33: 0 | AH33: 117.6286042 | AJ33: 4.490156129 | AL33: =OFFSET(AA29,A33,A33) -> 180.6472893 | AN33: 0.0005954618546 | AO33: 0.0005367199479 | AP33: 0.0004542223651 | AQ33: 0.005877127299 | AR33: 0.0001919659751 | AS33: 0 | AT33: -0.0005244227459 | AV33: 0.0005954618546 | AW33: 0.0005367199479 | AX33: 0.0004542223651 | AY33: 0.005877127299 | AZ33: 0.0001919659751 | BA33: 0 | BB33: 7.103910872e-05 | BC33: 1.229720196e-05 | BD33: -7.020038081e-05 | BE33: 0.005352704553 | BF33: -0.0003324567708 | BG33: -0.0004533836372 | BH33: -0.000512125544 | BI33: -0.0005946231267 | BJ33: 0.004828281807 | BK33: -0.0009778063831 | BL33: -0.00103654829 | BM33: -0.001119045873 | BN33: -0.001502229129 | BO33: -0.001560971036 | BP33: -0.002026651875 | BR33: 424.4941912 | BT33: 4.563576919 | BV33: =BT33-BY3/$K$1 -> 0.6291192648
A34: 5 | B34: 88.65825693 | D34: 4.671476343 | F34: 0 | G34: 0 | H34: 0 | I34: 0 | J34: 106.8553812 | K34: 0 | L34: 0 | M34: 0 | N34: 0 | O34: 0 | P34: 0 | Q34: 0 | R34: 0 | S34: 0 | T34: 0 | U34: 0 | V34: 0 | W34: 0 | X34: 0 | Y34: 0 | Z34: 0 | AB34: 0 | AC34: 0 | AD34: 0 | AE34: 0 | AF34: 168.5554254 | AG34: 0 | AH34: 61.70004416 | AJ34: 4.501179591 | AL34: =OFFSET(AA29,A34,A34) -> 168.5554254 | AN34: 0.0003347458413 | AO34: 0.0003017233919 | AP34: 0.0002553464115 | AQ34: 0.0001919659751 | AR34: 0.00604068253 | AS34: 0 | AT34: -0.0002948103761 | AV34: 0.0003347458413 | AW34: 0.0003017233919 | AX34: 0.0002553464115 | AY34: 0.0001919659751 | AZ34: 0.00604068253 | BA34: 0 | BB34: 3.993546527e-05 | BC34: 6.913015811e-06 | BD34: -3.946396457e-05 | BE34: -0.000102844401 | BF34: 0.005745872154 | BG34: -0.0002548749108 | BH34: -0.0002878973603 | BI34: -0.0003342743406 | BJ34: -0.0003976547771 | BK34: -0.0005496852869 | BL34: -0.0005827077363 | BM34: -0.0006290847167 | BN34: -0.0008444956629 | BO34: -0.0008775181124 | BP34: -0.001139306039 | BR34: 480.9752611 | BT34: 4.661793507 | BV34: =BT34-BY3/$K$1 -> 0.7273358533
A35: 6 | B35: 91.92790268 | D35: 4.521004603 | F35: 0 | G35: 0 | H35: 0 | I35: 0 | J35: 0 | K35: 91.92790268 | L35: 0 | M35: 0 | N35: 0 | O35: 0 | P35: 0 | Q35: 0 | R35: 0 | S35: 0 | T35: 0 | U35: 0 | V35: 0 | W35: 0 | X35: 0 | Y35: 0 | Z35: 0 | AB35: 0 | AC35: 0 | AD35: 0 | AE35: 0 | AF35: 0 | AG35: 91.92790268 | AH35: 0 | AJ35: 4.521004603 | AL35: =OFFSET(AA29,A35,A35) -> 91.92790268 | AN35: 0 | AO35: 0 | AP35: 0 | AQ35: 0 | AR35: 0 | AS35: 0.01087809001 | AT35: 0 | AV35: 0 | AW35: 0 | AX35: 0 | AY35: 0 | AZ35: 0 | BA35: 0.01087809001 | BB35: 0 | BC35: 0 | BD35: 0 | BE35: 0 | BF35: 0 | BG35: 0 | BH35: 0 | BI35: 0 | BJ35: 0 | BK35: 0 | BL35: 0 | BM35: 0 | BN35: 0 | BO35: 0 | BP35: 0 | BR35: 415.6064712 | BT35: 4.521004603 | BV35: =BT35-BY3/$K$1 -> 0.5865469493
A36: 7 | B36: 62.57368307 | D36: 4.227177639 | F36: 0 | G36: 0 | H36: 0 | I36: 0 | J36: 0 | K36: 0 | L36: 68.5235608 | M36: 0 | N36: 0 | O36: 0 | P36: 0 | Q36: 0 | R36: 0 | S36: 0 | T36: 0 | U36: 0 | V36: 0 | W36: 0 | X36: 0 | Y36: 0 | Z36: 0 | AB36: 307.0497094 | AC36: 256.0606047 | AD36: 231.6304386 | AE36: 117.6286042 | AF36: 61.70004416 | AG36: 0 | AH36: 2152.16359 | AJ36: 4.140347976 | AL36: =OFFSET(AA29,A36,A36) -> 2152.16359 | AN36: -0.0009144762932 | AO36: -0.0008242638291 | AP36: -0.0006975687552 | AQ36: -0.0005244227459 | AR36: -0.0002948103761 | AS36: 0 | AT36: 0.000805378489 | AV36: -0.0009144762932 | AW36: -0.0008242638291 | AX36: -0.0006975687552 | AY36: -0.0005244227459 | AZ36: -0.0002948103761 | BA36: 0 | BB36: -0.0001090978042 | BC36: -1.888534014e-05 | BD36: 0.0001078097338 | BE36: 0.0002809557431 | BF36: 0.0005105681129 | BG36: 0.0006962806848 | BH36: 0.0007864931488 | BI36: 0.0009131882228 | BJ36: 0.001086334232 | BK36: 0.001501659174 | BL36: 0.001591871638 | BM36: 0.001718566712 | BN36: 0.002307037663 | BO36: 0.002397250127 | BP36: 0.003112416152 | BR36: 283.7113862 | BT36: -0.5764204616 | BV36: =BT36-BY3/$K$1 -> -4.510878116
A37: 8 | B37: 55.34390049 | D37: 4.178015616 | F37: 0 | G37: 0 | H37: 0 | I37: 0 | J37: 0 | K37: 0 | L37: 0 | M37: 65.23627087 | N37: 0 | O37: 0 | P37: 0 | Q37: 0 | R37: 0 | S37: 0 | T37: 0 | U37: 0 | V37: 0 | W37: 0 | X37: 0 | Y37: 0 | Z37: 0 | AJ37: 4.026376501 | BR37: 262.665788
A38: 9 | B38: 79.4190599 | D38: 4.296135137 | F38: 0 | G38: 0 | H38: 0 | I38: 0 | J38: 0 | K38: 0 | L38: 0 | M38: 0 | N38: 73.41550382 | O38: 0 | P38: 0 | Q38: 0 | R38: 0 | S38: 0 | T38: 0 | U38: 0 | V38: 0 | W38: 0 | X38: 0 | Y38: 0 | Z38: 0 | AJ38: 4.377910181 | BR38: 321.4064816
A39: 10 | B39: 61.05963651 | D39: 3.999819152 | F39: 0 | G39: 0 | H39: 0 | I39: 0 | J39: 0 | K39: 0 | L39: 0 | M39: 0 | N39: 0 | O39: 54.58827696 | P39: 0 | Q39: 0 | R39: 0 | S39: 0 | T39: 0 | U39: 0 | V39: 0 | W39: 0 | X39: 0 | Y39: 0 | Z39: 0 | AJ39: 4.118367674 | BR39: 224.8145952
A40: 11 | B40: 76.58505796 | D40: 4.122284647 | F40: =IF($A40=F$4,IF($B40<0,-(EXP(-$D40)^(2-$H$1)),IF($B40=0,0,EXP($D40)^(2-$H$1))),0) -> 0 | G40: 0 | H40: 0 | I40: 0 | J40: 0 | K40: 0 | L40: 0 | M40: 0 | N40: 0 | O40: 0 | P40: =IF($A40=P$4,IF($B40<0,-(EXP(-$D40)^(2-$H$1)),IF($B40=0,0,EXP($D40)^(2-$H$1))),0) -> 61.70004416 | Q40: 0 | R40: 0 | S40: 0 | T40: 0 | U40: 0 | V40: 0 | W40: 0 | X40: 0 | Y40: 0 | Z40: 0 | AJ40: 4.363532672 | BR40: 269.2301585
A41: 12 | B41: 51.13962648 | D41: 3.677985943 | F41: 0 | G41: 0 | H41: 0 | I41: 0 | J41: 0 | K41: 0 | L41: 0 | M41: 0 | N41: 0 | O41: 0 | P41: 0 | Q41: 39.56662435 | R41: 0 | S41: 0 | T41: 0 | U41: 0 | V41: 0 | W41: 0 | X41: 0 | Y41: 0 | Z41: 0 | AJ41: 3.970479992 | BR41: 157.0984903
A42: 13 | B42: 28.74507246 | D42: 3.62882392 | F42: 0 | G42: 0 | H42: 0 | I42: 0 | J42: 0 | K42: 0 | L42: 0 | M42: 0 | N42: 0 | O42: 0 | P42: 0 | Q42: 0 | R42: 37.6684894 | S42: 0 | T42: 0 | U42: 0 | V42: 0 | W42: 0 | X42: 0 | Y42: 0 | Z42: 0 | AJ42: 3.391930509 | BR42: 127.7688984
A43: 14 | B43: 14.45190814 | D43: 3.746943441 | F43: 0 | G43: 0 | H43: 0 | I43: 0 | J43: 0 | K43: 0 | L43: 0 | M43: 0 | N43: 0 | O43: 0 | P43: 0 | Q43: 0 | R43: 0 | S43: 42.39131223 | T43: 0 | U43: 0 | V43: 0 | W43: 0 | X43: 0 | Y43: 0 | Z43: 0 | AJ43: 3.087860185 | BR43: 130.8984452
A44: 15 | B44: 30.04130094 | D44: 3.450627456 | F44: 0 | G44: 0 | H44: 0 | I44: 0 | J44: 0 | K44: 0 | L44: 0 | M44: 0 | N44: 0 | O44: 0 | P44: 0 | Q44: 0 | R44: 0 | S44: 0 | T44: 31.52016362 | U44: 0 | V44: 0 | W44: 0 | X44: 0 | Y44: 0 | Z44: 0 | AJ44: 3.403709467 | BR44: 107.2854793
A45: 16 | B45: 16.79576788 | D45: 3.128794247 | F45: 0 | G45: 0 | H45: 0 | I45: 0 | J45: 0 | K45: 0 | L45: 0 | M45: 0 | N45: 0 | O45: 0 | P45: 0 | Q45: 0 | R45: 0 | S45: 0 | T45: 0 | U45: 22.8464158 | V45: 0 | W45: 0 | X45: 0 | Y45: 0 | Z45: 0 | AJ45: 2.863954109 | BR45: 65.43108642
A46: 17 | B46: 15.84093247 | D46: 3.079632224 | F46: 0 | G46: 0 | H46: 0 | I46: 0 | J46: 0 | K46: 0 | L46: 0 | M46: 0 | N46: 0 | O46: 0 | P46: 0 | Q46: 0 | R46: 0 | S46: 0 | T46: 0 | U46: 0 | V46: 21.75040165 | W46: 0 | X46: 0 | Y46: 0 | Z46: 0 | AJ46: 2.807937509 | BR46: 61.07376863
A47: 18 | B47: 11.45848932 | D47: 3.197751745 | F47: 0 | G47: 0 | H47: 0 | I47: 0 | J47: 0 | K47: 0 | L47: 0 | M47: 0 | N47: 0 | O47: 0 | P47: 0 | Q47: 0 | R47: 0 | S47: 0 | T47: 0 | U47: 0 | V47: 0 | W47: 24.47743677 | X47: 0 | Y47: 0 | Z47: 0 | AJ47: 2.665876305 | BR47: 65.2538187
A48: 19 | B48: 19.67179698 | D48: 2.579602551 | F48: 0 | G48: 0 | H48: 0 | I48: 0 | J48: 0 | K48: 0 | L48: 0 | M48: 0 | N48: 0 | O48: 0 | P48: 0 | Q48: 0 | R48: 0 | S48: 0 | T48: 0 | U48: 0 | V48: 0 | W48: 0 | X48: 13.19189402 | Y48: 0 | Z48: 0 | AJ48: 3.070805934 | BR48: 40.50974643
A49: 20 | B49: 15.1168549 | D49: 2.530440528 | F49: 0 | G49: 0 | H49: 0 | I49: 0 | J49: 0 | K49: 0 | L49: 0 | M49: 0 | N49: 0 | O49: 0 | P49: 0 | Q49: 0 | R49: 0 | S49: 0 | T49: 0 | U49: 0 | V49: 0 | W49: 0 | X49: 0 | Y49: 12.55903753 | Z49: 0 | AJ49: 2.734104015 | BR49: 34.33771492
A50: 21 | B50: 11.32419352 | D50: 2.030410856 | F50: 0 | G50: 0 | H50: 0 | I50: 0 | J50: 0 | K50: 0 | L50: 0 | M50: 0 | N50: 0 | O50: 0 | P50: 0 | Q50: 0 | R50: 0 | S50: 0 | T50: 0 | U50: 0 | V50: 0 | W50: 0 | X50: 0 | Y50: 0 | Z50: 7.617215291 | AJ50: 2.517068785 | BR50: 19.17305484
A52: Newton-Raphson Interation Sequence -- Iteration 3
B53: y(i) | D53: xb(i) | F53: W(i,i) | AB53: XWX | AJ53: zz(i) | AL53: factor | AN53: xwx-1 | AV53: aa1(i,j) | BR53: aa2(j) | BT53: beta(j) | BV53: beta_diff = | BW53: =SUM(BV55:BV65) -> -0.001099994978 | BX53: beta_old = | BY53: =SUM(BT55:BT65) -> 27.49310961
B54: 1 | D54: 1 | F54: 1 | G54: 2 | H54: 3 | I54: 4 | J54: 5 | K54: 6 | L54: 7 | M54: 8 | N54: 9 | O54: 10 | P54: 11 | Q54: 12 | R54: 13 | S54: 14 | T54: 15 | U54: 16 | V54: 17 | W54: 18 | X54: 19 | Y54: 20 | Z54: 21 | AB54: 1 | AC54: 2 | AD54: 3 | AE54: 4 | AF54: 5 | AG54: 6 | AH54: 7 | AJ54: 1 | AN54: 1 | AO54: 2 | AP54: 3 | AQ54: 4 | AR54: 5 | AS54: 6 | AT54: 7 | AV54: 1 | AW54: 2 | AX54: 3 | AY54: 4 | AZ54: 5 | BA54: 6 | BB54: 7 | BC54: 8 | BD54: 9 | BE54: 10 | BF54: 11 | BG54: 12 | BH54: 13 | BI54: 14 | BJ54: 15 | BK54: 16 | BL54: 17 | BM54: 18 | BN54: 19 | BO54: 20 | BP54: 21
A55: 1 | B55: =B30 -> 102.9629594 | D55: =MMULT(DesignMatrix,BT30:BT36) -> 4.785282173 | F55: =IF($A55=F$4,IF($B55<0,-(EXP(-$D55)^(2-$H$1)),IF($B55=0,0,EXP($D55)^(2-$H$1))),0) -> 119.7351443 | G55: 0 | H55: 0 | I55: 0 | J55: 0 | K55: 0 | L55: 0 | M55: 0 | N55: 0 | O55: 0 | P55: =IF($A55=P$4,IF($B55<0,-(EXP(-$D55)^(2-$H$1)),IF($B55=0,0,EXP($D55)^(2-$H$1))),0) -> 0 | Q55: 0 | R55: 0 | S55: 0 | T55: 0 | U55: 0 | V55: 0 | W55: 0 | X55: 0 | Y55: 0 | Z55: 0 | AB55: =MMULT(TRANSPOSE(DesignMatrix),MMULT(F55:Z75,DesignMatrix)) -> 264.7065923 | AC55: 0 | AD55: 0 | AE55: 0 | AF55: 0 | AG55: 0 | AH55: 287.9003937 | AJ55: =IF(B55<0,D55+(B55+EXP(-D55))/-EXP(-D55),IF(B55=0,0,D55+(B55-EXP(D55))/EXP(D55))) -> 4.645204796 | AL55: =OFFSET(AA54,A55,A55) -> 264.7065923 | AN55: =MINVERSE(AB55:AH61) -> 0.00478950797 | AO55: 0.0009171265621 | AP55: 0.0007811142538 | AQ55: 0.0005912321692 | AR55: 0.000334657376 | AS55: 0 | AT55: -0.0009302326061 | AV55: =MMULT(AN55:AT61,TRANSPOSE(DesignMatrix)) -> 0.00478950797 | AW55: 0.0009171265621 | AX55: 0.0007811142538 | AY55: 0.0005912321692 | AZ55: 0.000334657376 | BA55: 0 | BB55: 0.003859275364 | BC55: -1.3106044e-05 | BD55: -0.0001491183523 | BE55: -0.0003390004369 | BF55: -0.0005955752301 | BG55: 0.002929042758 | BH55: -0.0009433386501 | BI55: -0.001079350958 | BJ55: -0.001269233043 | BK55: 0.001998810152 | BL55: -0.001873571256 | BM55: -0.002009583564 | BN55: 0.001068577546 | BO55: -0.002803803862 | BP55: 0.0001383449395 | BR55: =MMULT(F55:Z75,AJ55:AJ75) -> 556.1942667 | BT55: =MMULT(AV55:BP61,BR55:BR75) -> 4.785767459 | BV55: =BT55-BY28/$K$1 -> 0.8580232296
A56: 2 | B56: =B31 -> 130.7436251 | D56: 4.737474535 | F56: 0 | G56: 114.1455667 | H56: 0 | I56: 0 | J56: 0 | K56: 0 | L56: 0 | M56: 0 | N56: 0 | O56: 0 | P56: 0 | Q56: 0 | R56: 0 | S56: 0 | T56: 0 | U56: 0 | V56: 0 | W56: 0 | X56: 0 | Y56: 0 | Z56: 0 | AB56: 0 | AC56: 245.9552567 | AD56: 0 | AE56: 0 | AF56: 0 | AG56: 0 | AH56: 242.4899939 | AJ56: =IF(B56<0,D56+(B56+EXP(-D56))/-EXP(-D56),IF(B56=0,0,D56+(B56-EXP(D56))/EXP(D56))) -> 4.882885863 | AL56: =OFFSET(AA54,A56,A56) -> 245.9552567 | AN56: 0.0009171265621 | AO56: 0.004897140835 | AP56: 0.000708067686 | AQ56: 0.000535942587 | AR56: 0.0003033616051 | AS56: 0 | AT56: -0.000843241108 | AV56: 0.0009171265621 | AW56: 0.004897140835 | AX56: 0.000708067686 | AY56: 0.000535942587 | AZ56: 0.0003033616051 | BA56: 0 | BB56: 7.388545407e-05 | BC56: 0.004053899727 | BD56: -0.000135173422 | BE56: -0.000307298521 | BF56: -0.0005398795029 | BG56: -0.000769355654 | BH56: 0.003210658619 | BI56: -0.00097841453 | BJ56: -0.001150539629 | BK56: -0.001612596762 | BL56: 0.002367417511 | BM56: -0.001821655638 | BN56: -0.00245583787 | BO56: 0.001524176403 | BP56: -0.003299078978 | BR56: 557.3597741 | BT56: 4.738061071 | BV56: =BT56-BY28/$K$1 -> 0.8103168422
A57: 3 | B57: 144.071598 | D57: 4.801498328 | F57: 0 | G57: 0 | H57: 121.6926164 | I57: 0 | J57: 0 | K57: 0 | L57: 0 | M57: 0 | N57: 0 | O57: 0 | P57: 0 | Q57: 0 | R57: 0 | S57: 0 | T57: 0 | U57: 0 | V57: 0 | W57: 0 | X57: 0 | Y57: 0 | Z57: 0 | AB57: 0 | AC57: 0 | AD57: 250.0856337 | AE57: 0 | AF57: 0 | AG57: 0 | AH57: 209.9963513 | AJ57: 4.98539594 | AL57: =OFFSET(AA54,A57,A57) -> 250.0856337 | AN57: 0.0007811142538 | AO57: 0.000708067686 | AP57: 0.004601689695 | AQ57: 0.000456460876 | AR57: 0.0002583722723 | AS57: 0 | AT57: -0.0007181862091 | AV57: 0.0007811142538 | AW57: 0.000708067686 | AX57: 0.004601689695 | AY57: 0.000456460876 | AZ57: 0.0002583722723 | BA57: 0 | BB57: 6.292804473e-05 | BC57: -1.011852304e-05 | BD57: 0.003883503486 | BE57: -0.0002617253331 | BF57: -0.0004598139368 | BG57: -0.0006552581643 | BH57: -0.0007283047321 | BI57: 0.003165317277 | BJ57: -0.0009799115421 | BK57: -0.001373444373 | BL57: -0.001446490941 | BM57: 0.002447131068 | BN57: -0.002091630582 | BO57: -0.00216467715 | BP57: -0.002809816791 | BR57: 606.6858759 | BT57: 4.799831422 | BV57: =BT57-BY28/$K$1 -> 0.8720871929
A58: 4 | B58: 88.97479141 | D58: 4.563576919 | F58: 0 | G58: 0 | H58: 0 | I58: 95.92598638 | J58: 0 | K58: 0 | L58: 0 | M58: 0 | N58: 0 | O58: 0 | P58: 0 | Q58: 0 | R58: 0 | S58: 0 | T58: 0 | U58: 0 | V58: 0 | W58: 0 | X58: 0 | Y58: 0 | Z58: 0 | AB58: 0 | AC58: 0 | AD58: 0 | AE58: 180.1149142 | AF58: 0 | AG58: 0 | AH58: 114.4764554 | AJ58: 4.49111277 | AL58: =OFFSET(AA54,A58,A58) -> 180.1149142 | AN58: 0.0005912321692 | AO58: 0.000535942587 | AP58: 0.000456460876 | AQ58: 0.005897510288 | AR58: 0.000195564219 | AS58: 0 | AT58: -0.0005436013851 | AV58: 0.0005912321692 | AW58: 0.000535942587 | AX58: 0.000456460876 | AY58: 0.005897510288 | AZ58: 0.000195564219 | BA58: 0 | BB58: 4.763078411e-05 | BC58: -7.658798053e-06 | BD58: -8.714050908e-05 | BE58: 0.005353908903 | BF58: -0.0003480371661 | BG58: -0.000495970601 | BH58: -0.0005512601831 | BI58: -0.0006307418941 | BJ58: 0.004810307518 | BK58: -0.001039571986 | BL58: -0.001094861568 | BM58: -0.001174343279 | BN58: -0.001583173371 | BO58: -0.001638462953 | BP58: -0.002126774756 | BR58: 430.8144224 | BT58: 4.564169609 | BV58: =BT58-BY28/$K$1 -> 0.6364253801
A59: 5 | B59: 88.65825693 | D59: 4.661793507 | F59: 0 | G59: 0 | H59: 0 | I59: 0 | J59: 105.8257112 | K59: 0 | L59: 0 | M59: 0 | N59: 0 | O59: 0 | P59: 0 | Q59: 0 | R59: 0 | S59: 0 | T59: 0 | U59: 0 | V59: 0 | W59: 0 | X59: 0 | Y59: 0 | Z59: 0 | AB59: 0 | AC59: 0 | AD59: 0 | AE59: 0 | AF59: 165.2898277 | AG59: 0 | AH59: 59.46411645 | AJ59: 4.499569657 | AL59: =OFFSET(AA54,A59,A59) -> 165.2898277 | AN59: 0.000334657376 | AO59: 0.0003033616051 | AP59: 0.0002583722723 | AQ59: 0.000195564219 | AR59: 0.006160675035 | AS59: 0 | AT59: -0.0003076967435 | AV59: 0.000334657376 | AW59: 0.0003033616051 | AX59: 0.0002583722723 | AY59: 0.000195564219 | AZ59: 0.006160675035 | BA59: 0 | BB59: 2.696063248e-05 | BC59: -4.335138366e-06 | BD59: -4.932447121e-05 | BE59: -0.0001121325245 | BF59: 0.005852978292 | BG59: -0.000280736111 | BH59: -0.0003120318819 | BI59: -0.0003570212147 | BJ59: -0.000419829268 | BK59: -0.0005884328545 | BL59: -0.0006197286254 | BM59: -0.0006647179582 | BN59: -0.000896129598 | BO59: -0.0009274253689 | BP59: -0.001203826342 | BR59: 476.1701593 | BT59: 4.661970734 | BV59: =BT59-BY28/$K$1 -> 0.7342265044
A60: 6 | B60: 91.92790268 | D60: 4.521004603 | F60: 0 | G60: 0 | H60: 0 | I60: 0 | J60: 0 | K60: 91.92790268 | L60: 0 | M60: 0 | N60: 0 | O60: 0 | P60: 0 | Q60: 0 | R60: 0 | S60: 0 | T60: 0 | U60: 0 | V60: 0 | W60: 0 | X60: 0 | Y60: 0 | Z60: 0 | AB60: 0 | AC60: 0 | AD60: 0 | AE60: 0 | AF60: 0 | AG60: 91.92790268 | AH60: 0 | AJ60: 4.521004603 | AL60: =OFFSET(AA54,A60,A60) -> 91.92790268 | AN60: 0 | AO60: 0 | AP60: 0 | AQ60: 0 | AR60: 0 | AS60: 0.01087809001 | AT60: 0 | AV60: 0 | AW60: 0 | AX60: 0 | AY60: 0 | AZ60: 0 | BA60: 0.01087809001 | BB60: 0 | BC60: 0 | BD60: 0 | BE60: 0 | BF60: 0 | BG60: 0 | BH60: 0 | BI60: 0 | BJ60: 0 | BK60: 0 | BL60: 0 | BM60: 0 | BN60: 0 | BO60: 0 | BP60: 0 | BR60: 415.6064712 | BT60: 4.521004603 | BV60: =BT60-BY28/$K$1 -> 0.5932603742
A61: 7 | B61: 62.57368307 | D61: 4.208861711 | F61: 0 | G61: 0 | H61: 0 | I61: 0 | J61: 0 | K61: 0 | L61: 67.27991225 | M61: 0 | N61: 0 | O61: 0 | P61: 0 | Q61: 0 | R61: 0 | S61: 0 | T61: 0 | U61: 0 | V61: 0 | W61: 0 | X61: 0 | Y61: 0 | Z61: 0 | AB61: 287.9003937 | AC61: 242.4899939 | AD61: 209.9963513 | AE61: 114.4764554 | AF61: 59.46411645 | AG61: 0 | AH61: 1991.876702 | AJ61: 4.138911721 | AL61: =OFFSET(AA54,A61,A61) -> 1991.876702 | AN61: -0.0009302326061 | AO61: -0.000843241108 | AP61: -0.0007181862091 | AQ61: -0.0005436013851 | AR61: -0.0003076967435 | AS61: 0 | AT61: 0.0008552913043 | AV61: -0.0009302326061 | AW61: -0.000843241108 | AX61: -0.0007181862091 | AY61: -0.0005436013851 | AZ61: -0.0003076967435 | BA61: 0 | BB61: -7.494130181e-05 | BC61: 1.205019626e-05 | BD61: 0.0001371050952 | BE61: 0.0003116899192 | BF61: 0.0005475945608 | BG61: 0.0007803500025 | BH61: 0.0008673415005 | BI61: 0.0009923963995 | BJ61: 0.001166981223 | BK61: 0.001635641307 | BL61: 0.001722632805 | BM61: 0.001847687704 | BN61: 0.002490932611 | BO61: 0.002577924109 | BP61: 0.003346223915 | BR61: 278.4656174 | BT61: -0.5776952892 | BV61: =BT61-BY28/$K$1 -> -4.505439518
A62: 8 | B62: 55.34390049 | D62: 4.161054073 | F62: 0 | G62: 0 | H62: 0 | I62: 0 | J62: 0 | K62: 0 | L62: 0 | M62: 64.1390943 | N62: 0 | O62: 0 | P62: 0 | Q62: 0 | R62: 0 | S62: 0 | T62: 0 | U62: 0 | V62: 0 | W62: 0 | X62: 0 | Y62: 0 | Z62: 0 | AJ62: 4.023927195 | BR62: 258.0910458
A63: 9 | B63: 79.4190599 | D63: 4.225077866 | F63: 0 | G63: 0 | H63: 0 | I63: 0 | J63: 0 | K63: 0 | L63: 0 | M63: 0 | N63: 68.37982783 | O63: 0 | P63: 0 | Q63: 0 | R63: 0 | S63: 0 | T63: 0 | U63: 0 | V63: 0 | W63: 0 | X63: 0 | Y63: 0 | Z63: 0 | AJ63: 4.386517759 | BR63: 299.9493292
A64: 10 | B64: 61.05963651 | D64: 3.987156457 | F64: 0 | G64: 0 | H64: 0 | I64: 0 | J64: 0 | K64: 0 | L64: 0 | M64: 0 | N64: 0 | O64: 53.9014003 | P64: 0 | Q64: 0 | R64: 0 | S64: 0 | T64: 0 | U64: 0 | V64: 0 | W64: 0 | X64: 0 | Y64: 0 | Z64: 0 | AJ64: 4.119958874 | BR64: 222.0715525
A65: 11 | B65: 76.58505796 | D65: 4.085373046 | F65: =IF($A65=F$4,IF($B65<0,-(EXP(-$D65)^(2-$H$1)),IF($B65=0,0,EXP($D65)^(2-$H$1))),0) -> 0 | G65: 0 | H65: 0 | I65: 0 | J65: 0 | K65: 0 | L65: 0 | M65: 0 | N65: 0 | O65: 0 | P65: =IF($A65=P$4,IF($B65<0,-(EXP(-$D65)^(2-$H$1)),IF($B65=0,0,EXP($D65)^(2-$H$1))),0) -> 59.46411645 | Q65: 0 | R65: 0 | S65: 0 | T65: 0 | U65: 0 | V65: 0 | W65: 0 | X65: 0 | Y65: 0 | Z65: 0 | AJ65: 4.373293602 | BR65: 260.05404
A66: 12 | B66: 51.13962648 | D66: 3.63244125 | F66: 0 | G66: 0 | H66: 0 | I66: 0 | J66: 0 | K66: 0 | L66: 0 | M66: 0 | N66: 0 | O66: 0 | P66: 0 | Q66: 37.80499549 | R66: 0 | S66: 0 | T66: 0 | U66: 0 | V66: 0 | W66: 0 | X66: 0 | Y66: 0 | Z66: 0 | AJ66: 3.985162651 | BR66: 150.6590561
A67: 13 | B67: 28.74507246 | D67: 3.584633612 | F67: 0 | G67: 0 | H67: 0 | I67: 0 | J67: 0 | K67: 0 | L67: 0 | M67: 0 | N67: 0 | O67: 0 | P67: 0 | Q67: 0 | R67: 36.04015062 | S67: 0 | T67: 0 | U67: 0 | V67: 0 | W67: 0 | X67: 0 | Y67: 0 | Z67: 0 | AJ67: 3.382218305 | BR67: 121.8956571
A68: 14 | B68: 14.45190814 | D68: 3.648657405 | F68: 0 | G68: 0 | H68: 0 | I68: 0 | J68: 0 | K68: 0 | L68: 0 | M68: 0 | N68: 0 | O68: 0 | P68: 0 | Q68: 0 | R68: 0 | S68: 38.42304481 | T68: 0 | U68: 0 | V68: 0 | W68: 0 | X68: 0 | Y68: 0 | Z68: 0 | AJ68: 3.024783456 | BR68: 116.2213903
A69: 15 | B69: 30.04130094 | D69: 3.410735996 | F69: 0 | G69: 0 | H69: 0 | I69: 0 | J69: 0 | K69: 0 | L69: 0 | M69: 0 | N69: 0 | O69: 0 | P69: 0 | Q69: 0 | R69: 0 | S69: 0 | T69: 30.28752755 | U69: 0 | V69: 0 | W69: 0 | X69: 0 | Y69: 0 | Z69: 0 | AJ69: 3.402606359 | BR69: 103.0565338
A70: 16 | B70: 16.79576788 | D70: 3.056020788 | F70: 0 | G70: 0 | H70: 0 | I70: 0 | J70: 0 | K70: 0 | L70: 0 | M70: 0 | N70: 0 | O70: 0 | P70: 0 | Q70: 0 | R70: 0 | S70: 0 | T70: 0 | U70: 21.24285892 | V70: 0 | W70: 0 | X70: 0 | Y70: 0 | Z70: 0 | AJ70: 2.846675565 | BR70: 60.47152742
A71: 17 | B71: 15.84093247 | D71: 3.00821315 | F71: 0 | G71: 0 | H71: 0 | I71: 0 | J71: 0 | K71: 0 | L71: 0 | M71: 0 | N71: 0 | O71: 0 | P71: 0 | Q71: 0 | R71: 0 | S71: 0 | T71: 0 | U71: 0 | V71: 20.25118176 | W71: 0 | X71: 0 | Y71: 0 | Z71: 0 | AJ71: 2.790435771 | BR71: 56.50962198
A72: 18 | B72: 11.45848932 | D72: 3.072236943 | F72: 0 | G72: 0 | H72: 0 | I72: 0 | J72: 0 | K72: 0 | L72: 0 | M72: 0 | N72: 0 | O72: 0 | P72: 0 | Q72: 0 | R72: 0 | S72: 0 | T72: 0 | U72: 0 | V72: 0 | W72: 21.59014462 | X72: 0 | Y72: 0 | Z72: 0 | AJ72: 2.602964714 | BR72: 56.19838462
A73: 19 | B73: 19.67179698 | D73: 2.479600327 | F73: 0 | G73: 0 | H73: 0 | I73: 0 | J73: 0 | K73: 0 | L73: 0 | M73: 0 | N73: 0 | O73: 0 | P73: 0 | Q73: 0 | R73: 0 | S73: 0 | T73: 0 | U73: 0 | V73: 0 | W73: 0 | X73: 11.93649276 | Y73: 0 | Z73: 0 | AJ73: 3.127638605 | BR73: 37.33303557
A74: 20 | B74: 15.1168549 | D74: 2.431792689 | F74: 0 | G74: 0 | H74: 0 | I74: 0 | J74: 0 | K74: 0 | L74: 0 | M74: 0 | N74: 0 | O74: 0 | P74: 0 | Q74: 0 | R74: 0 | S74: 0 | T74: 0 | U74: 0 | V74: 0 | W74: 0 | X74: 0 | Y74: 11.37926328 | Z74: 0 | AJ74: 2.760249068 | BR74: 31.40960087
A75: 21 | B75: 11.32419352 | D75: 1.903179865 | F75: 0 | G75: 0 | H75: 0 | I75: 0 | J75: 0 | K75: 0 | L75: 0 | M75: 0 | N75: 0 | O75: 0 | P75: 0 | Q75: 0 | R75: 0 | S75: 0 | T75: 0 | U75: 0 | V75: 0 | W75: 0 | X75: 0 | Y75: 0 | Z75: 6.707188521 | AJ75: 2.59154653 | BR75: 17.38199114
A77: Newton-Raphson Interation Sequence -- Iteration 4
B78: y(i) | D78: xb(i) | F78: W(i,i) | AB78: XWX | AJ78: zz(i) | AL78: factor | AN78: xwx-1 | AV78: aa1(i,j) | BR78: aa2(j) | BT78: beta(j) | BV78: beta_diff = | BW78: =SUM(BV80:BV90) -> -1.352128475e-06 | BX78: beta_old = | BY78: =SUM(BT80:BT90) -> 27.49310826
B79: 1 | D79: 1 | F79: 1 | G79: 2 | H79: 3 | I79: 4 | J79: 5 | K79: 6 | L79: 7 | M79: 8 | N79: 9 | O79: 10 | P79: 11 | Q79: 12 | R79: 13 | S79: 14 | T79: 15 | U79: 16 | V79: 17 | W79: 18 | X79: 19 | Y79: 20 | Z79: 21 | AB79: 1 | AC79: 2 | AD79: 3 | AE79: 4 | AF79: 5 | AG79: 6 | AH79: 7 | AJ79: 1 | AN79: 1 | AO79: 2 | AP79: 3 | AQ79: 4 | AR79: 5 | AS79: 6 | AT79: 7 | AV79: 1 | AW79: 2 | AX79: 3 | AY79: 4 | AZ79: 5 | BA79: 6 | BB79: 7 | BC79: 8 | BD79: 9 | BE79: 10 | BF79: 11 | BG79: 12 | BH79: 13 | BI79: 14 | BJ79: 15 | BK79: 16 | BL79: 17 | BM79: 18 | BN79: 19 | BO79: 20 | BP79: 21
A80: 1 | B80: =B55 -> 102.9629594 | D80: =MMULT(DesignMatrix,BT55:BT61) -> 4.785767459 | F80: =IF($A80=F$4,IF($B80<0,-(EXP(-$D80)^(2-$H$1)),IF($B80=0,0,EXP($D80)^(2-$H$1))),0) -> 119.7932642 | G80: 0 | H80: 0 | I80: 0 | J80: 0 | K80: 0 | L80: 0 | M80: 0 | N80: 0 | O80: 0 | P80: =IF($A80=P$4,IF($B80<0,-(EXP(-$D80)^(2-$H$1)),IF($B80=0,0,EXP($D80)^(2-$H$1))),0) -> 0 | Q80: 0 | R80: 0 | S80: 0 | T80: 0 | U80: 0 | V80: 0 | W80: 0 | X80: 0 | Y80: 0 | Z80: 0 | AB80: =MMULT(TRANSPOSE(DesignMatrix),MMULT(F80:Z100,DesignMatrix)) -> 264.4685041 | AC80: 0 | AD80: 0 | AE80: 0 | AF80: 0 | AG80: 0 | AH80: 287.0622195 | AJ80: =IF(B80<0,D80+(B80+EXP(-D80))/-EXP(-D80),IF(B80=0,0,D80+(B80-EXP(D80))/EXP(D80))) -> 4.645272874 | AL80: =OFFSET(AA79,A80,A80) -> 264.4685041 | AN80: =MINVERSE(AB80:AH86) -> 0.004791516742 | AO80: 0.0009161045489 | AP80: 0.0007804749648 | AQ80: 0.0005909362484 | AR80: 0.0003345979408 | AS80: 0 | AT80: -0.0009308270017 | AV80: =MMULT(AN80:AT86,TRANSPOSE(DesignMatrix)) -> 0.004791516742 | AW80: 0.0009161045489 | AX80: 0.0007804749648 | AY80: 0.0005909362484 | AZ80: 0.0003345979408 | BA80: 0 | BB80: 0.003860689741 | BC80: -1.47224528e-05 | BD80: -0.0001503520369 | BE80: -0.0003398907532 | BF80: -0.0005962290609 | BG80: 0.002929862739 | BH80: -0.0009455494545 | BI80: -0.001081179039 | BJ80: -0.001270717755 | BK80: 0.001999035737 | BL80: -0.001876376456 | BM80: -0.00201200604 | BN80: 0.001068208736 | BO80: -0.002807203458 | BP80: 0.000137381734 | BR80: =MMULT(F80:Z100,AJ80:AJ100) -> 556.4724008 | BT80: =MMULT(AV80:BP86,BR80:BR100) -> 4.785768282 | BV80: =BT80-BY53/$K$1 -> 0.8581811949
A81: 2 | B81: =B56 -> 130.7436251 | D81: 4.738061071 | F81: 0 | G81: 114.2125369 | H81: 0 | I81: 0 | J81: 0 | K81: 0 | L81: 0 | M81: 0 | N81: 0 | O81: 0 | P81: 0 | Q81: 0 | R81: 0 | S81: 0 | T81: 0 | U81: 0 | V81: 0 | W81: 0 | X81: 0 | Y81: 0 | Z81: 0 | AB81: 0 | AC81: 245.7907114 | AD81: 0 | AE81: 0 | AF81: 0 | AG81: 0 | AH81: 241.9031554 | AJ81: =IF(B81<0,D81+(B81+EXP(-D81))/-EXP(-D81),IF(B81=0,0,D81+(B81-EXP(D81))/EXP(D81))) -> 4.882800771 | AL81: =OFFSET(AA79,A81,A81) -> 245.7907114 | AN81: 0.0009161045489 | AO81: 0.004899153827 | AP81: 0.0007076735501 | AQ81: 0.0005358146919 | AR81: 0.0003033871979 | AS81: 0 | AT81: -0.0008440009975 | AV81: 0.0009161045489 | AW81: 0.004899153827 | AX81: 0.0007076735501 | AY81: 0.0005358146919 | AZ81: 0.0003033871979 | BA81: 0 | BB81: 7.21035514e-05 | BC81: 0.004055152829 | BD81: -0.0001363274474 | BE81: -0.0003081863056 | BF81: -0.0005406137995 | BG81: -0.0007718974461 | BH81: 0.003211151832 | BI81: -0.0009803284449 | BJ81: -0.001152187303 | BK81: -0.001615898444 | BL81: 0.002367150834 | BM81: -0.001824329442 | BN81: -0.002459899441 | BO81: 0.001523149837 | BP81: -0.003303900439 | BR81: 557.6770632 | BT81: 4.738062126 | BV81: =BT81-BY53/$K$1 -> 0.8104750392
A82: 3 | B82: 144.071598 | D82: 4.799831422 | F82: 0 | G82: 0 | H82: 121.4899353 | I82: 0 | J82: 0 | K82: 0 | L82: 0 | M82: 0 | N82: 0 | O82: 0 | P82: 0 | Q82: 0 | R82: 0 | S82: 0 | T82: 0 | U82: 0 | V82: 0 | W82: 0 | X82: 0 | Y82: 0 | Z82: 0 | AB82: 0 | AC82: 0 | AD82: 249.4021859 | AE82: 0 | AF82: 0 | AG82: 0 | AH82: 209.1174428 | AJ82: 4.985704125 | AL82: =OFFSET(AA79,A82,A82) -> 249.4021859 | AN82: 0.0007804749648 | AO82: 0.0007076735501 | AP82: 0.004612490198 | AQ82: 0.000456487148 | AR82: 0.0002584706221 | AS82: 0 | AT82: -0.0007190463682 | AV82: 0.0007804749648 | AW82: 0.0007076735501 | AX82: 0.004612490198 | AY82: 0.000456487148 | AZ82: 0.0002584706221 | BA82: 0 | BB82: 6.142859656e-05 | BC82: -1.137281815e-05 | BD82: 0.00389344383 | BE82: -0.0002625592202 | BF82: -0.0004605757462 | BG82: -0.0006576177717 | BH82: -0.0007304191864 | BI82: 0.003174397461 | BJ82: -0.0009816055885 | BK82: -0.00137666414 | BL82: -0.001449465555 | BM82: 0.002455351093 | BN82: -0.002095710508 | BO82: -0.002168511923 | BP82: -0.002814756876 | BR82: 605.7128714 | BT82: 4.799828917 | BV82: =BT82-BY53/$K$1 -> 0.8722418304
A83: 4 | B83: 88.97479141 | D83: 4.564169609 | F83: 0 | G83: 0 | H83: 0 | I83: 95.98285764 | J83: 0 | K83: 0 | L83: 0 | M83: 0 | N83: 0 | O83: 0 | P83: 0 | Q83: 0 | R83: 0 | S83: 0 | T83: 0 | U83: 0 | V83: 0 | W83: 0 | X83: 0 | Y83: 0 | Z83: 0 | AB83: 0 | AC83: 0 | AD83: 0 | AE83: 180.0758162 | AF83: 0 | AG83: 0 | AH83: 114.3212725 | AJ83: 4.491155882 | AL83: =OFFSET(AA79,A83,A83) -> 180.0758162 | AN83: 0.0005909362484 | AO83: 0.0005358146919 | AP83: 0.000456487148 | AQ83: 0.005898845561 | AR83: 0.0001957009086 | AS83: 0 | AT83: -0.0005444256158 | AV83: 0.0005909362484 | AW83: 0.0005358146919 | AX83: 0.000456487148 | AY83: 0.005898845561 | AZ83: 0.0001957009086 | BA83: 0 | BB83: 4.651063267e-05 | BC83: -8.610923855e-06 | BD83: -8.793846775e-05 | BE83: 0.005354419946 | BF83: -0.0003487247072 | BG83: -0.0004979149831 | BH83: -0.0005530365396 | BI83: -0.0006323640835 | BJ83: 0.00480999433 | BK83: -0.001042340599 | BL83: -0.001097462155 | BM83: -0.001176789699 | BN83: -0.001586766215 | BO83: -0.001641887771 | BP83: -0.00213119183 | BR83: 431.0739756 | BT83: 4.56417066 | BV83: =BT83-BY53/$K$1 -> 0.6365835731
A84: 5 | B84: 88.65825693 | D84: 4.661970734 | F84: 0 | G84: 0 | H84: 0 | I84: 0 | J84: 105.844468 | K84: 0 | L84: 0 | M84: 0 | N84: 0 | O84: 0 | P84: 0 | Q84: 0 | R84: 0 | S84: 0 | T84: 0 | U84: 0 | V84: 0 | W84: 0 | X84: 0 | Y84: 0 | Z84: 0 | AB84: 0 | AC84: 0 | AD84: 0 | AE84: 0 | AF84: 165.2433524 | AG84: 0 | AH84: 59.39888436 | AJ84: 4.499598421 | AL84: =OFFSET(AA79,A84,A84) -> 165.2433524 | AN84: 0.0003345979408 | AO84: 0.0003033871979 | AP84: 0.0002584706221 | AQ84: 0.0001957009086 | AR84: 0.006162489774 | AS84: 0 | AT84: -0.0003082628464 | AV84: 0.0003345979408 | AW84: 0.0003033871979 | AX84: 0.0002584706221 | AY84: 0.0001957009086 | AZ84: 0.006162489774 | BA84: 0 | BB84: 2.633509445e-05 | BC84: -4.875648427e-06 | BD84: -4.979222429e-05 | BE84: -0.0001125619378 | BF84: 0.005854226928 | BG84: -0.0002819277519 | BH84: -0.0003131384948 | BI84: -0.0003580550707 | BJ84: -0.0004208247841 | BK84: -0.0005901905983 | BL84: -0.0006214013411 | BM84: -0.000666317917 | BN84: -0.0008984534446 | BO84: -0.0009296641875 | BP84: -0.001206716291 | BR84: 476.257601 | BT84: 4.661971376 | BV84: =BT84-BY53/$K$1 -> 0.7343842894
A85: 6 | B85: 91.92790268 | D85: 4.521004603 | F85: 0 | G85: 0 | H85: 0 | I85: 0 | J85: 0 | K85: 91.92790268 | L85: 0 | M85: 0 | N85: 0 | O85: 0 | P85: 0 | Q85: 0 | R85: 0 | S85: 0 | T85: 0 | U85: 0 | V85: 0 | W85: 0 | X85: 0 | Y85: 0 | Z85: 0 | AB85: 0 | AC85: 0 | AD85: 0 | AE85: 0 | AF85: 0 | AG85: 91.92790268 | AH85: 0 | AJ85: 4.521004603 | AL85: =OFFSET(AA79,A85,A85) -> 91.92790268 | AN85: 0 | AO85: 0 | AP85: 0 | AQ85: 0 | AR85: 0 | AS85: 0.01087809001 | AT85: 0 | AV85: 0 | AW85: 0 | AX85: 0 | AY85: 0 | AZ85: 0 | BA85: 0.01087809001 | BB85: 0 | BC85: 0 | BD85: 0 | BE85: 0 | BF85: 0 | BG85: 0 | BH85: 0 | BI85: 0 | BJ85: 0 | BK85: 0 | BL85: 0 | BM85: 0 | BN85: 0 | BO85: 0 | BP85: 0 | BR85: 415.6064712 | BT85: 4.521004603 | BV85: =BT85-BY53/$K$1 -> 0.5934175163
A86: 7 | B86: 62.57368307 | D86: 4.20807217 | F86: 0 | G86: 0 | H86: 0 | I86: 0 | J86: 0 | K86: 0 | L86: 67.22681291 | M86: 0 | N86: 0 | O86: 0 | P86: 0 | Q86: 0 | R86: 0 | S86: 0 | T86: 0 | U86: 0 | V86: 0 | W86: 0 | X86: 0 | Y86: 0 | Z86: 0 | AB86: 287.0622195 | AC86: 241.9031554 | AD86: 209.1174428 | AE86: 114.3212725 | AF86: 59.39888436 | AG86: 0 | AH86: 1985.024355 | AJ86: 4.138856783 | AL86: =OFFSET(AA79,A86,A86) -> 1985.024355 | AN86: -0.0009308270017 | AO86: -0.0008440009975 | AP86: -0.0007190463682 | AQ86: -0.0005444256158 | AR86: -0.0003082628464 | AS86: 0 | AT86: 0.0008575646948 | AV86: -0.0009308270017 | AW86: -0.0008440009975 | AX86: -0.0007190463682 | AY86: -0.0005444256158 | AZ86: -0.0003082628464 | BA86: 0 | BB86: -7.326230684e-05 | BC86: 1.356369736e-05 | BD86: 0.0001385183266 | BE86: 0.0003131390791 | BF86: 0.0005493018485 | BG86: 0.000784302388 | BH86: 0.0008711283922 | BI86: 0.0009960830214 | BJ86: 0.001170703774 | BK86: 0.001641867083 | BL86: 0.001728693087 | BM86: 0.001853647716 | BN86: 0.002499431778 | BO86: 0.002586257782 | BP86: 0.003356996473 | BR86: 278.2421506 | BT86: -0.5776977085 | BV86: =BT86-BY53/$K$1 -> -4.505284796
A87: 8 | B87: 55.34390049 | D87: 4.160365782 | F87: 0 | G87: 0 | H87: 0 | I87: 0 | J87: 0 | K87: 0 | L87: 0 | M87: 64.09496311 | N87: 0 | O87: 0 | P87: 0 | Q87: 0 | R87: 0 | S87: 0 | T87: 0 | U87: 0 | V87: 0 | W87: 0 | X87: 0 | Y87: 0 | Z87: 0 | AJ87: 4.023833016 | BR87: 257.9074287
A88: 9 | B88: 79.4190599 | D88: 4.222136133 | F88: 0 | G88: 0 | H88: 0 | I88: 0 | J88: 0 | K88: 0 | L88: 0 | M88: 0 | N88: 68.17896818 | O88: 0 | P88: 0 | Q88: 0 | R88: 0 | S88: 0 | T88: 0 | U88: 0 | V88: 0 | W88: 0 | X88: 0 | Y88: 0 | Z88: 0 | AJ88: 4.386997703 | BR88: 299.1009768
A89: 10 | B89: 61.05963651 | D89: 3.98647432 | F89: 0 | G89: 0 | H89: 0 | I89: 0 | J89: 0 | K89: 0 | L89: 0 | M89: 0 | N89: 0 | O89: 53.86464469 | P89: 0 | Q89: 0 | R89: 0 | S89: 0 | T89: 0 | U89: 0 | V89: 0 | W89: 0 | X89: 0 | Y89: 0 | Z89: 0 | AJ89: 4.120049727 | BR89: 221.9250146
A90: 11 | B90: 76.58505796 | D90: 4.084275444 | F90: =IF($A90=F$4,IF($B90<0,-(EXP(-$D90)^(2-$H$1)),IF($B90=0,0,EXP($D90)^(2-$H$1))),0) -> 0 | G90: 0 | H90: 0 | I90: 0 | J90: 0 | K90: 0 | L90: 0 | M90: 0 | N90: 0 | O90: 0 | P90: =IF($A90=P$4,IF($B90<0,-(EXP(-$D90)^(2-$H$1)),IF($B90=0,0,EXP($D90)^(2-$H$1))),0) -> 59.39888436 | Q90: 0 | R90: 0 | S90: 0 | T90: 0 | U90: 0 | V90: 0 | W90: 0 | X90: 0 | Y90: 0 | Z90: 0 | AJ90: 4.3736104 | BR90: 259.7875784
A91: 12 | B91: 51.13962648 | D91: 3.63037688 | F91: 0 | G91: 0 | H91: 0 | I91: 0 | J91: 0 | K91: 0 | L91: 0 | M91: 0 | N91: 0 | O91: 0 | P91: 0 | Q91: 37.72703252 | R91: 0 | S91: 0 | T91: 0 | U91: 0 | V91: 0 | W91: 0 | X91: 0 | Y91: 0 | Z91: 0 | AJ91: 3.985893683 | BR91: 150.3759406
A92: 13 | B92: 28.74507246 | D92: 3.582670493 | F92: 0 | G92: 0 | H92: 0 | I92: 0 | J92: 0 | K92: 0 | L92: 0 | M92: 0 | N92: 0 | O92: 0 | P92: 0 | Q92: 0 | R92: 35.96946892 | S92: 0 | T92: 0 | U92: 0 | V92: 0 | W92: 0 | X92: 0 | Y92: 0 | Z92: 0 | AJ92: 3.381822477 | BR92: 121.6423585
A93: 14 | B93: 14.45190814 | D93: 3.644440844 | F93: 0 | G93: 0 | H93: 0 | I93: 0 | J93: 0 | K93: 0 | L93: 0 | M93: 0 | N93: 0 | O93: 0 | P93: 0 | Q93: 0 | R93: 0 | S93: 38.26137278 | T93: 0 | U93: 0 | V93: 0 | W93: 0 | X93: 0 | Y93: 0 | Z93: 0 | AJ93: 3.022156202 | BR93: 115.631845
A94: 15 | B94: 30.04130094 | D94: 3.408779031 | F94: 0 | G94: 0 | H94: 0 | I94: 0 | J94: 0 | K94: 0 | L94: 0 | M94: 0 | N94: 0 | O94: 0 | P94: 0 | Q94: 0 | R94: 0 | S94: 0 | T94: 30.22831388 | U94: 0 | V94: 0 | W94: 0 | X94: 0 | Y94: 0 | Z94: 0 | AJ94: 3.40259235 | BR94: 102.8546296
A95: 16 | B95: 16.79576788 | D95: 3.052681591 | F95: 0 | G95: 0 | H95: 0 | I95: 0 | J95: 0 | K95: 0 | L95: 0 | M95: 0 | N95: 0 | O95: 0 | P95: 0 | Q95: 0 | R95: 0 | S95: 0 | T95: 0 | U95: 21.17204313 | V95: 0 | W95: 0 | X95: 0 | Y95: 0 | Z95: 0 | AJ95: 2.845980933 | BR95: 60.25523106
A96: 17 | B96: 15.84093247 | D96: 3.004975204 | F96: 0 | G96: 0 | H96: 0 | I96: 0 | J96: 0 | K96: 0 | L96: 0 | M96: 0 | N96: 0 | O96: 0 | P96: 0 | Q96: 0 | R96: 0 | S96: 0 | T96: 0 | U96: 0 | V96: 20.18571556 | W96: 0 | X96: 0 | Y96: 0 | Z96: 0 | AJ96: 2.789734725 | BR96: 56.31279164
A97: 18 | B97: 11.45848932 | D97: 3.066745554 | F97: 0 | G97: 0 | H97: 0 | I97: 0 | J97: 0 | K97: 0 | L97: 0 | M97: 0 | N97: 0 | O97: 0 | P97: 0 | Q97: 0 | R97: 0 | S97: 0 | T97: 0 | U97: 0 | V97: 0 | W97: 21.47190968 | X97: 0 | Y97: 0 | Z97: 0 | AJ97: 2.600395774 | BR97: 55.8354632
A98: 19 | B98: 19.67179698 | D98: 2.474986302 | F98: 0 | G98: 0 | H98: 0 | I98: 0 | J98: 0 | K98: 0 | L98: 0 | M98: 0 | N98: 0 | O98: 0 | P98: 0 | Q98: 0 | R98: 0 | S98: 0 | T98: 0 | U98: 0 | V98: 0 | W98: 0 | X98: 11.88154436 | Y98: 0 | Z98: 0 | AJ98: 3.130646239 | BR98: 37.19691216
A99: 20 | B99: 15.1168549 | D99: 2.427279915 | F99: 0 | G99: 0 | H99: 0 | I99: 0 | J99: 0 | K99: 0 | L99: 0 | M99: 0 | N99: 0 | O99: 0 | P99: 0 | Q99: 0 | R99: 0 | S99: 0 | T99: 0 | U99: 0 | V99: 0 | W99: 0 | X99: 0 | Y99: 11.32802693 | Z99: 0 | AJ99: 2.761744865 | BR99: 31.28512021
A100: 21 | B100: 11.32419352 | D100: 1.897291013 | F100: 0 | G100: 0 | H100: 0 | I100: 0 | J100: 0 | K100: 0 | L100: 0 | M100: 0 | N100: 0 | O100: 0 | P100: 0 | Q100: 0 | R100: 0 | S100: 0 | T100: 0 | U100: 0 | V100: 0 | W100: 0 | X100: 0 | Y100: 0 | Z100: 6.66780695 | AJ100: 2.595629552 | BR100: 17.30715677
A102: Newton-Raphson Interation Sequence -- Iteration 5
B103: y(i) | D103: xb(i) | F103: W(i,i) | AB103: XWX | AJ103: zz(i) | AL103: factor | AN103: xwx-1 | AV103: aa1(i,j) | BR103: aa2(j) | BT103: beta(j) | BV103: beta_diff = | BW103: =SUM(BV105:BV115) -> -2.436273405e-12 | BX103: beta_old = | BY103: =SUM(BT105:BT115) -> 27.49310826
B104: 1 | D104: 1 | F104: 1 | G104: 2 | H104: 3 | I104: 4 | J104: 5 | K104: 6 | L104: 7 | M104: 8 | N104: 9 | O104: 10 | P104: 11 | Q104: 12 | R104: 13 | S104: 14 | T104: 15 | U104: 16 | V104: 17 | W104: 18 | X104: 19 | Y104: 20 | Z104: 21 | AB104: 1 | AC104: 2 | AD104: 3 | AE104: 4 | AF104: 5 | AG104: 6 | AH104: 7 | AJ104: 1 | AN104: 1 | AO104: 2 | AP104: 3 | AQ104: 4 | AR104: 5 | AS104: 6 | AT104: 7 | AV104: 1 | AW104: 2 | AX104: 3 | AY104: 4 | AZ104: 5 | BA104: 6 | BB104: 7 | BC104: 8 | BD104: 9 | BE104: 10 | BF104: 11 | BG104: 12 | BH104: 13 | BI104: 14 | BJ104: 15 | BK104: 16 | BL104: 17 | BM104: 18 | BN104: 19 | BO104: 20 | BP104: 21
A105: 1 | B105: =B80 -> 102.9629594 | D105: =MMULT(DesignMatrix,BT80:BT86) -> 4.785768282 | F105: =IF($A105=F$4,IF($B105<0,-(EXP(-$D105)^(2-$H$1)),IF($B105=0,0,EXP($D105)^(2-$H$1))),0) -> 119.7933628 | G105: 0 | H105: 0 | I105: 0 | J105: 0 | K105: 0 | L105: 0 | M105: 0 | N105: 0 | O105: 0 | P105: =IF($A105=P$4,IF($B105<0,-(EXP(-$D105)^(2-$H$1)),IF($B105=0,0,EXP($D105)^(2-$H$1))),0) -> 0 | Q105: 0 | R105: 0 | S105: 0 | T105: 0 | U105: 0 | V105: 0 | W105: 0 | X105: 0 | Y105: 0 | Z105: 0 | AB105: =MMULT(TRANSPOSE(DesignMatrix),MMULT(F105:Z125,DesignMatrix)) -> 264.4680273 | AC105: 0 | AD105: 0 | AE105: 0 | AF105: 0 | AG105: 0 | AH105: 287.0606039 | AJ105: =IF(B105<0,D105+(B105+EXP(-D105))/-EXP(-D105),IF(B105=0,0,D105+(B105-EXP(D105))/EXP(D105))) -> 4.64527299 | AL105: =OFFSET(AA104,A105,A105) -> 264.4680273 | AN105: =MINVERSE(AB105:AH111) -> 0.004791520833 | AO105: 0.0009161025323 | AP105: 0.0007804736854 | AQ105: 0.0005909356365 | AR105: 0.0003345977995 | AS105: 0 | AT105: -0.0009308280511 | AV105: =MMULT(AN105:AT111,TRANSPOSE(DesignMatrix)) -> 0.004791520833 | AW105: 0.0009161025323 | AX105: 0.0007804736854 | AY105: 0.0005909356365 | AZ105: 0.0003345977995 | BA105: 0 | BB105: 0.003860692782 | BC105: -1.472551873e-05 | BD105: -0.0001503543656 | BE105: -0.0003398924145 | BF105: -0.0005962302516 | BG105: 0.002929864731 | BH105: -0.0009455535698 | BI105: -0.001081182417 | BJ105: -0.001270720466 | BK105: 0.00199903668 | BL105: -0.001876381621 | BM105: -0.002012010468 | BN105: 0.001068208629 | BO105: -0.002807209672 | BP105: 0.000137380578 | BR105: =MMULT(F105:Z125,AJ105:AJ125) -> 556.4728727 | BT105: =MMULT(AV105:BP111,BR105:BR125) -> 4.785768282 | BV105: =BT105-BY78/$K$1 -> 0.8581813881
A106: 2 | B106: =B81 -> 130.7436251 | D106: 4.738062126 | F106: 0 | G106: 114.2126574 | H106: 0 | I106: 0 | J106: 0 | K106: 0 | L106: 0 | M106: 0 | N106: 0 | O106: 0 | P106: 0 | Q106: 0 | R106: 0 | S106: 0 | T106: 0 | U106: 0 | V106: 0 | W106: 0 | X106: 0 | Y106: 0 | Z106: 0 | AB106: 0 | AC106: 245.7903854 | AD106: 0 | AE106: 0 | AF106: 0 | AG106: 0 | AH106: 241.9020294 | AJ106: =IF(B106<0,D106+(B106+EXP(-D106))/-EXP(-D106),IF(B106=0,0,D106+(B106-EXP(D106))/EXP(D106))) -> 4.882800618 | AL106: =OFFSET(AA104,A106,A106) -> 245.7903854 | AN106: 0.0009161025323 | AO106: 0.004899157807 | AP106: 0.0007076727417 | AQ106: 0.0005358144033 | AR106: 0.0003033872205 | AS106: 0 | AT106: -0.0008440023683 | AV106: 0.0009161025323 | AW106: 0.004899157807 | AX106: 0.0007076727417 | AY106: 0.0005358144033 | AZ106: 0.0003033872205 | BA106: 0 | BB106: 7.210016403e-05 | BC106: 0.004055155438 | BD106: -0.0001363296267 | BE106: -0.000308187965 | BF106: -0.0005406151478 | BG106: -0.0007719022043 | BH106: 0.00321115307 | BI106: -0.000980331995 | BJ106: -0.001152190333 | BK106: -0.001615904573 | BL106: 0.002367150702 | BM106: -0.001824334363 | BN106: -0.002459906941 | BO106: 0.001523148333 | BP106: -0.003303909309 | BR106: 557.677634 | BT106: 4.738062126 | BV106: =BT106-BY78/$K$1 -> 0.8104752324
A107: 3 | B107: 144.071598 | D107: 4.799828917 | F107: 0 | G107: 0 | H107: 121.489631 | I107: 0 | J107: 0 | K107: 0 | L107: 0 | M107: 0 | N107: 0 | O107: 0 | P107: 0 | Q107: 0 | R107: 0 | S107: 0 | T107: 0 | U107: 0 | V107: 0 | W107: 0 | X107: 0 | Y107: 0 | Z107: 0 | AB107: 0 | AC107: 0 | AD107: 249.4010553 | AE107: 0 | AF107: 0 | AG107: 0 | AH107: 209.1159163 | AJ107: 4.985704591 | AL107: =OFFSET(AA104,A107,A107) -> 249.4010553 | AN107: 0.0007804736854 | AO107: 0.0007076727417 | AP107: 0.004612508024 | AQ107: 0.0004564871587 | AR107: 0.0002584707866 | AS107: 0 | AT107: -0.0007190479402 | AV107: 0.0007804736854 | AW107: 0.0007076727417 | AX107: 0.004612508024 | AY107: 0.0004564871587 | AZ107: 0.0002584707866 | BA107: 0 | BB107: 6.142574521e-05 | BC107: -1.137519856e-05 | BD107: 0.003893460084 | BE107: -0.0002625607815 | BF107: -0.0004605771536 | BG107: -0.000657622195 | BH107: -0.0007304231388 | BI107: 0.003174412144 | BJ107: -0.0009816087218 | BK107: -0.001376670135 | BL107: -0.001449471079 | BM107: 0.002455364203 | BN107: -0.002095718075 | BO107: -0.002168519019 | BP107: -0.002814766016 | BR107: 605.7114109 | BT107: 4.799828917 | BV107: =BT107-BY78/$K$1 -> 0.8722420236
A108: 4 | B108: 88.97479141 | D108: 4.56417066 | F108: 0 | G108: 0 | H108: 0 | I108: 95.9829585 | J108: 0 | K108: 0 | L108: 0 | M108: 0 | N108: 0 | O108: 0 | P108: 0 | Q108: 0 | R108: 0 | S108: 0 | T108: 0 | U108: 0 | V108: 0 | W108: 0 | X108: 0 | Y108: 0 | Z108: 0 | AB108: 0 | AC108: 0 | AD108: 0 | AE108: 180.0757289 | AF108: 0 | AG108: 0 | AH108: 114.3209697 | AJ108: 4.491155958 | AL108: =OFFSET(AA104,A108,A108) -> 180.0757289 | AN108: 0.0005909356365 | AO108: 0.0005358144033 | AP108: 0.0004564871587 | AQ108: 0.005898848472 | AR108: 0.0001957011513 | AS108: 0 | AT108: -0.0005444271347 | AV108: 0.0005909356365 | AW108: 0.0005358144033 | AX108: 0.0004564871587 | AY108: 0.005898848472 | AZ108: 0.0001957011513 | BA108: 0 | BB108: 4.650850186e-05 | BC108: -8.612731384e-06 | BD108: -8.7939976e-05 | BE108: 0.005354421337 | BF108: -0.0003487259834 | BG108: -0.0004979186328 | BH108: -0.0005530398661 | BI108: -0.0006323671107 | BJ108: 0.004809994202 | BK108: -0.001042345768 | BL108: -0.001097467001 | BM108: -0.001176794245 | BN108: -0.001586772902 | BO108: -0.001641894135 | BP108: -0.002131200037 | BR108: 431.074436 | BT108: 4.56417066 | BV108: =BT108-BY78/$K$1 -> 0.6365837663
A109: 5 | B109: 88.65825693 | D109: 4.661971376 | F109: 0 | G109: 0 | H109: 0 | I109: 0 | J109: 105.844536 | K109: 0 | L109: 0 | M109: 0 | N109: 0 | O109: 0 | P109: 0 | Q109: 0 | R109: 0 | S109: 0 | T109: 0 | U109: 0 | V109: 0 | W109: 0 | X109: 0 | Y109: 0 | Z109: 0 | AB109: 0 | AC109: 0 | AD109: 0 | AE109: 0 | AF109: 165.2433149 | AG109: 0 | AH109: 59.39877884 | AJ109: 4.499598525 | AL109: =OFFSET(AA104,A109,A109) -> 165.2433149 | AN109: 0.0003345977995 | AO109: 0.0003033872205 | AP109: 0.0002584707866 | AQ109: 0.0001957011513 | AR109: 0.006162491352 | AS109: 0 | AT109: -0.0003082638954 | AV109: 0.0003345977995 | AW109: 0.0003033872205 | AX109: 0.0002584707866 | AY109: 0.0001957011513 | AZ109: 0.006162491352 | BA109: 0 | BB109: 2.63339041e-05 | BC109: -4.87667487e-06 | BD109: -4.979310883e-05 | BE109: -0.0001125627441 | BF109: 0.005854227457 | BG109: -0.0002819299913 | BH109: -0.0003131405703 | BI109: -0.0003580570042 | BJ109: -0.0004208266395 | BK109: -0.0005901938867 | BL109: -0.0006214044657 | BM109: -0.0006663208997 | BN109: -0.0008984577821 | BO109: -0.0009296683611 | BP109: -0.001206721678 | BR109: 476.2579183 | BT109: 4.661971376 | BV109: =BT109-BY78/$K$1 -> 0.7343844826
A110: 6 | B110: 91.92790268 | D110: 4.521004603 | F110: 0 | G110: 0 | H110: 0 | I110: 0 | J110: 0 | K110: 91.92790268 | L110: 0 | M110: 0 | N110: 0 | O110: 0 | P110: 0 | Q110: 0 | R110: 0 | S110: 0 | T110: 0 | U110: 0 | V110: 0 | W110: 0 | X110: 0 | Y110: 0 | Z110: 0 | AB110: 0 | AC110: 0 | AD110: 0 | AE110: 0 | AF110: 0 | AG110: 91.92790268 | AH110: 0 | AJ110: 4.521004603 | AL110: =OFFSET(AA104,A110,A110) -> 91.92790268 | AN110: 0 | AO110: 0 | AP110: 0 | AQ110: 0 | AR110: 0 | AS110: 0.01087809001 | AT110: 0 | AV110: 0 | AW110: 0 | AX110: 0 | AY110: 0 | AZ110: 0 | BA110: 0.01087809001 | BB110: 0 | BC110: 0 | BD110: 0 | BE110: 0 | BF110: 0 | BG110: 0 | BH110: 0 | BI110: 0 | BJ110: 0 | BK110: 0 | BL110: 0 | BM110: 0 | BN110: 0 | BO110: 0 | BP110: 0 | BR110: 415.6064712 | BT110: 4.521004603 | BV110: =BT110-BY78/$K$1 -> 0.5934177095
A111: 7 | B111: 62.57368307 | D111: 4.208070573 | F111: 0 | G111: 0 | H111: 0 | I111: 0 | J111: 0 | K111: 0 | L111: 67.2267056 | M111: 0 | N111: 0 | O111: 0 | P111: 0 | Q111: 0 | R111: 0 | S111: 0 | T111: 0 | U111: 0 | V111: 0 | W111: 0 | X111: 0 | Y111: 0 | Z111: 0 | AB111: 287.0606039 | AC111: 241.9020294 | AD111: 209.1159163 | AE111: 114.3209697 | AF111: 59.39877884 | AG111: 0 | AH111: 1985.011549 | AJ111: 4.138856673 | AL111: =OFFSET(AA104,A111,A111) -> 1985.011549 | AN111: -0.0009308280511 | AO111: -0.0008440023683 | AP111: -0.0007190479402 | AQ111: -0.0005444271347 | AR111: -0.0003082638954 | AS111: 0 | AT111: 0.0008575689422 | AV111: -0.0009308280511 | AW111: -0.0008440023683 | AX111: -0.0007190479402 | AY111: -0.0005444271347 | AZ111: -0.0003082638954 | BA111: 0 | BB111: -7.325910889e-05 | BC111: 1.356657387e-05 | BD111: 0.000138521002 | BE111: 0.0003131418075 | BF111: 0.0005493050468 | BG111: 0.0007843098333 | BH111: 0.0008711355161 | BI111: 0.0009960899442 | BJ111: 0.00117071075 | BK111: 0.001641878775 | BL111: 0.001728704458 | BM111: 0.001853658886 | BN111: 0.002499447718 | BO111: 0.0025862734 | BP111: 0.00335701666 | BR111: 278.2416991 | BT111: -0.5776977085 | BV111: =BT111-BY78/$K$1 -> -4.505284602
A112: 8 | B112: 55.34390049 | D112: 4.160364418 | F112: 0 | G112: 0 | H112: 0 | I112: 0 | J112: 0 | K112: 0 | L112: 0 | M112: 64.09487565 | N112: 0 | O112: 0 | P112: 0 | Q112: 0 | R112: 0 | S112: 0 | T112: 0 | U112: 0 | V112: 0 | W112: 0 | X112: 0 | Y112: 0 | Z112: 0 | AJ112: 4.02383283 | BR112: 257.9070649
A113: 9 | B113: 79.4190599 | D113: 4.222131209 | F113: 0 | G113: 0 | H113: 0 | I113: 0 | J113: 0 | K113: 0 | L113: 0 | M113: 0 | N113: 68.17863247 | O113: 0 | P113: 0 | Q113: 0 | R113: 0 | S113: 0 | T113: 0 | U113: 0 | V113: 0 | W113: 0 | X113: 0 | Y113: 0 | Z113: 0 | AJ113: 4.386998514 | BR113: 299.0995594
A114: 10 | B114: 61.05963651 | D114: 3.986472952 | F114: 0 | G114: 0 | H114: 0 | I114: 0 | J114: 0 | K114: 0 | L114: 0 | M114: 0 | N114: 0 | O114: 53.86457098 | P114: 0 | Q114: 0 | R114: 0 | S114: 0 | T114: 0 | U114: 0 | V114: 0 | W114: 0 | X114: 0 | Y114: 0 | Z114: 0 | AJ114: 4.120049909 | BR114: 221.9247208
A115: 11 | B115: 76.58505796 | D115: 4.084273668 | F115: =IF($A115=F$4,IF($B115<0,-(EXP(-$D115)^(2-$H$1)),IF($B115=0,0,EXP($D115)^(2-$H$1))),0) -> 0 | G115: 0 | H115: 0 | I115: 0 | J115: 0 | K115: 0 | L115: 0 | M115: 0 | N115: 0 | O115: 0 | P115: =IF($A115=P$4,IF($B115<0,-(EXP(-$D115)^(2-$H$1)),IF($B115=0,0,EXP($D115)^(2-$H$1))),0) -> 59.39877884 | Q115: 0 | R115: 0 | S115: 0 | T115: 0 | U115: 0 | V115: 0 | W115: 0 | X115: 0 | Y115: 0 | Z115: 0 | AJ115: 4.373610914 | BR115: 259.7871474
A116: 12 | B116: 51.13962648 | D116: 3.630372865 | F116: 0 | G116: 0 | H116: 0 | I116: 0 | J116: 0 | K116: 0 | L116: 0 | M116: 0 | N116: 0 | O116: 0 | P116: 0 | Q116: 37.72688102 | R116: 0 | S116: 0 | T116: 0 | U116: 0 | V116: 0 | W116: 0 | X116: 0 | Y116: 0 | Z116: 0 | AJ116: 3.98589511 | BR116: 150.3753906
A117: 13 | B117: 28.74507246 | D117: 3.582666709 | F117: 0 | G117: 0 | H117: 0 | I117: 0 | J117: 0 | K117: 0 | L117: 0 | M117: 0 | N117: 0 | O117: 0 | P117: 0 | Q117: 0 | R117: 35.96933281 | S117: 0 | T117: 0 | U117: 0 | V117: 0 | W117: 0 | X117: 0 | Y117: 0 | Z117: 0 | AJ117: 3.381821717 | BR117: 121.6418709
A118: 14 | B118: 14.45190814 | D118: 3.6444335 | F118: 0 | G118: 0 | H118: 0 | I118: 0 | J118: 0 | K118: 0 | L118: 0 | M118: 0 | N118: 0 | O118: 0 | P118: 0 | Q118: 0 | R118: 0 | S118: 38.26109182 | T118: 0 | U118: 0 | V118: 0 | W118: 0 | X118: 0 | Y118: 0 | Z118: 0 | AJ118: 3.022151633 | BR118: 115.6308211
A119: 15 | B119: 30.04130094 | D119: 3.408775243 | F119: 0 | G119: 0 | H119: 0 | I119: 0 | J119: 0 | K119: 0 | L119: 0 | M119: 0 | N119: 0 | O119: 0 | P119: 0 | Q119: 0 | R119: 0 | S119: 0 | T119: 30.22819938 | U119: 0 | V119: 0 | W119: 0 | X119: 0 | Y119: 0 | Z119: 0 | AJ119: 3.402592326 | BR119: 102.8542393
A120: 16 | B120: 16.79576788 | D120: 3.052675156 | F120: 0 | G120: 0 | H120: 0 | I120: 0 | J120: 0 | K120: 0 | L120: 0 | M120: 0 | N120: 0 | O120: 0 | P120: 0 | Q120: 0 | R120: 0 | S120: 0 | T120: 0 | U120: 21.17190689 | V120: 0 | W120: 0 | X120: 0 | Y120: 0 | Z120: 0 | AJ120: 2.845979603 | BR120: 60.25481517
A121: 17 | B121: 15.84093247 | D121: 3.004969001 | F121: 0 | G121: 0 | H121: 0 | I121: 0 | J121: 0 | K121: 0 | L121: 0 | M121: 0 | N121: 0 | O121: 0 | P121: 0 | Q121: 0 | R121: 0 | S121: 0 | T121: 0 | U121: 0 | V121: 20.18559035 | W121: 0 | X121: 0 | Y121: 0 | Z121: 0 | AJ121: 2.789733389 | BR121: 56.31241537
A122: 18 | B122: 11.45848932 | D122: 3.066735792 | F122: 0 | G122: 0 | H122: 0 | I122: 0 | J122: 0 | K122: 0 | L122: 0 | M122: 0 | N122: 0 | O122: 0 | P122: 0 | Q122: 0 | R122: 0 | S122: 0 | T122: 0 | U122: 0 | V122: 0 | W122: 21.47170006 | X122: 0 | Y122: 0 | Z122: 0 | AJ122: 2.600391221 | BR122: 55.83482035
A123: 19 | B123: 19.67179698 | D123: 2.474977448 | F123: 0 | G123: 0 | H123: 0 | I123: 0 | J123: 0 | K123: 0 | L123: 0 | M123: 0 | N123: 0 | O123: 0 | P123: 0 | Q123: 0 | R123: 0 | S123: 0 | T123: 0 | U123: 0 | V123: 0 | W123: 0 | X123: 11.88143916 | Y123: 0 | Z123: 0 | AJ123: 3.130652044 | BR123: 37.19665179
A124: 20 | B124: 15.1168549 | D124: 2.427271292 | F124: 0 | G124: 0 | H124: 0 | I124: 0 | J124: 0 | K124: 0 | L124: 0 | M124: 0 | N124: 0 | O124: 0 | P124: 0 | Q124: 0 | R124: 0 | S124: 0 | T124: 0 | U124: 0 | V124: 0 | W124: 0 | X124: 0 | Y124: 11.32792926 | Z124: 0 | AJ124: 2.761747749 | BR124: 31.28488313
A125: 21 | B125: 11.32419352 | D125: 1.897279739 | F125: 0 | G125: 0 | H125: 0 | I125: 0 | J125: 0 | K125: 0 | L125: 0 | M125: 0 | N125: 0 | O125: 0 | P125: 0 | Q125: 0 | R125: 0 | S125: 0 | T125: 0 | U125: 0 | V125: 0 | W125: 0 | X125: 0 | Y125: 0 | Z125: 6.667731781 | AJ125: 2.595637425 | BR125: 17.30701415
A127: Newton-Raphson Interation Sequence -- Iteration 6
B128: y(i) | D128: xb(i) | F128: W(i,i) | AB128: XWX | AJ128: zz(i) | AL128: factor | AN128: xwx-1 | AV128: aa1(i,j) | BR128: aa2(j) | BT128: beta(j) | BV128: beta_diff = | BW128: =SUM(BV130:BV140) -> 0 | BX128: beta_old = | BY128: =SUM(BT130:BT140) -> 27.49310826
B129: 1 | D129: 1 | F129: 1 | G129: 2 | H129: 3 | I129: 4 | J129: 5 | K129: 6 | L129: 7 | M129: 8 | N129: 9 | O129: 10 | P129: 11 | Q129: 12 | R129: 13 | S129: 14 | T129: 15 | U129: 16 | V129: 17 | W129: 18 | X129: 19 | Y129: 20 | Z129: 21 | AB129: 1 | AC129: 2 | AD129: 3 | AE129: 4 | AF129: 5 | AG129: 6 | AH129: 7 | AJ129: 1 | AN129: 1 | AO129: 2 | AP129: 3 | AQ129: 4 | AR129: 5 | AS129: 6 | AT129: 7 | AV129: 1 | AW129: 2 | AX129: 3 | AY129: 4 | AZ129: 5 | BA129: 6 | BB129: 7 | BC129: 8 | BD129: 9 | BE129: 10 | BF129: 11 | BG129: 12 | BH129: 13 | BI129: 14 | BJ129: 15 | BK129: 16 | BL129: 17 | BM129: 18 | BN129: 19 | BO129: 20 | BP129: 21
A130: 1 | B130: =B105 -> 102.9629594 | D130: =MMULT(DesignMatrix,BT105:BT111) -> 4.785768282 | F130: =IF($A130=F$4,IF($B130<0,-(EXP(-$D130)^(2-$H$1)),IF($B130=0,0,EXP($D130)^(2-$H$1))),0) -> 119.7933628 | G130: 0 | H130: 0 | I130: 0 | J130: 0 | K130: 0 | L130: 0 | M130: 0 | N130: 0 | O130: 0 | P130: =IF($A130=P$4,IF($B130<0,-(EXP(-$D130)^(2-$H$1)),IF($B130=0,0,EXP($D130)^(2-$H$1))),0) -> 0 | Q130: 0 | R130: 0 | S130: 0 | T130: 0 | U130: 0 | V130: 0 | W130: 0 | X130: 0 | Y130: 0 | Z130: 0 | AB130: =MMULT(TRANSPOSE(DesignMatrix),MMULT(F130:Z150,DesignMatrix)) -> 264.4680273 | AC130: 0 | AD130: 0 | AE130: 0 | AF130: 0 | AG130: 0 | AH130: 287.0606039 | AJ130: =IF(B130<0,D130+(B130+EXP(-D130))/-EXP(-D130),IF(B130=0,0,D130+(B130-EXP(D130))/EXP(D130))) -> 4.64527299 | AL130: =OFFSET(AA129,A130,A130) -> 264.4680273 | AN130: =MINVERSE(AB130:AH136) -> 0.004791520833 | AO130: 0.0009161025323 | AP130: 0.0007804736854 | AQ130: 0.0005909356365 | AR130: 0.0003345977995 | AS130: 0 | AT130: -0.0009308280511 | AV130: =MMULT(AN130:AT136,TRANSPOSE(DesignMatrix)) -> 0.004791520833 | AW130: 0.0009161025323 | AX130: 0.0007804736854 | AY130: 0.0005909356365 | AZ130: 0.0003345977995 | BA130: 0 | BB130: 0.003860692782 | BC130: -1.472551874e-05 | BD130: -0.0001503543657 | BE130: -0.0003398924145 | BF130: -0.0005962302516 | BG130: 0.002929864731 | BH130: -0.0009455535698 | BI130: -0.001081182417 | BJ130: -0.001270720466 | BK130: 0.00199903668 | BL130: -0.001876381621 | BM130: -0.002012010468 | BN130: 0.001068208629 | BO130: -0.002807209672 | BP130: 0.000137380578 | BR130: =MMULT(F130:Z150,AJ130:AJ150) -> 556.4728727 | BT130: =MMULT(AV130:BP136,BR130:BR150) -> 4.785768282 | BV130: =BT130-BY103/$K$1 -> 0.8581813881
A131: 2 | B131: =B106 -> 130.7436251 | D131: 4.738062126 | F131: 0 | G131: 114.2126574 | H131: 0 | I131: 0 | J131: 0 | K131: 0 | L131: 0 | M131: 0 | N131: 0 | O131: 0 | P131: 0 | Q131: 0 | R131: 0 | S131: 0 | T131: 0 | U131: 0 | V131: 0 | W131: 0 | X131: 0 | Y131: 0 | Z131: 0 | AB131: 0 | AC131: 245.7903854 | AD131: 0 | AE131: 0 | AF131: 0 | AG131: 0 | AH131: 241.9020293 | AJ131: =IF(B131<0,D131+(B131+EXP(-D131))/-EXP(-D131),IF(B131=0,0,D131+(B131-EXP(D131))/EXP(D131))) -> 4.882800618 | AL131: =OFFSET(AA129,A131,A131) -> 245.7903854 | AN131: 0.0009161025323 | AO131: 0.004899157807 | AP131: 0.0007076727417 | AQ131: 0.0005358144033 | AR131: 0.0003033872205 | AS131: 0 | AT131: -0.0008440023683 | AV131: 0.0009161025323 | AW131: 0.004899157807 | AX131: 0.0007076727417 | AY131: 0.0005358144033 | AZ131: 0.0003033872205 | BA131: 0 | BB131: 7.210016402e-05 | BC131: 0.004055155438 | BD131: -0.0001363296267 | BE131: -0.000308187965 | BF131: -0.0005406151478 | BG131: -0.0007719022043 | BH131: 0.00321115307 | BI131: -0.000980331995 | BJ131: -0.001152190333 | BK131: -0.001615904573 | BL131: 0.002367150702 | BM131: -0.001824334363 | BN131: -0.002459906941 | BO131: 0.001523148333 | BP131: -0.003303909309 | BR131: 557.677634 | BT131: 4.738062126 | BV131: =BT131-BY103/$K$1 -> 0.8104752324
A132: 3 | B132: 144.071598 | D132: 4.799828917 | F132: 0 | G132: 0 | H132: 121.489631 | I132: 0 | J132: 0 | K132: 0 | L132: 0 | M132: 0 | N132: 0 | O132: 0 | P132: 0 | Q132: 0 | R132: 0 | S132: 0 | T132: 0 | U132: 0 | V132: 0 | W132: 0 | X132: 0 | Y132: 0 | Z132: 0 | AB132: 0 | AC132: 0 | AD132: 249.4010553 | AE132: 0 | AF132: 0 | AG132: 0 | AH132: 209.1159163 | AJ132: 4.985704591 | AL132: =OFFSET(AA129,A132,A132) -> 249.4010553 | AN132: 0.0007804736854 | AO132: 0.0007076727417 | AP132: 0.004612508024 | AQ132: 0.0004564871587 | AR132: 0.0002584707866 | AS132: 0 | AT132: -0.0007190479402 | AV132: 0.0007804736854 | AW132: 0.0007076727417 | AX132: 0.004612508024 | AY132: 0.0004564871587 | AZ132: 0.0002584707866 | BA132: 0 | BB132: 6.14257452e-05 | BC132: -1.137519857e-05 | BD132: 0.003893460084 | BE132: -0.0002625607815 | BF132: -0.0004605771536 | BG132: -0.000657622195 | BH132: -0.0007304231388 | BI132: 0.003174412144 | BJ132: -0.0009816087218 | BK132: -0.001376670135 | BL132: -0.001449471079 | BM132: 0.002455364203 | BN132: -0.002095718075 | BO132: -0.002168519019 | BP132: -0.002814766016 | BR132: 605.7114109 | BT132: 4.799828917 | BV132: =BT132-BY103/$K$1 -> 0.8722420236
A133: 4 | B133: 88.97479141 | D133: 4.56417066 | F133: 0 | G133: 0 | H133: 0 | I133: 95.9829585 | J133: 0 | K133: 0 | L133: 0 | M133: 0 | N133: 0 | O133: 0 | P133: 0 | Q133: 0 | R133: 0 | S133: 0 | T133: 0 | U133: 0 | V133: 0 | W133: 0 | X133: 0 | Y133: 0 | Z133: 0 | AB133: 0 | AC133: 0 | AD133: 0 | AE133: 180.0757289 | AF133: 0 | AG133: 0 | AH133: 114.3209697 | AJ133: 4.491155958 | AL133: =OFFSET(AA129,A133,A133) -> 180.0757289 | AN133: 0.0005909356365 | AO133: 0.0005358144033 | AP133: 0.0004564871587 | AQ133: 0.005898848472 | AR133: 0.0001957011513 | AS133: 0 | AT133: -0.0005444271347 | AV133: 0.0005909356365 | AW133: 0.0005358144033 | AX133: 0.0004564871587 | AY133: 0.005898848472 | AZ133: 0.0001957011513 | BA133: 0 | BB133: 4.650850185e-05 | BC133: -8.61273139e-06 | BD133: -8.793997601e-05 | BE133: 0.005354421337 | BF133: -0.0003487259834 | BG133: -0.0004979186328 | BH133: -0.0005530398661 | BI133: -0.0006323671107 | BJ133: 0.004809994202 | BK133: -0.001042345768 | BL133: -0.001097467001 | BM133: -0.001176794245 | BN133: -0.001586772902 | BO133: -0.001641894135 | BP133: -0.002131200037 | BR133: 431.074436 | BT133: 4.56417066 | BV133: =BT133-BY103/$K$1 -> 0.6365837663
A134: 5 | B134: 88.65825693 | D134: 4.661971376 | F134: 0 | G134: 0 | H134: 0 | I134: 0 | J134: 105.844536 | K134: 0 | L134: 0 | M134: 0 | N134: 0 | O134: 0 | P134: 0 | Q134: 0 | R134: 0 | S134: 0 | T134: 0 | U134: 0 | V134: 0 | W134: 0 | X134: 0 | Y134: 0 | Z134: 0 | AB134: 0 | AC134: 0 | AD134: 0 | AE134: 0 | AF134: 165.2433149 | AG134: 0 | AH134: 59.39877884 | AJ134: 4.499598525 | AL134: =OFFSET(AA129,A134,A134) -> 165.2433149 | AN134: 0.0003345977995 | AO134: 0.0003033872205 | AP134: 0.0002584707866 | AQ134: 0.0001957011513 | AR134: 0.006162491352 | AS134: 0 | AT134: -0.0003082638954 | AV134: 0.0003345977995 | AW134: 0.0003033872205 | AX134: 0.0002584707866 | AY134: 0.0001957011513 | AZ134: 0.006162491352 | BA134: 0 | BB134: 2.633390409e-05 | BC134: -4.876674874e-06 | BD134: -4.979310883e-05 | BE134: -0.0001125627441 | BF134: 0.005854227457 | BG134: -0.0002819299913 | BH134: -0.0003131405703 | BI134: -0.0003580570042 | BJ134: -0.0004208266395 | BK134: -0.0005901938867 | BL134: -0.0006214044657 | BM134: -0.0006663208997 | BN134: -0.0008984577822 | BO134: -0.0009296683611 | BP134: -0.001206721678 | BR134: 476.2579183 | BT134: 4.661971376 | BV134: =BT134-BY103/$K$1 -> 0.7343844826
A135: 6 | B135: 91.92790268 | D135: 4.521004603 | F135: 0 | G135: 0 | H135: 0 | I135: 0 | J135: 0 | K135: 91.92790268 | L135: 0 | M135: 0 | N135: 0 | O135: 0 | P135: 0 | Q135: 0 | R135: 0 | S135: 0 | T135: 0 | U135: 0 | V135: 0 | W135: 0 | X135: 0 | Y135: 0 | Z135: 0 | AB135: 0 | AC135: 0 | AD135: 0 | AE135: 0 | AF135: 0 | AG135: 91.92790268 | AH135: 0 | AJ135: 4.521004603 | AL135: =OFFSET(AA129,A135,A135) -> 91.92790268 | AN135: 0 | AO135: 0 | AP135: 0 | AQ135: 0 | AR135: 0 | AS135: 0.01087809001 | AT135: 0 | AV135: 0 | AW135: 0 | AX135: 0 | AY135: 0 | AZ135: 0 | BA135: 0.01087809001 | BB135: 0 | BC135: 0 | BD135: 0 | BE135: 0 | BF135: 0 | BG135: 0 | BH135: 0 | BI135: 0 | BJ135: 0 | BK135: 0 | BL135: 0 | BM135: 0 | BN135: 0 | BO135: 0 | BP135: 0 | BR135: 415.6064712 | BT135: 4.521004603 | BV135: =BT135-BY103/$K$1 -> 0.5934177095
A136: 7 | B136: 62.57368307 | D136: 4.208070573 | F136: 0 | G136: 0 | H136: 0 | I136: 0 | J136: 0 | K136: 0 | L136: 67.2267056 | M136: 0 | N136: 0 | O136: 0 | P136: 0 | Q136: 0 | R136: 0 | S136: 0 | T136: 0 | U136: 0 | V136: 0 | W136: 0 | X136: 0 | Y136: 0 | Z136: 0 | AB136: 287.0606039 | AC136: 241.9020293 | AD136: 209.1159163 | AE136: 114.3209697 | AF136: 59.39877884 | AG136: 0 | AH136: 1985.011548 | AJ136: 4.138856673 | AL136: =OFFSET(AA129,A136,A136) -> 1985.011548 | AN136: -0.0009308280511 | AO136: -0.0008440023683 | AP136: -0.0007190479402 | AQ136: -0.0005444271347 | AR136: -0.0003082638954 | AS136: 0 | AT136: 0.0008575689422 | AV136: -0.0009308280511 | AW136: -0.0008440023683 | AX136: -0.0007190479402 | AY136: -0.0005444271347 | AZ136: -0.0003082638954 | BA136: 0 | BB136: -7.325910887e-05 | BC136: 1.356657388e-05 | BD136: 0.000138521002 | BE136: 0.0003131418075 | BF136: 0.0005493050468 | BG136: 0.0007843098333 | BH136: 0.0008711355161 | BI136: 0.0009960899442 | BJ136: 0.00117071075 | BK136: 0.001641878776 | BL136: 0.001728704458 | BM136: 0.001853658886 | BN136: 0.002499447718 | BO136: 0.0025862734 | BP136: 0.00335701666 | BR136: 278.2416991 | BT136: -0.5776977085 | BV136: =BT136-BY103/$K$1 -> -4.505284602
A137: 8 | B137: 55.34390049 | D137: 4.160364418 | F137: 0 | G137: 0 | H137: 0 | I137: 0 | J137: 0 | K137: 0 | L137: 0 | M137: 64.09487565 | N137: 0 | O137: 0 | P137: 0 | Q137: 0 | R137: 0 | S137: 0 | T137: 0 | U137: 0 | V137: 0 | W137: 0 | X137: 0 | Y137: 0 | Z137: 0 | AJ137: 4.02383283 | BR137: 257.9070648
A138: 9 | B138: 79.4190599 | D138: 4.222131209 | F138: 0 | G138: 0 | H138: 0 | I138: 0 | J138: 0 | K138: 0 | L138: 0 | M138: 0 | N138: 68.17863247 | O138: 0 | P138: 0 | Q138: 0 | R138: 0 | S138: 0 | T138: 0 | U138: 0 | V138: 0 | W138: 0 | X138: 0 | Y138: 0 | Z138: 0 | AJ138: 4.386998514 | BR138: 299.0995594
A139: 10 | B139: 61.05963651 | D139: 3.986472952 | F139: 0 | G139: 0 | H139: 0 | I139: 0 | J139: 0 | K139: 0 | L139: 0 | M139: 0 | N139: 0 | O139: 53.86457098 | P139: 0 | Q139: 0 | R139: 0 | S139: 0 | T139: 0 | U139: 0 | V139: 0 | W139: 0 | X139: 0 | Y139: 0 | Z139: 0 | AJ139: 4.120049909 | BR139: 221.9247208
A140: 11 | B140: 76.58505796 | D140: 4.084273668 | F140: =IF($A140=F$4,IF($B140<0,-(EXP(-$D140)^(2-$H$1)),IF($B140=0,0,EXP($D140)^(2-$H$1))),0) -> 0 | G140: 0 | H140: 0 | I140: 0 | J140: 0 | K140: 0 | L140: 0 | M140: 0 | N140: 0 | O140: 0 | P140: =IF($A140=P$4,IF($B140<0,-(EXP(-$D140)^(2-$H$1)),IF($B140=0,0,EXP($D140)^(2-$H$1))),0) -> 59.39877884 | Q140: 0 | R140: 0 | S140: 0 | T140: 0 | U140: 0 | V140: 0 | W140: 0 | X140: 0 | Y140: 0 | Z140: 0 | AJ140: 4.373610914 | BR140: 259.7871474
A141: 12 | B141: 51.13962648 | D141: 3.630372865 | F141: 0 | G141: 0 | H141: 0 | I141: 0 | J141: 0 | K141: 0 | L141: 0 | M141: 0 | N141: 0 | O141: 0 | P141: 0 | Q141: 37.72688102 | R141: 0 | S141: 0 | T141: 0 | U141: 0 | V141: 0 | W141: 0 | X141: 0 | Y141: 0 | Z141: 0 | AJ141: 3.98589511 | BR141: 150.3753906
A142: 13 | B142: 28.74507246 | D142: 3.582666709 | F142: 0 | G142: 0 | H142: 0 | I142: 0 | J142: 0 | K142: 0 | L142: 0 | M142: 0 | N142: 0 | O142: 0 | P142: 0 | Q142: 0 | R142: 35.96933281 | S142: 0 | T142: 0 | U142: 0 | V142: 0 | W142: 0 | X142: 0 | Y142: 0 | Z142: 0 | AJ142: 3.381821717 | BR142: 121.6418709
A143: 14 | B143: 14.45190814 | D143: 3.6444335 | F143: 0 | G143: 0 | H143: 0 | I143: 0 | J143: 0 | K143: 0 | L143: 0 | M143: 0 | N143: 0 | O143: 0 | P143: 0 | Q143: 0 | R143: 0 | S143: 38.26109181 | T143: 0 | U143: 0 | V143: 0 | W143: 0 | X143: 0 | Y143: 0 | Z143: 0 | AJ143: 3.022151633 | BR143: 115.6308211
A144: 15 | B144: 30.04130094 | D144: 3.408775243 | F144: 0 | G144: 0 | H144: 0 | I144: 0 | J144: 0 | K144: 0 | L144: 0 | M144: 0 | N144: 0 | O144: 0 | P144: 0 | Q144: 0 | R144: 0 | S144: 0 | T144: 30.22819938 | U144: 0 | V144: 0 | W144: 0 | X144: 0 | Y144: 0 | Z144: 0 | AJ144: 3.402592326 | BR144: 102.8542393
A145: 16 | B145: 16.79576788 | D145: 3.052675156 | F145: 0 | G145: 0 | H145: 0 | I145: 0 | J145: 0 | K145: 0 | L145: 0 | M145: 0 | N145: 0 | O145: 0 | P145: 0 | Q145: 0 | R145: 0 | S145: 0 | T145: 0 | U145: 21.17190689 | V145: 0 | W145: 0 | X145: 0 | Y145: 0 | Z145: 0 | AJ145: 2.845979603 | BR145: 60.25481517
A146: 17 | B146: 15.84093247 | D146: 3.004969001 | F146: 0 | G146: 0 | H146: 0 | I146: 0 | J146: 0 | K146: 0 | L146: 0 | M146: 0 | N146: 0 | O146: 0 | P146: 0 | Q146: 0 | R146: 0 | S146: 0 | T146: 0 | U146: 0 | V146: 20.18559035 | W146: 0 | X146: 0 | Y146: 0 | Z146: 0 | AJ146: 2.789733389 | BR146: 56.31241537
A147: 18 | B147: 11.45848932 | D147: 3.066735792 | F147: 0 | G147: 0 | H147: 0 | I147: 0 | J147: 0 | K147: 0 | L147: 0 | M147: 0 | N147: 0 | O147: 0 | P147: 0 | Q147: 0 | R147: 0 | S147: 0 | T147: 0 | U147: 0 | V147: 0 | W147: 21.47170006 | X147: 0 | Y147: 0 | Z147: 0 | AJ147: 2.600391221 | BR147: 55.83482034
A148: 19 | B148: 19.67179698 | D148: 2.474977448 | F148: 0 | G148: 0 | H148: 0 | I148: 0 | J148: 0 | K148: 0 | L148: 0 | M148: 0 | N148: 0 | O148: 0 | P148: 0 | Q148: 0 | R148: 0 | S148: 0 | T148: 0 | U148: 0 | V148: 0 | W148: 0 | X148: 11.88143916 | Y148: 0 | Z148: 0 | AJ148: 3.130652044 | BR148: 37.19665178
A149: 20 | B149: 15.1168549 | D149: 2.427271292 | F149: 0 | G149: 0 | H149: 0 | I149: 0 | J149: 0 | K149: 0 | L149: 0 | M149: 0 | N149: 0 | O149: 0 | P149: 0 | Q149: 0 | R149: 0 | S149: 0 | T149: 0 | U149: 0 | V149: 0 | W149: 0 | X149: 0 | Y149: 11.32792926 | Z149: 0 | AJ149: 2.761747749 | BR149: 31.28488313
A150: 21 | B150: 11.32419352 | D150: 1.897279739 | F150: 0 | G150: 0 | H150: 0 | I150: 0 | J150: 0 | K150: 0 | L150: 0 | M150: 0 | N150: 0 | O150: 0 | P150: 0 | Q150: 0 | R150: 0 | S150: 0 | T150: 0 | U150: 0 | V150: 0 | W150: 0 | X150: 0 | Y150: 0 | Z150: 6.667731781 | AJ150: 2.595637425 | BR150: 17.30701415
